Body Name,Date Paid,Transaction Number,Amount,Supplier Name,Supplier Type,Expense Area,Cost Centre Description,Expense Type
Cambridgeshire County Council,01-Jun-21,51301581202,"-1,682.86",PSA Care LTD,COMPANY,LAC Placements,Placements - supported accommodation,Agency Placements - In County
Cambridgeshire County Council,01-Jun-21,51301581204,"-1,682.86",PSA Care LTD,COMPANY,LAC Placements,Placements - supported accommodation,Agency Placements - In County
Cambridgeshire County Council,01-Jun-21,51301581208,"-1,682.86",PSA Care LTD,COMPANY,LAC Placements,Placements - supported accommodation,Agency Placements - In County
Cambridgeshire County Council,01-Jun-21,51301581212,"-1,682.86",PSA Care LTD,COMPANY,LAC Placements,Placements - supported accommodation,Agency Placements - In County
Cambridgeshire County Council,01-Jun-21,51301581214,"-1,682.86",PSA Care LTD,COMPANY,LAC Placements,Placements - supported accommodation,Agency Placements - In County
Cambridgeshire County Council,01-Jun-21,51301581218,"-1,682.86",PSA Care LTD,COMPANY,LAC Placements,Placements - supported accommodation,Agency Placements - In County
Cambridgeshire County Council,01-Jun-21,51301581210,"-1,628.57",PSA Care LTD,COMPANY,LAC Placements,Placements - supported accommodation,Agency Placements - In County
Cambridgeshire County Council,01-Jun-21,51301581206,"-1,628.57",PSA Care LTD,COMPANY,LAC Placements,Placements - supported accommodation,Agency Placements - In County
Cambridgeshire County Council,01-Jun-21,51301581216,"-1,520.00",PSA Care LTD,COMPANY,LAC Placements,Placements - supported accommodation,Agency Placements - In County
Cambridgeshire County Council,01-Jun-21,51301581056,-927.99,Redacted Personal Data,INDIVIDUAL,Children's Disability Direct Payments,CSC Direct Payments,Direct Payments
Cambridgeshire County Council,01-Jun-21,51301578294,504.00,IMPERIAL COLLEGE PROJECTS LIMITED,TRADE SUPPLIER,Coroners,Coroners General,Testing
Cambridgeshire County Council,01-Jun-21,51301581006,510.00,RANDSTAD PUBLIC SERVICES (EDU),EDUCATION,Out of School Tuition,Out of School Provision - Education and Settings,Independent School Placements
Cambridgeshire County Council,01-Jun-21,51301581082,510.00,CF CONTACT & SUPPORT SERVICES LTD,CARE ESTABLISHMENT,Community Support Service,Community Support Service ECF,Grants to Voluntary Bodies
Cambridgeshire County Council,01-Jun-21,51301551503,525.48,LGSS LAW LTD,TRADE SUPPLIER,Capital Receipts Expenses,Capital Receipts Expenses,External Legal Fees
Cambridgeshire County Council,01-Jun-21,51301581484,535.80,Nationwide Travel Solutions Ltd,COMPANY,Home to School Transport - Mainstream,Home to School Transport Mainstream - Secondary,Home to School - Contract
Cambridgeshire County Council,01-Jun-21,51301581483,535.80,Nationwide Travel Solutions Ltd,COMPANY,Home to School Transport - Mainstream,Home to School Transport Mainstream - Primary,Home to School - Contract
Cambridgeshire County Council,01-Jun-21,51301576825,544.00,IMPERIAL COLLEGE PROJECTS LIMITED,TRADE SUPPLIER,Coroners,Coroners General,Testing
Cambridgeshire County Council,01-Jun-21,51301570708,547.02,TEACHING PERSONNEL LTD,TRADE SUPPLIER,SEND Specialist Services - Sensory Support,Sensory Support 0 - 25,Agency Staff
Cambridgeshire County Council,01-Jun-21,51301581177,551.23,ST IVES DAY CARE CENTRE,CARE ESTABLISHMENT,OP - Hunts Locality - Cost of Care,Hunts OP Team - Care,Day Care
Cambridgeshire County Council,01-Jun-21,51301564358,566.40,Institute of Government and Public Policy,EDUCATION,Schools Partnership Service,Virtual School LACPP Financing,Staff Training & Development
Cambridgeshire County Council,01-Jun-21,51301576827,568.00,IMPERIAL COLLEGE PROJECTS LIMITED,TRADE SUPPLIER,Coroners,Coroners General,Testing
Cambridgeshire County Council,01-Jun-21,51301581383,570.00,BEV'S TAXIS,TRADE SUPPLIER,Home to School Transport - Special,Home to School Transport Special - Out of County,Home to School - Contract
Cambridgeshire County Council,01-Jun-21,51301581379,572.00,BEV'S TAXIS,TRADE SUPPLIER,Home to School Transport - Special,Home to School Transport Special - Post 16,Home to School - Contract
Cambridgeshire County Council,01-Jun-21,51301576750,574.95,Merlcot Housing Association Ltd,CARE ESTABLISHMENT,LAC Placements,Supported Living,Agency Placements - In County
Cambridgeshire County Council,01-Jun-21,51301581384,576.00,BEV'S TAXIS,TRADE SUPPLIER,Home to School Transport - Mainstream,Home to School Transport Mainstream - Secondary,Home to School - Contract
Cambridgeshire County Council,01-Jun-21,51301580979,591.18,JOHNSONS 1871 LTD,TRADE SUPPLIER,Corporate Offices,Shire Hall Area,Building Stuctural Maintenance - Planned
Cambridgeshire County Council,01-Jun-21,51301581193,600.00,Redacted Personal Data,INDIVIDUAL,South Care Leaving,South Care Leaving,Specialist Equipment For Service Delivery
Cambridgeshire County Council,01-Jun-21,51301581190,600.00,Redacted Personal Data,INDIVIDUAL,South Care Leaving,South Care Leaving,Specialist Equipment For Service Delivery
Cambridgeshire County Council,01-Jun-21,51301581192,600.00,Redacted Personal Data,INDIVIDUAL,South Care Leaving,South Care Leaving,Specialist Equipment For Service Delivery
Cambridgeshire County Council,01-Jun-21,51301581194,600.00,Redacted Personal Data,INDIVIDUAL,South Care Leaving,South Care Leaving,Specialist Equipment For Service Delivery
Cambridgeshire County Council,01-Jun-21,51301567791,600.00,ST CHRISTOPHER'S FELLOWSHIP,CARE ESTABLISHMENT,LAC Placements,Placements - independent fostering,Agency Placements - In County
Cambridgeshire County Council,01-Jun-21,51301581091,604.08,REED SPECIALIST RECRUITMENT LTD,TRADE SUPPLIER,Community Support Service,Community Support Service ECF,Grants to Voluntary Bodies
Cambridgeshire County Council,01-Jun-21,51301581051,615.00,Duxford Preschool,NURSERY,Nursery Schools,Early Years - Funded 3s/4s,Care & Ed Childcare Settings
Cambridgeshire County Council,01-Jun-21,51301581050,615.00,ARBURY PRE-SCHOOL,NURSERY,Nursery Schools,Early Years - Funded 3s/4s,Care & Ed Childcare Settings
Cambridgeshire County Council,01-Jun-21,51301567548,627.70,CCS MEDIA LIMITED,TRADE SUPPLIER,ICT Service,ICT Service Sales,Materials for resale
Cambridgeshire County Council,01-Jun-21,51301581471,628.20,Smart Cars UK,COMPANY,Home to School Transport - Special,Home to School Transport Special - Out of County,Home to School - Contract
Cambridgeshire County Council,01-Jun-21,51301581085,630.00,CF CONTACT & SUPPORT SERVICES LTD,CARE ESTABLISHMENT,Community Support Service,Community Support Service ECF,Grants to Voluntary Bodies
Cambridgeshire County Council,01-Jun-21,51301581170,630.79,Redacted Personal Data,INDIVIDUAL,Physical Disablity - Cost of Care,Countywide PD Service - Care,Direct Payments
Cambridgeshire County Council,01-Jun-21,51301581421,638.40,Central Taxis Peterborough,COMPANY,Home to School Transport - Mainstream,Home to School Transport Mainstream - Primary,Home to School - Contract
Cambridgeshire County Council,01-Jun-21,51301576829,644.00,IMPERIAL COLLEGE PROJECTS LIMITED,TRADE SUPPLIER,Coroners,Coroners General,Testing
Cambridgeshire County Council,01-Jun-21,51301581485,648.00,Central Taxis Peterborough,COMPANY,Home to School Transport - Special,Home to School Transport Special - Out of County,Home to School - Contract
Cambridgeshire County Council,01-Jun-21,51301581075,655.31,CARING TOGETHER CHARITY,CARE ESTABLISHMENT,Community Support Service,Community Support Service ECF,Grants to Voluntary Bodies
Cambridgeshire County Council,01-Jun-21,51301581175,664.20,ST NEOTS & DISTRICT VOLUNTARY WELFARE ASSOCIATION,CARE ESTABLISHMENT,OP - Hunts Locality - Cost of Care,Hunts OP Team - Care,Day Care
Cambridgeshire County Council,01-Jun-21,51301567964,672.00,DATA FACILITIES (YORKSHIRE) LTD,TRADE SUPPLIER,County Farms,County Farms,County Farms Maintenance
Cambridgeshire County Council,01-Jun-21,51301568150,699.36,JUST CHECKING LTD,TRADE SUPPLIER,Assistive Telecare & Technology,Technology Enabled Care (TEC),Specialist Equipment For Service Delivery
Cambridgeshire County Council,01-Jun-21,51301568152,699.36,JUST CHECKING LTD,TRADE SUPPLIER,Assistive Telecare & Technology,Technology Enabled Care (TEC),Specialist Equipment For Service Delivery
Cambridgeshire County Council,01-Jun-21,51301581077,705.71,CARING TOGETHER CHARITY,CARE ESTABLISHMENT,Community Support Service,Community Support Service ECF,Grants to Voluntary Bodies
Cambridgeshire County Council,01-Jun-21,51301567537,717.06,ESPO,TRADE SUPPLIER,Park & Ride Parking,Park and Ride Admin,Cleaning and Domestic Supplies
Cambridgeshire County Council,01-Jun-21,51301581478,717.77,T & T PRIVATE HIRE LTD,TRADE SUPPLIER,Home to School Transport - Special,Home to School Transport Special - Out of County,Home to School - Contract
Cambridgeshire County Council,01-Jun-21,51301581466,718.56,Smart Cars UK,COMPANY,Home to School Transport - Special,Home to School Transport Special - Post 16,Home to School - Contract
Cambridgeshire County Council,01-Jun-21,51301581370,720.00,CRAFTS HILL CARS,TRADE SUPPLIER,Home to School Transport - Special,Home to School Transport Special - Post 16,Home to School - Contract
Cambridgeshire County Council,01-Jun-21,51301581159,720.00,THE ROSMINI CENTRE,LOCAL CLUBS & GROUPS,Lateral Flow Testing Grant,Lateral Flow Testing Grant,Gifts
Cambridgeshire County Council,01-Jun-21,51301581177,734.97,ST IVES DAY CARE CENTRE,CARE ESTABLISHMENT,OP - Hunts Locality - Cost of Care,Hunts OP Team - Care,Day Care
Cambridgeshire County Council,01-Jun-21,51301581170,735.92,Redacted Personal Data,INDIVIDUAL,Physical Disablity - Cost of Care,Countywide PD Service - Care,Direct Payments
Cambridgeshire County Council,01-Jun-21,51301581170,735.92,Redacted Personal Data,INDIVIDUAL,Physical Disablity - Cost of Care,Countywide PD Service - Care,Direct Payments
Cambridgeshire County Council,01-Jun-21,51301581170,735.92,Redacted Personal Data,INDIVIDUAL,Physical Disablity - Cost of Care,Countywide PD Service - Care,Direct Payments
Cambridgeshire County Council,01-Jun-21,51301581170,735.92,Redacted Personal Data,INDIVIDUAL,Physical Disablity - Cost of Care,Countywide PD Service - Care,Direct Payments
Cambridgeshire County Council,01-Jun-21,51301581170,735.92,Redacted Personal Data,INDIVIDUAL,Physical Disablity - Cost of Care,Countywide PD Service - Care,Direct Payments
Cambridgeshire County Council,01-Jun-21,51301581170,735.92,Redacted Personal Data,INDIVIDUAL,Physical Disablity - Cost of Care,Countywide PD Service - Care,Direct Payments
Cambridgeshire County Council,01-Jun-21,51301581096,736.22,REED SPECIALIST RECRUITMENT LTD,TRADE SUPPLIER,Community Support Service,Community Support Service ECF,Grants to Voluntary Bodies
Cambridgeshire County Council,01-Jun-21,51301565638,744.00,AQUARIUS LIQUID ENGINEERING A TRADING NAME OF CAPRARI PUMPS (UK) LTD,COMPANY,Winter Maintenance,Central Winter Maintenance,Building Repair and Maintenance
Cambridgeshire County Council,01-Jun-21,51301580889,748.80,LGSS LAW LTD,TRADE SUPPLIER,Legal Proceedings,Legal Proceedings,External Legal Fees
Cambridgeshire County Council,01-Jun-21,51301574649,750.00,Nene Valley Railway Ltd,COMPANY,Cultural Services,Museum Partnership,Professional Fees and Hired Services
Cambridgeshire County Council,01-Jun-21,51301581378,776.00,BEV'S TAXIS,TRADE SUPPLIER,Home to School Transport - Special,Home to School Transport Special - Special School,Home to School - Contract
Cambridgeshire County Council,01-Jun-21,51301581416,783.00,ALANS TAXI LTD,TRADE SUPPLIER,Home to School Transport - Special,Home to School Transport Special - Out of County,Home to School - Contract
Cambridgeshire County Council,01-Jun-21,51301569872,793.44,LGSS LAW LTD,TRADE SUPPLIER,"School Condition, Maintenance & Suitability","School Condition, Maintenance & Suitability",Construction - External Professional Fees
Cambridgeshire County Council,01-Jun-21,51301581413,798.00,ALANS TAXI LTD,TRADE SUPPLIER,Home to School Transport - Mainstream,Home to School Transport Mainstream - Secondary,Home to School - Contract
Cambridgeshire County Council,01-Jun-21,51301579818,803.52,KEN BOOTH & CO LTD,TRADE SUPPLIER,Lateral Flow Testing Grant,Lateral Flow Testing Grant,Cleaning and Domestic Supplies
Cambridgeshire County Council,01-Jun-21,51301581031,808.65,BRITISH TELECOMMUNICATIONS PLC,COMPANY,"Telephony, CPSN & MFD",Corporate Telephony,Telephone costs
Cambridgeshire County Council,01-Jun-21,51301581369,810.00,CAMCAB LTD,TRADE SUPPLIER,Home to School Transport - Special,Home to School Transport Special - Post 16,Home to School - Contract
Cambridgeshire County Council,01-Jun-21,51301581001,810.00,Participation Dogs Limited,EDUCATION,Out of School Tuition,Out of School Provision - Education and Settings,Independent School Placements
Cambridgeshire County Council,01-Jun-21,51301567925,818.74,ENTERPRISE FLEX-E-RENT,TRADE SUPPLIER,Corporate Offices,Pool Cars,Leased Vehicle Costs
Cambridgeshire County Council,01-Jun-21,51301579917,830.83,UK Power Networks (Operations) Ltd,COMPANY,Highways - Traffic Signals,Highways - Traffic Signals,Highways - Traffic Mgt Systems
Cambridgeshire County Council,01-Jun-21,51301576092,831.60,Stantec UK Limited,COMPANY,GCP - Operations,GCP - Energy,Consultancy
Cambridgeshire County Council,01-Jun-21,51301581381,836.00,BEV'S TAXIS,TRADE SUPPLIER,Home to School Transport - Special,Home to School Transport Special - Out of County,Home to School - Contract
Cambridgeshire County Council,01-Jun-21,51301581382,836.00,BEV'S TAXIS,TRADE SUPPLIER,Home to School Transport - Mainstream,Home to School Transport Mainstream - Secondary,Home to School - Contract
Cambridgeshire County Council,01-Jun-21,51301580580,850.00,Think Autism,EDUCATION,Fostering Quality Assurance,Foster  Care  NVQ  3   Training,Professional Fees and Hired Services
Cambridgeshire County Council,01-Jun-21,51301581465,865.20,Smart Cars UK,COMPANY,Home to School Transport - Mainstream,Home to School Transport Mainstream - Secondary,Home to School - Contract
Cambridgeshire County Council,01-Jun-21,51301581464,865.20,Smart Cars UK,COMPANY,Home to School Transport - Special,Home to School Transport Special - Secondary,Home to School - Contract
Cambridgeshire County Council,01-Jun-21,51301581390,880.00,CRAFTS HILL CARS,TRADE SUPPLIER,Home to School Transport - Special,Home to School Transport Special - Post 16,Home to School - Contract
Cambridgeshire County Council,01-Jun-21,51301566675,886.59,HUMANWARE EUROPE LTD,TRADE SUPPLIER,SEND Specialist Services,Equipment (mainstream),Independent School Placements
Cambridgeshire County Council,01-Jun-21,51301578181,912.00,EDUCATION SUPPORT PARTNERSHIP,EDUCATION,Opportunity Area,Opportunity Area,Professional Fees and Hired Services
Cambridgeshire County Council,01-Jun-21,51301552732,912.08,COASTAL RED LTD T/A LYNX,TRADE SUPPLIER,Concessionary Fares,Concessionary Fares,Concessions - payments to transport operators
Cambridgeshire County Council,01-Jun-21,51301581437,918.00,KHOLYO CARS,TRADE SUPPLIER,Home to School Transport - Special,Home to School Transport Special - Special School,Home to School - Contract
Cambridgeshire County Council,01-Jun-21,51301581037,950.00,Chear Limited,EDUCATION,SEND Specialist Services,Equipment (mainstream),Independent School Placements
Cambridgeshire County Council,01-Jun-21,51301567969,959.10,LGSS LAW LTD,TRADE SUPPLIER,MID - General,MID - Joint Professional Service contract,External Legal Fees
Cambridgeshire County Council,01-Jun-21,51301578577,960.00,LGSS LAW LTD,TRADE SUPPLIER,Legal Proceedings,Legal Proceedings,External Legal Fees
Cambridgeshire County Council,01-Jun-21,51301581366,980.00,CAMCAB LTD,TRADE SUPPLIER,Home to School Transport - Special,Home to School Transport Special - Special School,Home to School - Contract
Cambridgeshire County Council,01-Jun-21,51301581089,981.63,REED SPECIALIST RECRUITMENT LTD,TRADE SUPPLIER,Community Support Service,Community Support Service ECF,Grants to Voluntary Bodies
Cambridgeshire County Council,01-Jun-21,51301581099,981.63,REED SPECIALIST RECRUITMENT LTD,TRADE SUPPLIER,Community Support Service,Community Support Service ECF,Grants to Voluntary Bodies
Cambridgeshire County Council,01-Jun-21,51301581397,988.00,NATIONWIDE COACHES LTD,TRADE SUPPLIER,Home to School Transport - Special,Home to School Transport Special - Out of County,Home to School - Contract
Cambridgeshire County Council,01-Jun-21,51301570449,"1,000.00",CAMBRIDGE PSYCHOLOGY FOR SCHOOLS,EDUCATION,SEND Specialist Services - Education Psychology,SEND Specialist Services - Education Psychology,Professional Fees and Hired Services
Cambridgeshire County Council,01-Jun-21,51301581112,"1,000.51",REED SPECIALIST RECRUITMENT LTD,TRADE SUPPLIER,Community Support Service,Community Support Service ECF,Grants to Voluntary Bodies
Cambridgeshire County Council,01-Jun-21,51301581153,"1,012.50",IQPlus Childcare and Educational Services Ltd.,EDUCATION,Out of School Tuition,Out of School Provision - Education and Settings,Independent School Placements
Cambridgeshire County Council,01-Jun-21,51301576727,"1,050.00",Kip McGrath Education Centres Peterborough North,EDUCATION,Schools Partnership Service,Virtual School LACPP Financing,Mandatory Student Awards
Cambridgeshire County Council,01-Jun-21,51301576728,"1,050.00",Kip McGrath Education Centres Peterborough North,EDUCATION,Schools Partnership Service,Virtual School LACPP Financing,Mandatory Student Awards
Cambridgeshire County Council,01-Jun-21,51301565647,"1,061.94",Braunability UK Ltd,TRADE SUPPLIER,Home to School Transport - Special,Home to School Transport Special - Central Costs,Specialist Equipment For Service Delivery
Cambridgeshire County Council,01-Jun-21,51301581426,"1,097.88",24 X 7 LTD,TRADE SUPPLIER,Home to School Transport - Mainstream,Home to School Transport Mainstream - Primary,Home to School - Contract
Cambridgeshire County Council,01-Jun-21,51301565639,"1,100.00",Greenwood Homecare Ltd,COMPANY,Workforce Development,WFD - Skills for Care,Grants to Voluntary Bodies
Cambridgeshire County Council,01-Jun-21,51301576565,"1,134.68",PAPWORTH TRUST,TRUST (OTHER),LD - Fenland Locality - Cost of Care,LD - Fenland  - Care,Residential Care - Property Voids
Cambridgeshire County Council,01-Jun-21,51301576067,"1,149.97",SKAT Limited,COMPANY,EY - Oasis,Trumpington Park Early Years,Agency Staff
Cambridgeshire County Council,01-Jun-21,51301581175,"1,162.35",ST NEOTS & DISTRICT VOLUNTARY WELFARE ASSOCIATION,CARE ESTABLISHMENT,OP - Hunts Locality - Cost of Care,Hunts OP Team - Care,Day Care
Cambridgeshire County Council,01-Jun-21,51301581175,"1,162.35",ST NEOTS & DISTRICT VOLUNTARY WELFARE ASSOCIATION,CARE ESTABLISHMENT,OP - Hunts Locality - Cost of Care,Hunts OP Team - Care,Day Care
Cambridgeshire County Council,01-Jun-21,51301581175,"1,162.35",ST NEOTS & DISTRICT VOLUNTARY WELFARE ASSOCIATION,CARE ESTABLISHMENT,OP - Hunts Locality - Cost of Care,Hunts OP Team - Care,Day Care
Cambridgeshire County Council,01-Jun-21,51301581175,"1,162.35",ST NEOTS & DISTRICT VOLUNTARY WELFARE ASSOCIATION,CARE ESTABLISHMENT,OP - Hunts Locality - Cost of Care,Hunts OP Team - Care,Day Care
Cambridgeshire County Council,01-Jun-21,51301581175,"1,162.35",ST NEOTS & DISTRICT VOLUNTARY WELFARE ASSOCIATION,CARE ESTABLISHMENT,OP - Hunts Locality - Cost of Care,Hunts OP Team - Care,Day Care
Cambridgeshire County Council,01-Jun-21,51301581175,"1,162.35",ST NEOTS & DISTRICT VOLUNTARY WELFARE ASSOCIATION,CARE ESTABLISHMENT,OP - Hunts Locality - Cost of Care,Hunts OP Team - Care,Day Care
Cambridgeshire County Council,01-Jun-21,51301581175,"1,162.35",ST NEOTS & DISTRICT VOLUNTARY WELFARE ASSOCIATION,CARE ESTABLISHMENT,OP - Hunts Locality - Cost of Care,Hunts OP Team - Care,Day Care
Cambridgeshire County Council,01-Jun-21,51301581175,"1,162.35",ST NEOTS & DISTRICT VOLUNTARY WELFARE ASSOCIATION,CARE ESTABLISHMENT,OP - Hunts Locality - Cost of Care,Hunts OP Team - Care,Day Care
Cambridgeshire County Council,01-Jun-21,51301581175,"1,162.35",ST NEOTS & DISTRICT VOLUNTARY WELFARE ASSOCIATION,CARE ESTABLISHMENT,OP - Hunts Locality - Cost of Care,Hunts OP Team - Care,Day Care
Cambridgeshire County Council,01-Jun-21,51301581175,"1,162.35",ST NEOTS & DISTRICT VOLUNTARY WELFARE ASSOCIATION,CARE ESTABLISHMENT,OP - Hunts Locality - Cost of Care,Hunts OP Team - Care,Day Care
Cambridgeshire County Council,01-Jun-21,51301581175,"1,162.35",ST NEOTS & DISTRICT VOLUNTARY WELFARE ASSOCIATION,CARE ESTABLISHMENT,OP - Hunts Locality - Cost of Care,Hunts OP Team - Care,Day Care
Cambridgeshire County Council,01-Jun-21,51301581175,"1,162.35",ST NEOTS & DISTRICT VOLUNTARY WELFARE ASSOCIATION,CARE ESTABLISHMENT,OP - Hunts Locality - Cost of Care,Hunts OP Team - Care,Day Care
Cambridgeshire County Council,01-Jun-21,51301581052,"1,230.00",Godmanchester Pre-School,NURSERY,Nursery Schools,Early Years - Funded 3s/4s,Care & Ed Childcare Settings
Cambridgeshire County Council,01-Jun-21,51301581480,"1,231.20",Nationwide Travel Solutions Ltd,COMPANY,Home to School Transport - Mainstream,Home to School Transport Mainstream - Primary,Home to School - Contract
Cambridgeshire County Council,01-Jun-21,51301565106,"1,234.99",RJW ASSOCIATES LTD,TRADE SUPPLIER,Local Safeguarding Children's Board,Local Safeguarding Board,Consultancy
Cambridgeshire County Council,01-Jun-21,51301576725,"1,260.00",Kip McGrath Education Centres Peterborough North,EDUCATION,Schools Partnership Service,Virtual School LACPP Financing,Mandatory Student Awards
Cambridgeshire County Council,01-Jun-21,51301581422,"1,284.04",24 X 7 LTD,TRADE SUPPLIER,Home to School Transport - Special,Home to School Transport Special - Special School,Home to School - Contract
Cambridgeshire County Council,01-Jun-21,51301567940,"1,284.36",LGSS LAW LTD,TRADE SUPPLIER,LD - Young Adults Staffing,LD - Young Adults - Staffing,External Legal Fees
Cambridgeshire County Council,01-Jun-21,51301581177,"1,286.20",ST IVES DAY CARE CENTRE,CARE ESTABLISHMENT,OP - Hunts Locality - Cost of Care,Hunts OP Team - Care,Day Care
Cambridgeshire County Council,01-Jun-21,51301581177,"1,286.20",ST IVES DAY CARE CENTRE,CARE ESTABLISHMENT,OP - Hunts Locality - Cost of Care,Hunts OP Team - Care,Day Care
Cambridgeshire County Council,01-Jun-21,51301581177,"1,286.20",ST IVES DAY CARE CENTRE,CARE ESTABLISHMENT,OP - Hunts Locality - Cost of Care,Hunts OP Team - Care,Day Care
Cambridgeshire County Council,01-Jun-21,51301581177,"1,286.20",ST IVES DAY CARE CENTRE,CARE ESTABLISHMENT,OP - Hunts Locality - Cost of Care,Hunts OP Team - Care,Day Care
Cambridgeshire County Council,01-Jun-21,51301581177,"1,286.20",ST IVES DAY CARE CENTRE,CARE ESTABLISHMENT,OP - Hunts Locality - Cost of Care,Hunts OP Team - Care,Day Care
Cambridgeshire County Council,01-Jun-21,51301581177,"1,286.20",ST IVES DAY CARE CENTRE,CARE ESTABLISHMENT,OP - Hunts Locality - Cost of Care,Hunts OP Team - Care,Day Care
Cambridgeshire County Council,01-Jun-21,51301581177,"1,286.20",ST IVES DAY CARE CENTRE,CARE ESTABLISHMENT,OP - Hunts Locality - Cost of Care,Hunts OP Team - Care,Day Care
Cambridgeshire County Council,01-Jun-21,51301581177,"1,286.20",ST IVES DAY CARE CENTRE,CARE ESTABLISHMENT,OP - Hunts Locality - Cost of Care,Hunts OP Team - Care,Day Care
Cambridgeshire County Council,01-Jun-21,51301581177,"1,286.20",ST IVES DAY CARE CENTRE,CARE ESTABLISHMENT,OP - Hunts Locality - Cost of Care,Hunts OP Team - Care,Day Care
Cambridgeshire County Council,01-Jun-21,51301581177,"1,286.20",ST IVES DAY CARE CENTRE,CARE ESTABLISHMENT,OP - Hunts Locality - Cost of Care,Hunts OP Team - Care,Day Care
Cambridgeshire County Council,01-Jun-21,51301581177,"1,286.20",ST IVES DAY CARE CENTRE,CARE ESTABLISHMENT,OP - Hunts Locality - Cost of Care,Hunts OP Team - Care,Day Care
Cambridgeshire County Council,01-Jun-21,51301581177,"1,286.20",ST IVES DAY CARE CENTRE,CARE ESTABLISHMENT,OP - Hunts Locality - Cost of Care,Hunts OP Team - Care,Day Care
Cambridgeshire County Council,01-Jun-21,51301581479,"1,300.32",Nationwide Travel Solutions Ltd,COMPANY,Home to School Transport - Special,Home to School Transport Special - Out of County,Home to School - Contract
Cambridgeshire County Council,01-Jun-21,51301581408,"1,311.00",Vyo Taxi Private Hire,COMPANY,Home to School Transport - Special,Home to School Transport Special - Secondary,Home to School - Contract
Cambridgeshire County Council,01-Jun-21,51301581476,"1,332.00",ST TRANSPORT SOLUTIONS LTD,TRADE SUPPLIER,Home to School Transport - Special,Home to School Transport Special - Secondary,Home to School - Contract
Cambridgeshire County Council,01-Jun-21,51301581002,"1,350.00",Participation Dogs Limited,EDUCATION,Out of School Tuition,Out of School Provision - Education and Settings,Independent School Placements
Cambridgeshire County Council,01-Jun-21,51301581454,"1,365.12",Smart Cars UK,COMPANY,Home to School Transport - Special,Home to School Transport Special - Special School,Home to School - Contract
Cambridgeshire County Council,01-Jun-21,51301581458,"1,368.00",Smart Cars UK,COMPANY,Home to School Transport - Special,Home to School Transport Special - Secondary,Home to School - Contract
Cambridgeshire County Council,01-Jun-21,51301581181,"1,400.00",Redacted Personal Data,INDIVIDUAL,L&D Grants,Practice Learning,Professional Fees and Hired Services
Cambridgeshire County Council,01-Jun-21,51301581446,"1,403.82",Smart Cars UK,COMPANY,Home to School Transport - Special,Home to School Transport Special - Secondary,Home to School - Contract
Cambridgeshire County Council,01-Jun-21,51301581003,"1,417.50",Participation Dogs Limited,EDUCATION,Out of School Tuition,Out of School Provision - Education and Settings,Independent School Placements
Cambridgeshire County Council,01-Jun-21,51301581217,"1,520.00",PSA Care LTD,COMPANY,LAC Placements,Placements - supported accommodation,Agency Placements - In County
Cambridgeshire County Council,01-Jun-21,51301581459,"1,530.00",Smart Cars UK,COMPANY,Home to School Transport - Special,Home to School Transport Special - Special School,Home to School - Contract
Cambridgeshire County Council,01-Jun-21,51301569989,"1,539.60",GD GREEN,SOLETRADER,County Farms,County Farms,County Farms Maintenance
Cambridgeshire County Council,01-Jun-21,51301581224,"1,542.85",Starwrick Housing,CARE ESTABLISHMENT,Unaccompanied Asylum Seeking Children,Unaccompanied Asylum Seeking Children <18,Asylum Seekers
Cambridgeshire County Council,01-Jun-21,51301581407,"1,558.00",Vyo Taxi Private Hire,COMPANY,Home to School Transport - Special,Home to School Transport Special - Special School,Home to School - Contract
Cambridgeshire County Council,01-Jun-21,51301581174,"1,571.43",CHS GROUP,CARE ESTABLISHMENT,OP - City & South Locality - Cost of Care,Older People - City & South - Care,Supported Living
Cambridgeshire County Council,01-Jun-21,51301581173,"1,571.43",CHS GROUP,CARE ESTABLISHMENT,OP - City & South Locality - Cost of Care,Older People - City & South - Care,Supported Living
Cambridgeshire County Council,01-Jun-21,51301581368,"1,587.40",CAMCAB LTD,TRADE SUPPLIER,Home to School Transport - Special,Home to School Transport Special - Special School,Home to School - Contract
Cambridgeshire County Council,01-Jun-21,51301581445,"1,587.60",Smart Cars UK,COMPANY,Home to School Transport - Mainstream,Home to School Transport Mainstream - Primary,Home to School - Contract
Cambridgeshire County Council,01-Jun-21,51301581367,"1,596.00",CAMCAB LTD,TRADE SUPPLIER,Home to School Transport - Special,Home to School Transport Special - Post 16,Home to School - Contract
Cambridgeshire County Council,01-Jun-21,51301581172,"1,607.32",CHS GROUP,CARE ESTABLISHMENT,OP - City & South Locality - Cost of Care,Older People - City & South - Care,Supported Living
Cambridgeshire County Council,01-Jun-21,51301581207,"1,628.57",PSA Care LTD,COMPANY,LAC Placements,Placements - supported accommodation,Agency Placements - In County
Cambridgeshire County Council,01-Jun-21,51301581211,"1,628.57",PSA Care LTD,COMPANY,LAC Placements,Placements - supported accommodation,Agency Placements - In County
Cambridgeshire County Council,01-Jun-21,51301581201,"1,628.57",PSA Care LTD,COMPANY,Unaccompanied Asylum Seeking Children,Unaccompanied Asylum Seeking Children >18 Leaving Care,Living Spport Grants - Financial Assistance 18+
Cambridgeshire County Council,01-Jun-21,51301581222,"1,628.57",PSA Care LTD,COMPANY,Unaccompanied Asylum Seeking Children,Unaccompanied Asylum Seeking Children >18 Leaving Care,Living Spport Grants - Financial Assistance 18+
Cambridgeshire County Council,01-Jun-21,51301581223,"1,628.57",PSA Care LTD,COMPANY,Unaccompanied Asylum Seeking Children,Unaccompanied Asylum Seeking Children >18 Leaving Care,Living Spport Grants - Financial Assistance 18+
Cambridgeshire County Council,01-Jun-21,51301580997,"1,641.60",SKAT Limited,COMPANY,EY - Oasis,Trumpington Park Early Years,Agency Staff
Cambridgeshire County Council,01-Jun-21,51301581469,"1,663.20",Smart Cars UK,COMPANY,Home to School Transport - Special,Home to School Transport Special - Post 16,Home to School - Contract
Cambridgeshire County Council,01-Jun-21,51301581215,"1,682.86",PSA Care LTD,COMPANY,LAC Placements,Placements - supported accommodation,Agency Placements - In County
Cambridgeshire County Council,01-Jun-21,51301581219,"1,682.86",PSA Care LTD,COMPANY,LAC Placements,Placements - supported accommodation,Agency Placements - In County
Cambridgeshire County Council,01-Jun-21,51301581213,"1,682.86",PSA Care LTD,COMPANY,LAC Placements,Placements - supported accommodation,Agency Placements - In County
Cambridgeshire County Council,01-Jun-21,51301581209,"1,682.86",PSA Care LTD,COMPANY,LAC Placements,Placements - supported accommodation,Agency Placements - In County
Cambridgeshire County Council,01-Jun-21,51301581205,"1,682.86",PSA Care LTD,COMPANY,LAC Placements,Placements - supported accommodation,Agency Placements - In County
Cambridgeshire County Council,01-Jun-21,51301581203,"1,682.86",PSA Care LTD,COMPANY,LAC Placements,Placements - supported accommodation,Agency Placements - In County
Cambridgeshire County Council,01-Jun-21,51301581406,"1,691.00",Vyo Taxi Private Hire,COMPANY,Home to School Transport - Special,Home to School Transport Special - Post 16,Home to School - Contract
Cambridgeshire County Council,01-Jun-21,51301581080,"1,692.00",CARING TOGETHER CHARITY,CARE ESTABLISHMENT,Community Support Service,Community Support Service ECF,Grants to Voluntary Bodies
Cambridgeshire County Council,01-Jun-21,51301581398,"1,710.00",NATIONWIDE COACHES LTD,TRADE SUPPLIER,Home to School Transport - Special,Home to School Transport Special - Out of County,Home to School - Contract
Cambridgeshire County Council,01-Jun-21,51301581456,"1,713.60",Smart Cars UK,COMPANY,Home to School Transport - Special,Home to School Transport Special - Post 16,Home to School - Contract
Cambridgeshire County Council,01-Jun-21,51301581467,"1,728.00",Smart Cars UK,COMPANY,Home to School Transport - Special,Home to School Transport Special - Special School,Home to School - Contract
Cambridgeshire County Council,01-Jun-21,51301581380,"1,729.00",BEV'S TAXIS,TRADE SUPPLIER,Home to School Transport - Special,Home to School Transport Special - Out of County,Home to School - Contract
Cambridgeshire County Council,01-Jun-21,51301580489,"1,750.00",Balsham Scout Group,CHARITY,Out of School Tuition,Out of School Provision - Education and Settings,Independent School Placements
Cambridgeshire County Council,01-Jun-21,51301581460,"1,800.00",Smart Cars UK,COMPANY,Home to School Transport - Special,Home to School Transport Special - Special School,Home to School - Contract
Cambridgeshire County Council,01-Jun-21,51301579810,"1,800.00",LGSS LAW LTD,TRADE SUPPLIER,Early Years Specialist Support,Procurement - TA Other (Disabled/Tribunal/Special proj),Independent School Placements
Cambridgeshire County Council,01-Jun-21,51301570095,"1,813.91",VIRGIN MEDIA LTD,COMPANY,EastNet,EastNet,Telephone costs
Cambridgeshire County Council,01-Jun-21,51301581455,"1,828.80",Smart Cars UK,COMPANY,Home to School Transport - Special,Home to School Transport Special - Post 16,Home to School - Contract
Cambridgeshire County Council,01-Jun-21,51301581410,"1,875.00",Ambu Kare Ltd,COMPANY,Home to School Transport - Special,Home to School Transport Special - Special School,Home to School - Contract
Cambridgeshire County Council,01-Jun-21,51301581462,"1,881.60",Smart Cars UK,COMPANY,Home to School Transport - Special,Home to School Transport Special - Secondary,Home to School - Contract
Cambridgeshire County Council,01-Jun-21,51301581432,"1,892.40",4X LIMITED T/A STEVES TAXI & PRIVATE HIRE,TRADE SUPPLIER,Home to School Transport - Special,Home to School Transport Special - Primary,Home to School - Contract
Cambridgeshire County Council,01-Jun-21,51301581481,"1,892.40",Nationwide Travel Solutions Ltd,COMPANY,Home to School Transport - Mainstream,Home to School Transport Mainstream - Primary,Home to School - Contract
Cambridgeshire County Council,01-Jun-21,51301567593,"1,920.00",WATERMAN ASPEN LTD,TRADE SUPPLIER,Highways Development Management,Highways Development Management,Professional Fees and Hired Services
Cambridgeshire County Council,01-Jun-21,51301568082,"1,929.60",Safety Screens Ltd,COMPANY,Lateral Flow Testing Grant,Lateral Flow Testing Grant,Furniture
Cambridgeshire County Council,01-Jun-21,51301569992,"1,937.76",TIDEY ELECTRICAL LTD,TRADE SUPPLIER,Investment in the CCC Asset Portfolio,Spokes - Stanton House,Buildings - Mechanical and Electrical
Cambridgeshire County Council,01-Jun-21,51301581434,"1,953.27",BATEMANS TRANSPORT & TAXI LTD,TRADE SUPPLIER,Home to School Transport - Special,Home to School Transport Special - Secondary,Home to School - Contract
Cambridgeshire County Council,01-Jun-21,51301581411,"1,975.00",Ambu Kare Ltd,COMPANY,Home to School Transport - Special,Home to School Transport Special - Special School,Home to School - Contract
Cambridgeshire County Council,01-Jun-21,51301581424,"1,977.53",24 X 7 LTD,TRADE SUPPLIER,Home to School Transport - Special,Home to School Transport Special - Primary,Home to School - Contract
Cambridgeshire County Council,01-Jun-21,51301561131,"1,980.00",Matchtech,COMPANY,MID - General,MID - Joint Professional Service contract,Professional Fees and Hired Services
Cambridgeshire County Council,01-Jun-21,51301564013,"1,980.00",Matchtech,COMPANY,MID - General,MID - Joint Professional Service contract,Professional Fees and Hired Services
Cambridgeshire County Council,01-Jun-21,51301578187,"1,980.00",THE CAM ACADEMY TRUST,EDUCATION,Opportunity Area,Opportunity Area,Professional Fees and Hired Services
Cambridgeshire County Council,01-Jun-21,51301563518,"1,995.00",FENLAND DISTRICT COUNCIL,OTHER PUBLIC BODIES,Connecting Cambridgeshire,Connecting Cambridgeshire,Specialist Equipment For Service Delivery
Cambridgeshire County Council,01-Jun-21,51301565162,"2,000.00",Andrew Gordon Consulting Limited,COMPANY,GCP - Cambridge South East (A1307),GCP - Cambridge South East (A1307),Construction - External Professional Fees
Cambridgeshire County Council,01-Jun-21,51301581450,"2,011.50",Smart Cars UK,COMPANY,Home to School Transport - Special,Home to School Transport Special - Post 16,Home to School - Contract
Cambridgeshire County Council,01-Jun-21,51301581451,"2,011.50",Smart Cars UK,COMPANY,Home to School Transport - Special,Home to School Transport Special - Secondary,Home to School - Contract
Cambridgeshire County Council,01-Jun-21,51301581200,"2,057.14",PSA Care LTD,COMPANY,Unaccompanied Asylum Seeking Children,Unaccompanied Asylum Seeking Children >18 Leaving Care,Living Spport Grants - Financial Assistance 18+
Cambridgeshire County Council,01-Jun-21,51301581244,"2,057.15",Starwrick Housing,CARE ESTABLISHMENT,Unaccompanied Asylum Seeking Children,Unaccompanied Asylum Seeking Children <18,Asylum Seekers
Cambridgeshire County Council,01-Jun-21,51301581470,"2,074.80",Smart Cars UK,COMPANY,Home to School Transport - Special,Home to School Transport Special - Post 16,Home to School - Contract
Cambridgeshire County Council,01-Jun-21,51301578191,"2,085.86",BOTTISHAM VILLAGE COLLEGE,EDUCATION,Opportunity Area,Opportunity Area,Professional Fees and Hired Services
Cambridgeshire County Council,01-Jun-21,51301581173,"2,095.23",CHS GROUP,CARE ESTABLISHMENT,OP - City & South Locality - Cost of Care,Older People - City & South - Care,Supported Living
Cambridgeshire County Council,01-Jun-21,51301581174,"2,095.23",CHS GROUP,CARE ESTABLISHMENT,OP - City & South Locality - Cost of Care,Older People - City & South - Care,Supported Living
Cambridgeshire County Council,01-Jun-21,51301581448,"2,098.32",Smart Cars UK,COMPANY,Home to School Transport - Special,Home to School Transport Special - Post 16,Home to School - Contract
Cambridgeshire County Council,01-Jun-21,51301581447,"2,100.00",Smart Cars UK,COMPANY,Home to School Transport - Special,Home to School Transport Special - Special School,Home to School - Contract
Cambridgeshire County Council,01-Jun-21,51301581453,"2,100.00",Smart Cars UK,COMPANY,Home to School Transport - Mainstream,Home to School Transport Mainstream - Primary,Home to School - Contract
Cambridgeshire County Council,01-Jun-21,51301581444,"2,100.00",PANTHER TAXIS LTD,TRADE SUPPLIER,Home to School Transport - Special,Home to School Transport Special - Out of County,Home to School - Contract
Cambridgeshire County Council,01-Jun-21,51301579809,"2,100.00",LGSS LAW LTD,TRADE SUPPLIER,Early Years Specialist Support,Procurement - TA Other (Disabled/Tribunal/Special proj),Independent School Placements
Cambridgeshire County Council,01-Jun-21,51301565542,"2,100.00",CHS GROUP,CARE ESTABLISHMENT,Mental Health Commissioning,Mental Health Commissioning,Supported Living
Cambridgeshire County Council,01-Jun-21,51301581463,"2,142.00",Smart Cars UK,COMPANY,Home to School Transport - Special,Home to School Transport Special - Primary,Home to School - Contract
Cambridgeshire County Council,01-Jun-21,51301581172,"2,143.09",CHS GROUP,CARE ESTABLISHMENT,OP - City & South Locality - Cost of Care,Older People - City & South - Care,Supported Living
Cambridgeshire County Council,01-Jun-21,51301581423,"2,204.44",24 X 7 LTD,TRADE SUPPLIER,Home to School Transport - Special,Home to School Transport Special - Special School,Home to School - Contract
Cambridgeshire County Council,01-Jun-21,51301581425,"2,238.94",24 X 7 LTD,TRADE SUPPLIER,Home to School Transport - Mainstream,Home to School Transport Mainstream - Secondary,Home to School - Contract
Cambridgeshire County Council,01-Jun-21,51301581386,"2,280.00",C. L. TRAVEL LTD,TRADE SUPPLIER,Home to School Transport - Mainstream,Home to School Transport Mainstream - Secondary,Home to School - Contract
Cambridgeshire County Council,01-Jun-21,51301581372,"2,310.00",THE PRIVATE HIRE COMPANY,TRADE SUPPLIER,Home to School Transport - Special,Home to School Transport Special - Post 16,Home to School - Contract
Cambridgeshire County Council,01-Jun-21,51301565577,"2,310.00",Pam Page Psychology Services Ltd,COMPANY,SEND Specialist Services - Education Psychology,SEND Specialist Services - Education Psychology,Professional Fees and Hired Services
Cambridgeshire County Council,01-Jun-21,51301581461,"2,322.00",Smart Cars UK,COMPANY,Home to School Transport - Special,Home to School Transport Special - Special School,Home to School - Contract
Cambridgeshire County Council,01-Jun-21,51301581054,"2,350.80",Redacted Personal Data,INDIVIDUAL,Children's Disability Direct Payments,CSC Direct Payments,Direct Payments
Cambridgeshire County Council,01-Jun-21,51301581409,"2,375.00",Ambu Kare Ltd,COMPANY,Home to School Transport - Special,Home to School Transport Special - Special School,Home to School - Contract
Cambridgeshire County Council,01-Jun-21,51301566668,"2,391.66",SAFEGUARD ELECTRICAL ENGINEERING LTD,COMPANY,County Farms,County Farms,County Farms Maintenance
Cambridgeshire County Council,01-Jun-21,51301581436,"2,413.26",BATEMANS TRANSPORT & TAXI LTD,TRADE SUPPLIER,Home to School Transport - Special,Home to School Transport Special - Special School,Home to School - Contract
Cambridgeshire County Council,01-Jun-21,51301581053,"2,460.00",STRETTON PRE-SCHOOL,NURSERY,Nursery Schools,Early Years - Funded 3s/4s,Care & Ed Childcare Settings
Cambridgeshire County Council,01-Jun-21,51301576734,"2,469.80",ROYAL MAIL,TRADE SUPPLIER,Information Management,Resources Franking Machine,Postage & Carriage
Cambridgeshire County Council,01-Jun-21,51301581246,"2,520.00",Starwrick Housing,CARE ESTABLISHMENT,Unaccompanied Asylum Seeking Children,Unaccompanied Asylum Seeking Children <18,Asylum Seekers
Cambridgeshire County Council,01-Jun-21,51301581241,"2,520.00",Starwrick Housing,CARE ESTABLISHMENT,Unaccompanied Asylum Seeking Children,Unaccompanied Asylum Seeking Children <18,Asylum Seekers
Cambridgeshire County Council,01-Jun-21,51301581389,"2,520.00",COLLINS COACHES,TRADE SUPPLIER,Home to School Transport - Special,Home to School Transport Special - Out of County,Home to School - Contract
Cambridgeshire County Council,01-Jun-21,51301581239,"2,571.43",Starwrick Housing,CARE ESTABLISHMENT,Unaccompanied Asylum Seeking Children,Unaccompanied Asylum Seeking Children <18,Asylum Seekers
Cambridgeshire County Council,01-Jun-21,51301581449,"2,713.20",Smart Cars UK,COMPANY,Home to School Transport - Special,Home to School Transport Special - Primary,Home to School - Contract
Cambridgeshire County Council,01-Jun-21,51301581414,"2,730.00",ALANS TAXI LTD,TRADE SUPPLIER,Home to School Transport - Mainstream,Home to School Transport Mainstream - Primary,Home to School - Contract
Cambridgeshire County Council,01-Jun-21,51301570476,"2,735.82",ESSEX COUNTY COUNCIL,OTHER PUBLIC BODIES,OPMH - City & South,Older People Mental Health City & South,Residential Care
Cambridgeshire County Council,01-Jun-21,51301581227,"2,828.57",Starwrick Housing,CARE ESTABLISHMENT,Unaccompanied Asylum Seeking Children,Unaccompanied Asylum Seeking Children <18,Asylum Seekers
Cambridgeshire County Council,01-Jun-21,51301581230,"2,828.57",Starwrick Housing,CARE ESTABLISHMENT,Unaccompanied Asylum Seeking Children,Unaccompanied Asylum Seeking Children <18,Asylum Seekers
Cambridgeshire County Council,01-Jun-21,51301581233,"2,828.57",Starwrick Housing,CARE ESTABLISHMENT,Unaccompanied Asylum Seeking Children,Unaccompanied Asylum Seeking Children <18,Asylum Seekers
Cambridgeshire County Council,01-Jun-21,51301581236,"2,828.57",Starwrick Housing,CARE ESTABLISHMENT,Unaccompanied Asylum Seeking Children,Unaccompanied Asylum Seeking Children <18,Asylum Seekers
Cambridgeshire County Council,01-Jun-21,51301581428,"2,856.00",4X LIMITED T/A STEVES TAXI & PRIVATE HIRE,TRADE SUPPLIER,Home to School Transport - Special,Home to School Transport Special - Post 16,Home to School - Contract
Cambridgeshire County Council,01-Jun-21,51301581468,"2,952.00",Smart Cars UK,COMPANY,Home to School Transport - Special,Home to School Transport Special - Special School,Home to School - Contract
Cambridgeshire County Council,01-Jun-21,51301581482,"2,964.00",Nationwide Travel Solutions Ltd,COMPANY,Home to School Transport - Mainstream,Home to School Transport Mainstream - Primary,Home to School - Contract
Cambridgeshire County Council,01-Jun-21,51301581371,"2,965.00",THE PRIVATE HIRE COMPANY,TRADE SUPPLIER,Home to School Transport - Special,Home to School Transport Special - Secondary,Home to School - Contract
Cambridgeshire County Council,01-Jun-21,51301581443,"2,975.40",PANTHER TAXIS LTD,TRADE SUPPLIER,Home to School Transport - Special,Home to School Transport Special - Primary,Home to School - Contract
Cambridgeshire County Council,01-Jun-21,51301581420,"3,024.00",T & T PRIVATE HIRE LTD,TRADE SUPPLIER,Home to School Transport - Mainstream,Home to School Transport Mainstream - Secondary,Home to School - Contract
Cambridgeshire County Council,01-Jun-21,51301581377,"3,040.00",A2B Travel Group,TRADE SUPPLIER,Home to School Transport - Mainstream,Home to School Transport Mainstream - Primary,Home to School - Contract
Cambridgeshire County Council,01-Jun-21,51301581374,"3,102.00",THE PRIVATE HIRE COMPANY,TRADE SUPPLIER,Home to School Transport - Special,Home to School Transport Special - Out of County,Home to School - Contract
Cambridgeshire County Council,01-Jun-21,51301567946,"3,210.00",CARLTON ASSOCIATES (2003) LTD,TRADE SUPPLIER,Education Safety & Wellbeing PE & Sports,Education Health Safety and Wellbeing: PE & Sport Advisor,Professional Fees and Hired Services
Cambridgeshire County Council,01-Jun-21,51301581457,"3,222.00",Smart Cars UK,COMPANY,Home to School Transport - Special,Home to School Transport Special - Post 16,Home to School - Contract
Cambridgeshire County Council,01-Jun-21,51301565094,"3,320.06",C JACKSON & SONS (BEDFORD) LTD,COMPANY,The Hub - Covid-19 Response,The Hub - Covid-19 Response,"Fixtures, Fittings and Furnishings"
Cambridgeshire County Council,01-Jun-21,51301581475,"3,383.10",ST TRANSPORT SOLUTIONS LTD,TRADE SUPPLIER,Home to School Transport - Mainstream,Home to School Transport Mainstream - Secondary,Home to School - Contract
Cambridgeshire County Council,01-Jun-21,51301553709,"3,402.24",STAGECOACH SERVICES LTD,TRADE SUPPLIER,Passenger Transport other,Cambridgeshire Future Transport,Support - subsidised bus routes
Cambridgeshire County Council,01-Jun-21,51301565160,"3,482.16",Donald Insall Associates Ltd,COMPANY,Capital Receipts Expenses,Capital Receipts Expenses,Professional Fees and Hired Services
Cambridgeshire County Council,01-Jun-21,51301581163,"3,525.00",KASPER LTD,CARE ESTABLISHMENT,LAC Placements,Placements - independent fostering,Agency Placements - Out of  County
Cambridgeshire County Council,01-Jun-21,51301578200,"3,600.00",Stigma Statistics Ltd,COMPANY,PH Adult Mental Health & Community Safety,Public Mental Health - General Preventions,Subscriptions
Cambridgeshire County Council,01-Jun-21,51301581401,"3,600.31",ROBINSON KIMBOLTON LIMITED,TRADE SUPPLIER,Home to School Transport - Mainstream,Home to School Transport Mainstream - Primary,Home to School - Contract
Cambridgeshire County Council,01-Jun-21,51301565740,"3,601.02",MLL Telecom Limited,TRADE SUPPLIER,Data Centre Relocation,Data Centre Relocation,Utilities Set Up
Cambridgeshire County Council,01-Jun-21,51301581430,"3,660.36",4X LIMITED T/A STEVES TAXI & PRIVATE HIRE,TRADE SUPPLIER,Home to School Transport - Special,Home to School Transport Special - Secondary,Home to School - Contract
Cambridgeshire County Council,01-Jun-21,51301581174,"3,666.66",CHS GROUP,CARE ESTABLISHMENT,OP - City & South Locality - Cost of Care,Older People - City & South - Care,Supported Living
Cambridgeshire County Council,01-Jun-21,51301581174,"3,666.66",CHS GROUP,CARE ESTABLISHMENT,OP - City & South Locality - Cost of Care,Older People - City & South - Care,Supported Living
Cambridgeshire County Council,01-Jun-21,51301581174,"3,666.66",CHS GROUP,CARE ESTABLISHMENT,OP - City & South Locality - Cost of Care,Older People - City & South - Care,Supported Living
Cambridgeshire County Council,01-Jun-21,51301581174,"3,666.66",CHS GROUP,CARE ESTABLISHMENT,OP - City & South Locality - Cost of Care,Older People - City & South - Care,Supported Living
Cambridgeshire County Council,01-Jun-21,51301581174,"3,666.66",CHS GROUP,CARE ESTABLISHMENT,OP - City & South Locality - Cost of Care,Older People - City & South - Care,Supported Living
Cambridgeshire County Council,01-Jun-21,51301581174,"3,666.66",CHS GROUP,CARE ESTABLISHMENT,OP - City & South Locality - Cost of Care,Older People - City & South - Care,Supported Living
Cambridgeshire County Council,01-Jun-21,51301581174,"3,666.66",CHS GROUP,CARE ESTABLISHMENT,OP - City & South Locality - Cost of Care,Older People - City & South - Care,Supported Living
Cambridgeshire County Council,01-Jun-21,51301581174,"3,666.66",CHS GROUP,CARE ESTABLISHMENT,OP - City & South Locality - Cost of Care,Older People - City & South - Care,Supported Living
Cambridgeshire County Council,01-Jun-21,51301581174,"3,666.66",CHS GROUP,CARE ESTABLISHMENT,OP - City & South Locality - Cost of Care,Older People - City & South - Care,Supported Living
Cambridgeshire County Council,01-Jun-21,51301581174,"3,666.66",CHS GROUP,CARE ESTABLISHMENT,OP - City & South Locality - Cost of Care,Older People - City & South - Care,Supported Living
Cambridgeshire County Council,01-Jun-21,51301581174,"3,666.66",CHS GROUP,CARE ESTABLISHMENT,OP - City & South Locality - Cost of Care,Older People - City & South - Care,Supported Living
Cambridgeshire County Council,01-Jun-21,51301581174,"3,666.66",CHS GROUP,CARE ESTABLISHMENT,OP - City & South Locality - Cost of Care,Older People - City & South - Care,Supported Living
Cambridgeshire County Council,01-Jun-21,51301581173,"3,666.66",CHS GROUP,CARE ESTABLISHMENT,OP - City & South Locality - Cost of Care,Older People - City & South - Care,Supported Living
Cambridgeshire County Council,01-Jun-21,51301581173,"3,666.66",CHS GROUP,CARE ESTABLISHMENT,OP - City & South Locality - Cost of Care,Older People - City & South - Care,Supported Living
Cambridgeshire County Council,01-Jun-21,51301581173,"3,666.66",CHS GROUP,CARE ESTABLISHMENT,OP - City & South Locality - Cost of Care,Older People - City & South - Care,Supported Living
Cambridgeshire County Council,01-Jun-21,51301581173,"3,666.66",CHS GROUP,CARE ESTABLISHMENT,OP - City & South Locality - Cost of Care,Older People - City & South - Care,Supported Living
Cambridgeshire County Council,01-Jun-21,51301581173,"3,666.66",CHS GROUP,CARE ESTABLISHMENT,OP - City & South Locality - Cost of Care,Older People - City & South - Care,Supported Living
Cambridgeshire County Council,01-Jun-21,51301581173,"3,666.66",CHS GROUP,CARE ESTABLISHMENT,OP - City & South Locality - Cost of Care,Older People - City & South - Care,Supported Living
Cambridgeshire County Council,01-Jun-21,51301581173,"3,666.66",CHS GROUP,CARE ESTABLISHMENT,OP - City & South Locality - Cost of Care,Older People - City & South - Care,Supported Living
Cambridgeshire County Council,01-Jun-21,51301581173,"3,666.66",CHS GROUP,CARE ESTABLISHMENT,OP - City & South Locality - Cost of Care,Older People - City & South - Care,Supported Living
Cambridgeshire County Council,01-Jun-21,51301581173,"3,666.66",CHS GROUP,CARE ESTABLISHMENT,OP - City & South Locality - Cost of Care,Older People - City & South - Care,Supported Living
Cambridgeshire County Council,01-Jun-21,51301581173,"3,666.66",CHS GROUP,CARE ESTABLISHMENT,OP - City & South Locality - Cost of Care,Older People - City & South - Care,Supported Living
Cambridgeshire County Council,01-Jun-21,51301581173,"3,666.66",CHS GROUP,CARE ESTABLISHMENT,OP - City & South Locality - Cost of Care,Older People - City & South - Care,Supported Living
Cambridgeshire County Council,01-Jun-21,51301581173,"3,666.66",CHS GROUP,CARE ESTABLISHMENT,OP - City & South Locality - Cost of Care,Older People - City & South - Care,Supported Living
Cambridgeshire County Council,01-Jun-21,51301581376,"3,693.00",THE PRIVATE HIRE COMPANY,TRADE SUPPLIER,Home to School Transport - Mainstream,Home to School Transport Mainstream - Primary,Home to School - Contract
Cambridgeshire County Council,01-Jun-21,51301581172,"3,750.41",CHS GROUP,CARE ESTABLISHMENT,OP - City & South Locality - Cost of Care,Older People - City & South - Care,Supported Living
Cambridgeshire County Council,01-Jun-21,51301581172,"3,750.41",CHS GROUP,CARE ESTABLISHMENT,OP - City & South Locality - Cost of Care,Older People - City & South - Care,Supported Living
Cambridgeshire County Council,01-Jun-21,51301581172,"3,750.41",CHS GROUP,CARE ESTABLISHMENT,OP - City & South Locality - Cost of Care,Older People - City & South - Care,Supported Living
Cambridgeshire County Council,01-Jun-21,51301581172,"3,750.41",CHS GROUP,CARE ESTABLISHMENT,OP - City & South Locality - Cost of Care,Older People - City & South - Care,Supported Living
Cambridgeshire County Council,01-Jun-21,51301581172,"3,750.41",CHS GROUP,CARE ESTABLISHMENT,OP - City & South Locality - Cost of Care,Older People - City & South - Care,Supported Living
Cambridgeshire County Council,01-Jun-21,51301581172,"3,750.41",CHS GROUP,CARE ESTABLISHMENT,OP - City & South Locality - Cost of Care,Older People - City & South - Care,Supported Living
Cambridgeshire County Council,01-Jun-21,51301581172,"3,750.41",CHS GROUP,CARE ESTABLISHMENT,OP - City & South Locality - Cost of Care,Older People - City & South - Care,Supported Living
Cambridgeshire County Council,01-Jun-21,51301581172,"3,750.41",CHS GROUP,CARE ESTABLISHMENT,OP - City & South Locality - Cost of Care,Older People - City & South - Care,Supported Living
Cambridgeshire County Council,01-Jun-21,51301581172,"3,750.41",CHS GROUP,CARE ESTABLISHMENT,OP - City & South Locality - Cost of Care,Older People - City & South - Care,Supported Living
Cambridgeshire County Council,01-Jun-21,51301581172,"3,750.41",CHS GROUP,CARE ESTABLISHMENT,OP - City & South Locality - Cost of Care,Older People - City & South - Care,Supported Living
Cambridgeshire County Council,01-Jun-21,51301581172,"3,750.41",CHS GROUP,CARE ESTABLISHMENT,OP - City & South Locality - Cost of Care,Older People - City & South - Care,Supported Living
Cambridgeshire County Council,01-Jun-21,51301581172,"3,750.41",CHS GROUP,CARE ESTABLISHMENT,OP - City & South Locality - Cost of Care,Older People - City & South - Care,Supported Living
Cambridgeshire County Council,01-Jun-21,51301581433,"3,826.80",4X LIMITED T/A STEVES TAXI & PRIVATE HIRE,TRADE SUPPLIER,Home to School Transport - Special,Home to School Transport Special - Out of County,Home to School - Contract
Cambridgeshire County Council,01-Jun-21,51301581391,"4,180.00",DECKER BUS,TRADE SUPPLIER,Home to School Transport - Mainstream,Home to School Transport Mainstream - Secondary,Home to School - Contract
Cambridgeshire County Council,01-Jun-21,51301553752,"4,276.80",STAGECOACH SERVICES LTD,TRADE SUPPLIER,Passenger Transport other,Cambridgeshire Future Transport,Support - subsidised bus routes
Cambridgeshire County Council,01-Jun-21,51301581136,"4,320.00",BUILDING INTELLECT LTD,TRADE SUPPLIER,GCP - Smart Cambridge,GCP - Smart Cambridge,Professional Fees and Hired Services
Cambridgeshire County Council,01-Jun-21,51301581419,"4,327.25",D A PAYNE COACH HIRE LTD,TRADE SUPPLIER,Home to School Transport - Mainstream,Home to School Transport Mainstream - Secondary,Home to School - Contract
Cambridgeshire County Council,01-Jun-21,51301581402,"4,341.31",ROBINSON KIMBOLTON LIMITED,TRADE SUPPLIER,Home to School Transport - Mainstream,Home to School Transport Mainstream - Primary,Home to School - Contract
Cambridgeshire County Council,01-Jun-21,51301581403,"4,341.31",ROBINSON KIMBOLTON LIMITED,TRADE SUPPLIER,Home to School Transport - Mainstream,Home to School Transport Mainstream - Primary,Home to School - Contract
Cambridgeshire County Council,01-Jun-21,51301581048,"4,374.00",Top Notch Tutors,EDUCATION,Out of School Tuition,Out of School Provision - Education and Settings,Independent School Placements
Cambridgeshire County Council,01-Jun-21,51301579847,"4,501.44",LGSS LAW LTD,TRADE SUPPLIER,Legal Proceedings,Legal Proceedings,External Legal Fees
Cambridgeshire County Council,01-Jun-21,51301553710,"4,647.60",STAGECOACH SERVICES LTD,TRADE SUPPLIER,Passenger Transport other,Cambridgeshire Future Transport,Support - subsidised bus routes
Cambridgeshire County Council,01-Jun-21,51301581473,"4,707.30",ST TRANSPORT SOLUTIONS LTD,TRADE SUPPLIER,Home to School Transport - Mainstream,Home to School Transport Mainstream - Primary,Home to School - Contract
Cambridgeshire County Council,01-Jun-21,51301574045,"5,000.00",PETERBOROUGH WOMENS AID,CHARITY,Domestic Violence & Sexual Violence,MHCLG Grant,"Fixtures, Fittings and Furnishings"
Cambridgeshire County Council,01-Jun-21,51301566515,"5,000.00",ST CHRISTOPHER'S FELLOWSHIP,CARE ESTABLISHMENT,LAC Placements,Placements - independent fostering,Agency Placements - In County
Cambridgeshire County Council,01-Jun-21,51301581055,"5,241.72",Redacted Personal Data,INDIVIDUAL,Children's Disability Direct Payments,CSC Direct Payments,Direct Payments
Cambridgeshire County Council,01-Jun-21,51301581375,"5,267.00",THE PRIVATE HIRE COMPANY,TRADE SUPPLIER,Home to School Transport - Mainstream,Home to School Transport Mainstream - Secondary,Home to School - Contract
Cambridgeshire County Council,01-Jun-21,51301581396,"5,320.00",NATIONWIDE COACHES LTD,TRADE SUPPLIER,Home to School Transport - Special,Home to School Transport Special - Out of County,Home to School - Contract
Cambridgeshire County Council,01-Jun-21,51301565640,"5,333.26",ATG ACCESS LTD,COMPANY,Highways - IHMC,Highways - IHMC,Highways - Traffic Mgt Systems
Cambridgeshire County Council,01-Jun-21,51301581440,"5,442.38",PANTHER TAXIS LTD,TRADE SUPPLIER,Home to School Transport - Special,Home to School Transport Special - Post 16,Home to School - Contract
Cambridgeshire County Council,01-Jun-21,51301567934,"5,509.40",DPSMN LTD,TRADE SUPPLIER,SEND High Needs Top Up,"SEND Specialist Services,High Needs Top Up,Other institutions",Independent School Placements
Cambridgeshire County Council,01-Jun-21,51301565597,"5,533.49",RED BALLOON OF THE AIR,CARE ESTABLISHMENT,SEN Placements,Placements - Education,Independent School Placements
Cambridgeshire County Council,01-Jun-21,51301581152,"5,869.39",ENTERPRISE RENT-A-CAR UK LTD,TRADE SUPPLIER,Corporate Offices,Pool Cars,Leased Vehicle Costs
Cambridgeshire County Council,01-Jun-21,51301581183,"6,451.41",The Willows Day Nursery (March),EDUCATION,Early Years,Opportunity Area,Grants
Cambridgeshire County Council,01-Jun-21,51301581472,"6,484.80",ST TRANSPORT SOLUTIONS LTD,TRADE SUPPLIER,Home to School Transport - Special,Home to School Transport Special - Special School,Home to School - Contract
Cambridgeshire County Council,01-Jun-21,51301565588,"6,666.00",RED BALLOON OF THE AIR,CARE ESTABLISHMENT,SEN Placements,Placements - Education,Independent School Placements
Cambridgeshire County Council,01-Jun-21,51301565610,"6,666.00",RED BALLOON OF THE AIR,CARE ESTABLISHMENT,SEN Placements,Placements - Education,Independent School Placements
Cambridgeshire County Council,01-Jun-21,51301579845,"6,688.50",LGSS LAW LTD,TRADE SUPPLIER,Legal Proceedings,Legal Proceedings,External Legal Fees
Cambridgeshire County Council,01-Jun-21,51301581442,"6,751.01",PANTHER TAXIS LTD,TRADE SUPPLIER,Home to School Transport - Mainstream,Home to School Transport Mainstream - Secondary,Home to School - Contract
Cambridgeshire County Council,01-Jun-21,51301581140,"6,951.75",HUNT & COOMBS SOLICITORS,OTHER PUBLIC BODIES,Coroners,Coroners General,Private Contractors
Cambridgeshire County Council,01-Jun-21,51301581394,"6,973.00",LORDS TRAVEL,TRADE SUPPLIER,Home to School Transport - Mainstream,Home to School Transport Mainstream - Primary,Home to School - Contract
Cambridgeshire County Council,01-Jun-21,51301581405,"7,353.00",SAFFORDS COACHES LIMITED,TRADE SUPPLIER,Home to School Transport - Mainstream,Home to School Transport Mainstream - Primary,Home to School - Contract
Cambridgeshire County Council,01-Jun-21,51301581439,"7,678.20",PANTHER TAXIS LTD,TRADE SUPPLIER,Home to School Transport - Mainstream,Home to School Transport Mainstream - Primary,Home to School - Contract
Cambridgeshire County Council,01-Jun-21,51301569918,"7,680.00",INFOR-TECH LIMITED,COMPANY,Corporate IT Managed,Networks,Consultancy
Cambridgeshire County Council,01-Jun-21,51301581385,"7,695.00",C. L. TRAVEL LTD,TRADE SUPPLIER,Home to School Transport - Mainstream,Home to School Transport Mainstream - Primary,Home to School - Contract
Cambridgeshire County Council,01-Jun-21,51301566520,"7,698.00",RED BALLOON OF THE AIR,CARE ESTABLISHMENT,SEN Placements,Placements - Education,Independent School Placements
Cambridgeshire County Council,01-Jun-21,51301581373,"7,769.00",THE PRIVATE HIRE COMPANY,TRADE SUPPLIER,Home to School Transport - Special,Home to School Transport Special - Special School,Home to School - Contract
Cambridgeshire County Council,01-Jun-21,51301581438,"7,784.59",PANTHER TAXIS LTD,TRADE SUPPLIER,Home to School Transport - Special,Home to School Transport Special - Secondary,Home to School - Contract
Cambridgeshire County Council,01-Jun-21,51301565570,"8,333.00",RED BALLOON OF THE AIR,CARE ESTABLISHMENT,SEN Placements,Placements - Education,Independent School Placements
Cambridgeshire County Council,01-Jun-21,51301565632,"8,682.33",RED BALLOON OF THE AIR,CARE ESTABLISHMENT,SEN Placements,Placements - Education,Independent School Placements
Cambridgeshire County Council,01-Jun-21,51301578183,"8,687.50",DIAMOND LEARNING PARTNERSHIP TRUST,TRUST (OTHER),Opportunity Area,Opportunity Area,Professional Fees and Hired Services
Cambridgeshire County Council,01-Jun-21,51301581400,"9,357.00",NEALS TRAVEL LTD,TRADE SUPPLIER,Home to School Transport - Mainstream,Home to School Transport Mainstream - Primary,Home to School - Contract
Cambridgeshire County Council,01-Jun-21,51301581388,"9,419.25",COLLINS COACHES,TRADE SUPPLIER,Home to School Transport - Mainstream,Home to School Transport Mainstream - Primary,Home to School - Contract
Cambridgeshire County Council,01-Jun-21,51301553587,"9,453.60",STAGECOACH SERVICES LTD,TRADE SUPPLIER,Passenger Transport other,Cambridgeshire Future Transport,Support - subsidised bus routes
Cambridgeshire County Council,01-Jun-21,51301581395,"9,833.64",LORDS TRAVEL,TRADE SUPPLIER,Home to School Transport - Mainstream,Home to School Transport Mainstream - Secondary,Home to School - Contract
Cambridgeshire County Council,01-Jun-21,51301565923,"9,999.00",RED BALLOON OF THE AIR,CARE ESTABLISHMENT,SEN Placements,Placements - Education,Independent School Placements
Cambridgeshire County Council,01-Jun-21,51301565599,"9,999.00",RED BALLOON OF THE AIR,CARE ESTABLISHMENT,SEN Placements,Placements - Education,Independent School Placements
Cambridgeshire County Council,01-Jun-21,51301565601,"9,999.00",RED BALLOON OF THE AIR,CARE ESTABLISHMENT,SEN Placements,Placements - Education,Independent School Placements
Cambridgeshire County Council,01-Jun-21,51301581418,"10,184.00",D A PAYNE COACH HIRE LTD,TRADE SUPPLIER,Home to School Transport - Mainstream,Home to School Transport Mainstream - Primary,Home to School - Contract
Cambridgeshire County Council,01-Jun-21,51301565743,"10,314.40",RED BALLOON OF THE AIR,CARE ESTABLISHMENT,SEN Placements,Placements - Education,Independent School Placements
Cambridgeshire County Council,01-Jun-21,51301565573,"10,713.07",RED BALLOON OF THE AIR,CARE ESTABLISHMENT,SEN Placements,Placements - Education,Independent School Placements
Cambridgeshire County Council,01-Jun-21,51301581431,"11,228.40",4X LIMITED T/A STEVES TAXI & PRIVATE HIRE,TRADE SUPPLIER,Home to School Transport - Mainstream,Home to School Transport Mainstream - Primary,Home to School - Contract
Cambridgeshire County Council,01-Jun-21,51301581427,"11,349.24",4X LIMITED T/A STEVES TAXI & PRIVATE HIRE,TRADE SUPPLIER,Home to School Transport - Mainstream,Home to School Transport Mainstream - Secondary,Home to School - Contract
Cambridgeshire County Council,01-Jun-21,51301576597,"11,762.47",Team Q Maintenance Ltd,COMPANY,Corporate Offices,Cambridge Central Library,Building Repair and Maintenance
Cambridgeshire County Council,01-Jun-21,51301570457,"12,583.21",TETRA TECH LTD,TRADE SUPPLIER,GCP-Eastern Access,GCP - Eastern Access,Construction - External Professional Fees
Cambridgeshire County Council,01-Jun-21,51301581393,"12,768.00",GREYS OF ELY LTD,TRADE SUPPLIER,Home to School Transport - Mainstream,Home to School Transport Mainstream - Primary,Home to School - Contract
Cambridgeshire County Council,01-Jun-21,51301576674,"12,888.33",On Track Education Services Limited,EDUCATION,SEN Placements,Placements - Education,Independent School Placements
Cambridgeshire County Council,01-Jun-21,51301576676,"12,888.33",On Track Education Services Limited,EDUCATION,SEN Placements,Placements - Education,Independent School Placements
Cambridgeshire County Council,01-Jun-21,51301576677,"13,227.50",On Track Education Services Limited,EDUCATION,SEN Placements,Placements - Education,Independent School Placements
Cambridgeshire County Council,01-Jun-21,51301576675,"13,227.50",On Track Education Services Limited,EDUCATION,SEN Placements,Placements - Education,Independent School Placements
Cambridgeshire County Council,01-Jun-21,51301570307,"13,264.80",Spotless Interactive Limited,COMPANY,GCP - Communications,GCP - Strategic Communicatations,Professional Fees and Hired Services
Cambridgeshire County Council,01-Jun-21,51301581362,"15,000.00",CAMBRIDGE CITY COUNCIL,OTHER PUBLIC BODIES,PH Public Health Directorate,Public Health - COVID-19,Joint Partnership Funding
Cambridgeshire County Council,01-Jun-21,51301581157,"15,183.00",Knight Piesold Limited,COMPANY,MID - Public Transport,Guided Bus,External Legal Fees
Cambridgeshire County Council,01-Jun-21,51301581474,"16,286.40",ST TRANSPORT SOLUTIONS LTD,TRADE SUPPLIER,Home to School Transport - Special,Home to School Transport Special - Out of County,Home to School - Contract
Cambridgeshire County Council,01-Jun-21,51301580218,"17,900.24",DYNNIQ UK LTD,COMPANY,GCP - Histon Rd Bus and Cycling Priority,GCP - Histon Rd Bus and Cycling Priority,Construction - External Professional Fees
Cambridgeshire County Council,01-Jun-21,51301578186,"19,514.76",YMCA Trinity Group,COMPANY,Opportunity Area,Opportunity Area,Professional Fees and Hired Services
Cambridgeshire County Council,01-Jun-21,51301568157,"20,160.00",SENTINEL PARTNERS LIMITED,TRADE SUPPLIER,Early Years,Sector Development,Subscriptions
Cambridgeshire County Council,01-Jun-21,51301566451,"21,442.81",PARK HOUSE SCHOOL,EDUCATION,SEN Placements,Placements - Education,Independent School Placements
Cambridgeshire County Council,01-Jun-21,51301566449,"21,442.81",PARK HOUSE SCHOOL,EDUCATION,SEN Placements,Placements - Education,Independent School Placements
Cambridgeshire County Council,01-Jun-21,51301566450,"21,442.81",PARK HOUSE SCHOOL,EDUCATION,SEN Placements,Placements - Education,Independent School Placements
Cambridgeshire County Council,01-Jun-21,51301581429,"21,909.60",4X LIMITED T/A STEVES TAXI & PRIVATE HIRE,TRADE SUPPLIER,Home to School Transport - Special,Home to School Transport Special - Special School,Home to School - Contract
Cambridgeshire County Council,01-Jun-21,51301581441,"22,927.90",PANTHER TAXIS LTD,TRADE SUPPLIER,Home to School Transport - Special,Home to School Transport Special - Special School,Home to School - Contract
Cambridgeshire County Council,01-Jun-21,51301579801,"23,125.02",LGSS LAW LTD,TRADE SUPPLIER,Early Years Specialist Support,Procurement - TA Other (Disabled/Tribunal/Special proj),Independent School Placements
Cambridgeshire County Council,01-Jun-21,51301579848,"24,327.06",LGSS LAW LTD,TRADE SUPPLIER,Legal Proceedings,Legal Proceedings,External Legal Fees
Cambridgeshire County Council,01-Jun-21,51301563113,"26,222.95",NETWORK RAIL LTD,COMPANY,MID - Cycling Abbey Chesterton bridge,MID - Cycling Abbey Chesterton bridge,Construction - External Professional Fees
Cambridgeshire County Council,01-Jun-21,51301579921,"27,846.35",LGSS LAW LTD,TRADE SUPPLIER,Legal Proceedings,Legal Proceedings,External Legal Fees
Cambridgeshire County Council,01-Jun-21,51301581404,"29,110.00",SAFFORDS COACHES LIMITED,TRADE SUPPLIER,Home to School Transport - Mainstream,Home to School Transport Mainstream - Secondary,Home to School - Contract
Cambridgeshire County Council,01-Jun-21,51301581171,"31,881.96",Beaumont HEALTHCARE LTD,CARE ESTABLISHMENT,Commissioning - Dom Cars,Hancock-Funded Dom-Cars,Domiciliary Care
Cambridgeshire County Council,01-Jun-21,51301579920,"33,483.16",LGSS LAW LTD,TRADE SUPPLIER,Legal Proceedings,Legal Proceedings,External Legal Fees
Cambridgeshire County Council,01-Jun-21,51301568148,"34,440.00",CIVICA UK LTD,TRADE SUPPLIER,Libraries - Support,Support - IT,Computer software - annual licence agreement
Cambridgeshire County Council,01-Jun-21,51301581387,"36,358.75",COLLINS COACHES,TRADE SUPPLIER,Home to School Transport - Mainstream,Home to School Transport Mainstream - Secondary,Home to School - Contract
Cambridgeshire County Council,01-Jun-21,51301570384,"36,510.72",DYNNIQ UK LTD,COMPANY,Highways - Traffic Signals,Highways - Traffic Signals,Highways - Traffic Mgt Systems
Cambridgeshire County Council,01-Jun-21,51301581399,"36,651.00",NEALS TRAVEL LTD,TRADE SUPPLIER,Home to School Transport - Mainstream,Home to School Transport Mainstream - Secondary,Home to School - Contract
Cambridgeshire County Council,01-Jun-21,51301581392,"38,738.10",GREYS OF ELY LTD,TRADE SUPPLIER,Home to School Transport - Mainstream,Home to School Transport Mainstream - Secondary,Home to School - Contract
Cambridgeshire County Council,01-Jun-21,51301580898,"70,920.00",CHS GROUP,CARE ESTABLISHMENT,Local Assistance Scheme,Local Assistance Scheme,Grants to Voluntary Bodies
Cambridgeshire County Council,01-Jun-21,51301566504,"74,360.00",Mulberry Bush Organisation Ltd,EDUCATION,SEN Placements,Placements - Education,Independent School Placements
Cambridgeshire County Council,01-Jun-21,51301579875,"94,660.14",LGSS LAW LTD,TRADE SUPPLIER,Legal Proceedings,Legal Proceedings,External Legal Fees
Cambridgeshire County Council,01-Jun-21,51301565623,"127,500.00",Servelec Social Care Limited,TRADE SUPPLIER,Digital Systems,IM & IT - Adults,Computer software - annual licence agreement
Cambridgeshire County Council,01-Jun-21,51301581182,"296,810.66",OPUS LGSS (PEOPLE SOLUTIONS) LTD,TRADE SUPPLIER,Control Accounts,Suspense Account - General,Suspense Items
Cambridgeshire County Council,01-Jun-21,51301581004,"601,251.52",TARMAC TRADING LIMITED,COMPANY,GCP - Chisholm Trail cycle links,GCP - Chisholm Trail cycle links,"New Construction, Conversion and Renovation"
Cambridgeshire County Council,01-Jun-21,51301564335,"924,602.00",Cambridgeshire and Peterborough Combined Authority,OTHER PUBLIC BODIES,Financing items,Combined Authority,Agency Precepts and Levies
Cambridgeshire County Council,02-Jun-21,51301581834,"-7,714.20",Higher Hopes Ltd,CARE ESTABLISHMENT,LAC Placements,Placements - residential homes,Agency Placements - In County
Cambridgeshire County Council,02-Jun-21,51301581792,"-2,475.00",Flourish Fostering Ltd,CARE ESTABLISHMENT,LAC Placements,Placements - independent fostering,Agency Placements - Out of  County
Cambridgeshire County Council,02-Jun-21,51301581119,510.00,RANDSTAD PUBLIC SERVICES (EDU),EDUCATION,Out of School Tuition,Out of School Provision - Education and Settings,Independent School Placements
Cambridgeshire County Council,02-Jun-21,51301581123,510.00,RANDSTAD PUBLIC SERVICES (EDU),EDUCATION,Out of School Tuition,Out of School Provision - Education and Settings,Independent School Placements
Cambridgeshire County Council,02-Jun-21,51301581129,510.00,RANDSTAD PUBLIC SERVICES (EDU),EDUCATION,Out of School Tuition,Out of School Provision - Education and Settings,Independent School Placements
Cambridgeshire County Council,02-Jun-21,51301581131,510.00,RANDSTAD PUBLIC SERVICES (EDU),EDUCATION,Out of School Tuition,Out of School Provision - Education and Settings,Independent School Placements
Cambridgeshire County Council,02-Jun-21,51301581487,521.25,SANCTUARY HOME CARE LTD,CARE ESTABLISHMENT,Physical Disablity - Cost of Care,Countywide PD Service - Care,Supported Living
Cambridgeshire County Council,02-Jun-21,51301581495,525.00,SANCTUARY HOME CARE LTD,CARE ESTABLISHMENT,Physical Disablity - Cost of Care,Countywide PD Service - Care,Supported Living
Cambridgeshire County Council,02-Jun-21,51301581496,525.00,SANCTUARY HOME CARE LTD,CARE ESTABLISHMENT,Physical Disablity - Cost of Care,Countywide PD Service - Care,Supported Living
Cambridgeshire County Council,02-Jun-21,51301581559,525.00,SANCTUARY HOME CARE LTD,CARE ESTABLISHMENT,Physical Disablity - Cost of Care,Countywide PD Service - Care,Supported Living
Cambridgeshire County Council,02-Jun-21,51301568156,528.12,LGSS LAW LTD,TRADE SUPPLIER,Integrated Community Equipment Service,ICES (Pool),External Legal Fees
Cambridgeshire County Council,02-Jun-21,51301581775,541.80,ASKEWS AND HOLTS LIBRARY SERVICES LTD,TRADE SUPPLIER,Libraries - Stock & Distribution,Support - Stock & Distribution,Books and Multimedia Supplies
Cambridgeshire County Council,02-Jun-21,51301581125,558.00,RANDSTAD PUBLIC SERVICES (EDU),EDUCATION,Out of School Tuition,Out of School Provision - Education and Settings,Independent School Placements
Cambridgeshire County Council,02-Jun-21,51301581134,558.00,RANDSTAD PUBLIC SERVICES (EDU),EDUCATION,Out of School Tuition,Out of School Provision - Education and Settings,Independent School Placements
Cambridgeshire County Council,02-Jun-21,51301581782,564.05,ASKEWS AND HOLTS LIBRARY SERVICES LTD,TRADE SUPPLIER,Libraries - Stock & Distribution,Support - Stock & Distribution,Books and Multimedia Supplies
Cambridgeshire County Council,02-Jun-21,51301576662,570.00,Top Notch Tutors,EDUCATION,Schools Partnership Service,Virtual School LACPP Financing,Mandatory Student Awards
Cambridgeshire County Council,02-Jun-21,51301581664,625.00,THOMAS DRYER BEERS,TRADE SUPPLIER,Cambs Music Head of Business Development,Cambs Music Business Development,Grounds Maintenance
Cambridgeshire County Council,02-Jun-21,51301581730,637.26,MIDDLE LEVEL COMMISSIONERS,OTHER PUBLIC BODIES,Highways - Bridges,Highways - Bridges,Highways - Bridges
Cambridgeshire County Council,02-Jun-21,51301581579,646.51,LCC SUPPORT SERVICES,TRADE SUPPLIER,The Hub - Covid-19 Response,The Hub - Covid-19 Response,Building Cleaning
Cambridgeshire County Council,02-Jun-21,51301581120,660.00,RANDSTAD PUBLIC SERVICES (EDU),EDUCATION,Out of School Tuition,Out of School Provision - Education and Settings,Independent School Placements
Cambridgeshire County Council,02-Jun-21,51301581128,660.00,RANDSTAD PUBLIC SERVICES (EDU),EDUCATION,Out of School Tuition,Out of School Provision - Education and Settings,Independent School Placements
Cambridgeshire County Council,02-Jun-21,51301581124,660.00,RANDSTAD PUBLIC SERVICES (EDU),EDUCATION,Out of School Tuition,Out of School Provision - Education and Settings,Independent School Placements
Cambridgeshire County Council,02-Jun-21,51301581133,660.00,RANDSTAD PUBLIC SERVICES (EDU),EDUCATION,Out of School Tuition,Out of School Provision - Education and Settings,Independent School Placements
Cambridgeshire County Council,02-Jun-21,51301581643,669.78,AG FAMILY SUPPORT LTD,OTHER PUBLIC BODIES,Cambs City Assessment Team,Cambs City Assessment Team,Professional Fees and Hired Services
Cambridgeshire County Council,02-Jun-21,51301581749,687.50,Integrate Families,TRADE SUPPLIER,Adoption Team,Adoption Support Fund,Professional Fees and Hired Services
Cambridgeshire County Council,02-Jun-21,51301581590,700.00,ROMSEY MILL PLAYGROUP @ ROSS STREET,NURSERY,SEND High Needs Top Up,SEND Specialist Services-High needs top-up-Post 16,Independent School Placements
Cambridgeshire County Council,02-Jun-21,51301581577,709.75,BALFOUR BEATTY LIVING PLACES LIMITED,COMPANY,Street Lighting,Street Lighting PFI,Specialist Equipment For Service Delivery
Cambridgeshire County Council,02-Jun-21,51301581626,716.56,THE HELPING HANDS GROUP,CARE ESTABLISHMENT,SEND High Needs Top Up,SEND Specialist Services-High needs top-up-Post 16,Independent School Placements
Cambridgeshire County Council,02-Jun-21,51301581665,723.95,Knightsfield School,EDUCATION,Early Years Specialist Support,Procurement - TA Therapy in Special Schools,Independent School Placements
Cambridgeshire County Council,02-Jun-21,51301570746,765.00,LGSS LAW LTD,TRADE SUPPLIER,Strategic Management - Adults,Service Director - Adults and Safeguarding,External Legal Fees
Cambridgeshire County Council,02-Jun-21,51301581548,771.43,Redacted Personal Data,PARENT/GUARDIAN,Fostering,FCP allowances,Adoption Allowances
Cambridgeshire County Council,02-Jun-21,51301581633,834.00,RPS Consulting Services Limited,COMPANY,Corporate Offices,Huntingdon Youth Centre,Building Stuctural Maintenance - Planned
Cambridgeshire County Council,02-Jun-21,51301581644,872.00,Redacted Personal Data,INDIVIDUAL,Early Years Specialist Support,Procurement - TA LOVAAS,Living Spport Grants - Financial Assistance 18+
Cambridgeshire County Council,02-Jun-21,51301567917,942.24,LGSS LAW LTD,TRADE SUPPLIER,Strategic Management - Adults,Adults Assistant Director,External Legal Fees
Cambridgeshire County Council,02-Jun-21,51301581750,977.90,Diagrama Foundation,COMPANY,Adoption Team,Permanance and Adoption,Professional Fees and Hired Services
Cambridgeshire County Council,02-Jun-21,51301581751,977.90,Diagrama Foundation,COMPANY,Adoption Team,Permanance and Adoption,Professional Fees and Hired Services
Cambridgeshire County Council,02-Jun-21,51301581677,"1,028.57",Beats Learning Ltd,EDUCATION,SEND High Needs Top Up,SEND Specialist Services-High needs top-up-Post 16,Independent School Placements
Cambridgeshire County Council,02-Jun-21,51301581780,"1,041.40",ASKEWS AND HOLTS LIBRARY SERVICES LTD,TRADE SUPPLIER,Libraries - Stock & Distribution,Support - Stock & Distribution,Books and Multimedia Supplies
Cambridgeshire County Council,02-Jun-21,51301581661,"1,050.00",MUSICMARK,EDUCATION,Cambs Music Head of Business Development,Cambs Music Business Development,Educational Materials
Cambridgeshire County Council,02-Jun-21,51301581623,"1,061.15",THE HELPING HANDS GROUP,CARE ESTABLISHMENT,SEND High Needs Top Up,SEND Specialist Services-High needs top-up-Post 16,Independent School Placements
Cambridgeshire County Council,02-Jun-21,51301581905,"1,178.58",BRITISH TELECOMMUNICATIONS PLC,COMPANY,Park & Ride Parking,Park and Ride Admin,Telephone costs
Cambridgeshire County Council,02-Jun-21,51301581642,"1,200.00",WOODGATE & CLARK,TRADE SUPPLIER,Insurance Fund,Fire,Insurance Fund External
Cambridgeshire County Council,02-Jun-21,51301581578,"1,311.00",LCC SUPPORT SERVICES,TRADE SUPPLIER,Corporate Offices,Stibbington Centre,Grounds Maintenance
Cambridgeshire County Council,02-Jun-21,51301581533,"1,424.00",SOUTH CAMBRIDGESHIRE DISTRICT COUNCIL,OTHER PUBLIC BODIES,Lateral Flow Testing Grant,Lateral Flow Testing Grant,Specialist Waste Disposal
Cambridgeshire County Council,02-Jun-21,51301581596,"1,440.00",Allies and Morrison LLP,COMPANY,Housing Schemes,Housing Schemes,Construction - External Professional Fees
Cambridgeshire County Council,02-Jun-21,51301581506,"1,620.00",NATIONAL TEACHING & ADVISORY SERVICE FOR LOOKED AFTER CHILDREN (NT & AS),OTHER PUBLIC BODIES,Cambridgeshire Alternative Education Service (SchFin),CAES - Salaries,Professional Fees and Hired Services
Cambridgeshire County Council,02-Jun-21,51301581531,"1,780.00",SOUTH CAMBRIDGESHIRE DISTRICT COUNCIL,OTHER PUBLIC BODIES,Lateral Flow Testing Grant,Lateral Flow Testing Grant,Specialist Waste Disposal
Cambridgeshire County Council,02-Jun-21,51301581620,"1,856.54",THE HELPING HANDS GROUP,CARE ESTABLISHMENT,SEND High Needs Top Up,SEND Specialist Services-High needs top-up-Post 16,Independent School Placements
Cambridgeshire County Council,02-Jun-21,51301581619,"1,882.73",THE HELPING HANDS GROUP,CARE ESTABLISHMENT,SEND High Needs Top Up,SEND Specialist Services-High needs top-up-Post 16,Independent School Placements
Cambridgeshire County Council,02-Jun-21,51301581624,"1,886.53",THE HELPING HANDS GROUP,CARE ESTABLISHMENT,SEND High Needs Top Up,SEND Specialist Services-High needs top-up-Post 16,Independent School Placements
Cambridgeshire County Council,02-Jun-21,51301581729,"2,073.60",FRESH START IN EDUCATION,CARE ESTABLISHMENT,Out of School Tuition,Out of School Provision - Education and Settings,Independent School Placements
Cambridgeshire County Council,02-Jun-21,51301581671,"2,139.10",Beats Learning Ltd,EDUCATION,SEND High Needs Top Up,SEND Specialist Services-High needs top-up-Post 16,Independent School Placements
Cambridgeshire County Council,02-Jun-21,51301567984,"2,150.40",VIRGIN MEDIA LTD,COMPANY,EastNet,EastNet,Telephone costs
Cambridgeshire County Council,02-Jun-21,51301581505,"2,160.00",NATIONAL TEACHING & ADVISORY SERVICE FOR LOOKED AFTER CHILDREN (NT & AS),OTHER PUBLIC BODIES,Cambridgeshire Alternative Education Service (SchFin),CAES - Salaries,Professional Fees and Hired Services
Cambridgeshire County Council,02-Jun-21,51301581507,"2,160.00",NATIONAL TEACHING & ADVISORY SERVICE FOR LOOKED AFTER CHILDREN (NT & AS),OTHER PUBLIC BODIES,Cambridgeshire Alternative Education Service (SchFin),CAES - Salaries,Professional Fees and Hired Services
Cambridgeshire County Council,02-Jun-21,51301567885,"2,310.48",SC Electrical Contractors,SOLETRADER,County Farms,County Farms,County Farms Maintenance
Cambridgeshire County Council,02-Jun-21,51301581915,"2,400.00",CAMBRIDGESHIRE CHAMBER OF COMMERCE,LOCAL CLUBS & GROUPS,Exec Director,Executive Director - Place & Economy,Subscriptions
Cambridgeshire County Council,02-Jun-21,51301580995,"2,632.24",WCL UK LTD,TRADE SUPPLIER,ICT Service,ICT Service Sales,Materials for resale
Cambridgeshire County Council,02-Jun-21,51301581869,"2,658.12",NEXUS FOSTERING LTD,CARE ESTABLISHMENT,LAC Placements,Placements - independent fostering,Agency Placements - In County
Cambridgeshire County Council,02-Jun-21,51301581866,"2,660.00",Active Ark Ltd,CARE ESTABLISHMENT,LAC Placements,Placements - residential homes,Agency Placements - Out of  County
Cambridgeshire County Council,02-Jun-21,51301581752,"2,729.52",SOHAM PLAYGROUP@ST ANDREWS,NURSERY,SEND High Needs Top Up,SEND Specialist Services-High needs top-up-Early Years,Independent School Placements
Cambridgeshire County Council,02-Jun-21,51301581856,"2,890.76",QUALITY FOSTER CARE LTD,CARE ESTABLISHMENT,LAC Placements,Placements - independent fostering,Agency Placements - Out of  County
Cambridgeshire County Council,02-Jun-21,51301581625,"2,971.66",THE HELPING HANDS GROUP,CARE ESTABLISHMENT,SEND High Needs Top Up,SEND Specialist Services-High needs top-up-Post 16,Independent School Placements
Cambridgeshire County Council,02-Jun-21,51301581871,"3,046.99",NEXUS FOSTERING LTD,CARE ESTABLISHMENT,LAC Placements,Placements - independent fostering,Agency Placements - Out of  County
Cambridgeshire County Council,02-Jun-21,51301581621,"3,094.24",THE HELPING HANDS GROUP,CARE ESTABLISHMENT,SEND High Needs Top Up,SEND Specialist Services-High needs top-up-Post 16,Independent School Placements
Cambridgeshire County Council,02-Jun-21,51301581872,"3,131.00",NEXUS FOSTERING LTD,CARE ESTABLISHMENT,LAC Placements,Placements - independent fostering,Agency Placements - In County
Cambridgeshire County Council,02-Jun-21,51301581873,"3,131.00",NEXUS FOSTERING LTD,CARE ESTABLISHMENT,LAC Placements,Placements - independent fostering,Agency Placements - Out of  County
Cambridgeshire County Council,02-Jun-21,51301581875,"3,131.00",NEXUS FOSTERING LTD,CARE ESTABLISHMENT,LAC Placements,Placements - independent fostering,Agency Placements - In County
Cambridgeshire County Council,02-Jun-21,51301581877,"3,131.00",NEXUS FOSTERING LTD,CARE ESTABLISHMENT,LAC Placements,Placements - independent fostering,Agency Placements - In County
Cambridgeshire County Council,02-Jun-21,51301581870,"3,131.00",NEXUS FOSTERING LTD,CARE ESTABLISHMENT,LAC Placements,Placements - independent fostering,Agency Placements - In County
Cambridgeshire County Council,02-Jun-21,51301581882,"3,131.00",NEXUS FOSTERING LTD,CARE ESTABLISHMENT,LAC Placements,Placements - independent fostering,Agency Placements - Out of  County
Cambridgeshire County Council,02-Jun-21,51301581885,"3,131.00",NEXUS FOSTERING LTD,CARE ESTABLISHMENT,LAC Placements,Placements - independent fostering,Agency Placements - In County
Cambridgeshire County Council,02-Jun-21,51301581855,"3,219.24",QUALITY FOSTER CARE LTD,CARE ESTABLISHMENT,LAC Placements,Placements - independent fostering,Agency Placements - Out of  County
Cambridgeshire County Council,02-Jun-21,51301581805,"3,288.21",Eastern Family Services Ltd t/a Eastern Fostering Services,CARE ESTABLISHMENT,LAC Placements,Placements - independent fostering,Agency Placements - Out of  County
Cambridgeshire County Council,02-Jun-21,51301581807,"3,288.21",Eastern Family Services Ltd t/a Eastern Fostering Services,CARE ESTABLISHMENT,LAC Placements,Placements - independent fostering,Agency Placements - Out of  County
Cambridgeshire County Council,02-Jun-21,51301581721,"3,295.48",Redacted Personal Data,INDIVIDUAL,Coroners,Coroners General,Professional Fees and Hired Services
Cambridgeshire County Council,02-Jun-21,51301581815,"3,300.00",Eastern Family Services Ltd t/a Eastern Fostering Services,CARE ESTABLISHMENT,LAC Placements,Placements - independent fostering,Agency Placements - In County
Cambridgeshire County Council,02-Jun-21,51301581821,"3,410.00",FosteringUK Ltd,CARE ESTABLISHMENT,LAC Placements,Placements - independent fostering,Agency Placements - Out of  County
Cambridgeshire County Council,02-Jun-21,51301581817,"3,454.29",FosteringUK Ltd,CARE ESTABLISHMENT,LAC Placements,Placements - independent fostering,Agency Placements - Out of  County
Cambridgeshire County Council,02-Jun-21,51301581819,"3,454.29",FosteringUK Ltd,CARE ESTABLISHMENT,LAC Placements,Placements - independent fostering,Agency Placements - Out of  County
Cambridgeshire County Council,02-Jun-21,51301581842,"3,485.29",ORANGE GROVE FOSTER CARE,CARE ESTABLISHMENT,LAC Placements,Placements - independent fostering,Agency Placements - In County
Cambridgeshire County Council,02-Jun-21,51301581848,"3,485.29",ORANGE GROVE FOSTER CARE,CARE ESTABLISHMENT,LAC Placements,Placements - independent fostering,Agency Placements - In County
Cambridgeshire County Council,02-Jun-21,51301581840,"3,502.69",ORANGE GROVE FOSTER CARE,CARE ESTABLISHMENT,LAC Placements,Placements - independent fostering,Agency Placements - In County
Cambridgeshire County Council,02-Jun-21,51301581851,"3,538.43",ORANGE GROVE FOSTER CARE,CARE ESTABLISHMENT,LAC Placements,Placements - independent fostering,Agency Placements - Out of  County
Cambridgeshire County Council,02-Jun-21,51301581854,"3,538.43",ORANGE GROVE FOSTER CARE,CARE ESTABLISHMENT,LAC Placements,Placements - independent fostering,Agency Placements - Out of  County
Cambridgeshire County Council,02-Jun-21,51301581880,"3,596.00",NEXUS FOSTERING LTD,CARE ESTABLISHMENT,LAC Placements,Placements - independent fostering,Agency Placements - In County
Cambridgeshire County Council,02-Jun-21,51301581883,"3,596.00",NEXUS FOSTERING LTD,CARE ESTABLISHMENT,LAC Placements,Placements - independent fostering,Agency Placements - Out of  County
Cambridgeshire County Council,02-Jun-21,51301581828,"3,596.00",NEW CHAPTERS FOSTERCARE,CARE ESTABLISHMENT,LAC Placements,Placements - independent fostering,Agency Placements - Out of  County
Cambridgeshire County Council,02-Jun-21,51301581826,"3,619.25",KASPER LTD,CARE ESTABLISHMENT,LAC Placements,Placements - independent fostering,Agency Placements - Out of  County
Cambridgeshire County Council,02-Jun-21,51301581844,"3,620.49",ORANGE GROVE FOSTER CARE,CARE ESTABLISHMENT,LAC Placements,Placements - independent fostering,Agency Placements - Out of  County
Cambridgeshire County Council,02-Jun-21,51301581846,"3,620.49",ORANGE GROVE FOSTER CARE,CARE ESTABLISHMENT,LAC Placements,Placements - independent fostering,Agency Placements - Out of  County
Cambridgeshire County Council,02-Jun-21,51301581810,"3,653.57",Eastern Family Services Ltd t/a Eastern Fostering Services,CARE ESTABLISHMENT,LAC Placements,Placements - independent fostering,Agency Placements - Out of  County
Cambridgeshire County Council,02-Jun-21,51301581813,"3,653.57",Eastern Family Services Ltd t/a Eastern Fostering Services,CARE ESTABLISHMENT,LAC Placements,Placements - independent fostering,Agency Placements - In County
Cambridgeshire County Council,02-Jun-21,51301581799,"3,653.57",Eastern Family Services Ltd t/a Eastern Fostering Services,CARE ESTABLISHMENT,LAC Placements,Placements - independent fostering,Agency Placements - Out of  County
Cambridgeshire County Council,02-Jun-21,51301581803,"3,653.57",Eastern Family Services Ltd t/a Eastern Fostering Services,CARE ESTABLISHMENT,LAC Placements,Placements - independent fostering,Agency Placements - Out of  County
Cambridgeshire County Council,02-Jun-21,51301581879,"3,689.00",NEXUS FOSTERING LTD,CARE ESTABLISHMENT,LAC Placements,Placements - independent fostering,Agency Placements - In County
Cambridgeshire County Council,02-Jun-21,51301581786,"3,782.00",CREDO CARE,CARE ESTABLISHMENT,LAC Placements,Placements - independent fostering,Agency Placements - Out of  County
Cambridgeshire County Council,02-Jun-21,51301581897,"3,884.30",Following Whispers Family Service Consultancy Ltd,CARE ESTABLISHMENT,LAC Placements,Placements - independent fostering,Agency Placements - Out of  County
Cambridgeshire County Council,02-Jun-21,51301581795,"3,937.00",FOSTERPLUS LTD,CARE ESTABLISHMENT,LAC Placements,Placements - independent fostering,Agency Placements - Out of  County
Cambridgeshire County Council,02-Jun-21,51301581837,"3,963.35",People Who Foster Ltd,CARE ESTABLISHMENT,LAC Placements,Placements - independent fostering,Agency Placements - Out of  County
Cambridgeshire County Council,02-Jun-21,51301581791,"4,406.43",MOSAIC FOSTER CARE LTD,CARE ESTABLISHMENT,LAC Placements,Placements - independent fostering,Agency Placements - Out of  County
Cambridgeshire County Council,02-Jun-21,51301581584,"4,700.00",Clacton County High School,EDUCATION,Recoupment,Procurement - Out-County Mainstream,Independent School Placements
Cambridgeshire County Council,02-Jun-21,51301581787,"4,871.43",CREDO CARE,CARE ESTABLISHMENT,LAC Placements,Placements - independent fostering,Agency Placements - Out of  County
Cambridgeshire County Council,02-Jun-21,51301581896,"5,088.43",Beams Foster Care and Family Services Ltd,CARE ESTABLISHMENT,LAC Placements,Placements - independent fostering,Agency Placements - Out of  County
Cambridgeshire County Council,02-Jun-21,51301581825,"5,092.99",FosteringUK Ltd,CARE ESTABLISHMENT,LAC Placements,Placements - independent fostering,Agency Placements - Out of  County
Cambridgeshire County Council,02-Jun-21,51301581594,"5,573.10",UK POWER NETWORKS (OPERATIONS) LTD,COMPANY,Investment in the CCC Asset Portfolio,Spokes - Roger Ascham,Buildings - Mechanical and Electrical
Cambridgeshire County Council,02-Jun-21,51301581663,"5,573.39",Knightsfield School,EDUCATION,Recoupment,Procurement - Out-County Special Schools & ER,Independent School Placements
Cambridgeshire County Council,02-Jun-21,51301581789,"5,580.00",DIVERSE CARE,TRADE SUPPLIER,LAC Placements,Placements - independent fostering,Agency Placements - Out of  County
Cambridgeshire County Council,02-Jun-21,51301581788,"6,191.14",CREDO CARE,CARE ESTABLISHMENT,LAC Placements,Placements - independent fostering,Agency Placements - Out of  County
Cambridgeshire County Council,02-Jun-21,51301581731,"6,574.00",Hartmore Education Limited,EDUCATION,SEN Placements,Placements - Education,Independent School Placements
Cambridgeshire County Council,02-Jun-21,51301581785,"6,642.99",CALDECOTT FOSTERING LTD,CARE ESTABLISHMENT,LAC Placements,Placements - independent fostering,Agency Placements - Out of  County
Cambridgeshire County Council,02-Jun-21,51301581581,"6,720.00",Allies and Morrison LLP,COMPANY,Housing Schemes,Housing Schemes,Construction - External Professional Fees
Cambridgeshire County Council,02-Jun-21,51301581722,"7,068.00",Sugarman Group,EDUCATION,Out of School Tuition,Out of School Provision - Education and Settings,Independent School Placements
Cambridgeshire County Council,02-Jun-21,51301581887,"7,314.29",KITES CHILDRENS SERVICES LIMITED,CARE ESTABLISHMENT,LAC Placements,Placements - residential schools,Agency Placements - Out of  County
Cambridgeshire County Council,02-Jun-21,51301581793,"9,450.00",Flourish Fostering Ltd,CARE ESTABLISHMENT,LAC Placements,Placements - independent fostering,Agency Placements - Out of  County
Cambridgeshire County Council,02-Jun-21,51301581860,"10,628.57",BREAK,CHARITY,LAC Placements,Placements - residential homes,Agency Placements - Out of  County
Cambridgeshire County Council,02-Jun-21,51301581858,"12,621.43",BREAK,CHARITY,LAC Placements,Placements - residential homes,Agency Placements - Out of  County
Cambridgeshire County Council,02-Jun-21,51301581836,"14,171.43",Florinee Homes Ltd,CARE ESTABLISHMENT,LAC Placements,Placements - residential homes,Agency Placements - In County
Cambridgeshire County Council,02-Jun-21,51301581829,"14,699.54",ETHELBERT SPECIALIST HOMES LTD,TRADE SUPPLIER,LAC Placements,Placements - residential homes,Agency Placements - Out of  County
Cambridgeshire County Council,02-Jun-21,51301581830,"15,642.86",CHARTWELL HOUSE,CARE ESTABLISHMENT,LAC Placements,Placements - residential homes,Agency Placements - In County
Cambridgeshire County Council,02-Jun-21,51301581831,"16,500.00",CHARTWELL HOUSE,CARE ESTABLISHMENT,LAC Placements,Placements - residential homes,Agency Placements - In County
Cambridgeshire County Council,02-Jun-21,51301581832,"16,500.00",CHARTWELL HOUSE,CARE ESTABLISHMENT,LAC Placements,Placements - residential homes,Agency Placements - In County
Cambridgeshire County Council,02-Jun-21,51301581833,"17,670.00",MJ Children�s Services,CARE ESTABLISHMENT,LAC Placements,Placements - residential disability,Agency Placements - In County
Cambridgeshire County Council,02-Jun-21,51301581891,"17,714.29",Oak House Children's Home Ltd,CARE ESTABLISHMENT,LAC Placements,Placements - residential homes,Agency Placements - Out of  County
Cambridgeshire County Council,02-Jun-21,51301581892,"18,000.00",CHARTWELL HOUSE,CARE ESTABLISHMENT,LAC Placements,Placements - residential homes,Agency Placements - In County
Cambridgeshire County Council,02-Jun-21,51301581838,"18,400.71",NEW REFLEXIONS REFLEXION CARE GROUP,CARE ESTABLISHMENT,LAC Placements,Placements - residential homes,Agency Placements - Out of  County
Cambridgeshire County Council,02-Jun-21,51301581889,"19,463.04",4D CARE LIMITED,CARE ESTABLISHMENT,LAC Placements,Placements - residential schools,Agency Placements - In County
Cambridgeshire County Council,02-Jun-21,51301581865,"19,906.43",PLUS ONE (SOUTH WEST) LTD,CARE ESTABLISHMENT,LAC Placements,Placements - residential homes,Agency Placements - Out of  County
Cambridgeshire County Council,02-Jun-21,51301581861,"19,928.35",Higher Hopes Ltd,CARE ESTABLISHMENT,LAC Placements,Placements - residential homes,Agency Placements - In County
Cambridgeshire County Council,02-Jun-21,51301581898,"20,072.05",CLOVER CHILDCARE SERVICES LTD,CARE ESTABLISHMENT,LAC Placements,Placements - residential homes,Agency Placements - Out of  County
Cambridgeshire County Council,02-Jun-21,51301581537,"20,452.00",Lime Academy Orton - Lime Trust,EDUCATION,Recoupment,Procurement - Out-County Special Schools & ER,Independent School Placements
Cambridgeshire County Council,02-Jun-21,51301581867,"20,615.00",Active Ark Ltd,CARE ESTABLISHMENT,LAC Placements,Placements - residential homes,Agency Placements - Out of  County
Cambridgeshire County Council,02-Jun-21,51301581839,"20,615.00",Active Ark Ltd,CARE ESTABLISHMENT,LAC Placements,Placements - residential homes,Agency Placements - Out of  County
Cambridgeshire County Council,02-Jun-21,51301581886,"20,899.58",Channels and Choices Ltd,CARE ESTABLISHMENT,LAC Placements,Placements - residential homes,Agency Placements - Out of  County
Cambridgeshire County Council,02-Jun-21,51301581894,"21,035.71",TulipCare,CARE ESTABLISHMENT,LAC Placements,Placements - residential homes,Agency Placements - Out of  County
Cambridgeshire County Council,02-Jun-21,51301578573,"23,294.73",TOTAL GAS AND POWER,TRADE SUPPLIER,Signals,Signals Works,Street Light Energy
Cambridgeshire County Council,02-Jun-21,51301581864,"24,932.86",Childhood First,CARE ESTABLISHMENT,LAC Placements,Placements - residential homes,Agency Placements - Out of  County
Cambridgeshire County Council,02-Jun-21,51301581863,"26,518.60",BRIGHT FUTURES CARE LTD,CARE ESTABLISHMENT,LAC Placements,Placements - residential disability,Agency Placements - Out of  County
Cambridgeshire County Council,02-Jun-21,51301581862,"31,543.74",Cascade (Banks House) Ltd,CARE ESTABLISHMENT,LAC Placements,Placements - residential disability,Agency Placements - In County
Cambridgeshire County Council,02-Jun-21,51301578598,"148,704.06",TOTAL GAS AND POWER,TRADE SUPPLIER,Street Lighting,Street Lighting Energy,Street Light Energy
Cambridgeshire County Council,03-Jun-21,51301582015,"-1,530.00",TRANSITION CARE PETERBOROUGH LTD,CARE ESTABLISHMENT,LAC Placements,Placements - supported accommodation,Agency Placements - In County
Cambridgeshire County Council,03-Jun-21,51301582011,"-1,530.00",TRANSITION CARE PETERBOROUGH LTD,CARE ESTABLISHMENT,LAC Placements,Placements - supported accommodation,Agency Placements - In County
Cambridgeshire County Council,03-Jun-21,51301582013,"-1,530.00",TRANSITION CARE PETERBOROUGH LTD,CARE ESTABLISHMENT,LAC Placements,Placements - supported accommodation,Agency Placements - In County
Cambridgeshire County Council,03-Jun-21,51301582017,-874.28,TRANSITION CARE PETERBOROUGH LTD,CARE ESTABLISHMENT,LAC Placements,Placements - supported accommodation,Agency Placements - In County
Cambridgeshire County Council,03-Jun-21,51301582019,-655.72,TRANSITION CARE PETERBOROUGH LTD,CARE ESTABLISHMENT,LAC Placements,Placements - supported accommodation,Agency Placements - In County
Cambridgeshire County Council,03-Jun-21,51301581922,510.00,Redacted Personal Data,INDIVIDUAL,Children's Disability Direct Payments,CSC Direct Payments,Direct Payments
Cambridgeshire County Council,03-Jun-21,51301582057,520.00,Redacted Personal Data,INDIVIDUAL,SEND High Needs Top Up,"SEND Specialist Services,High Needs Top Up,Other institutions",Independent School Placements
Cambridgeshire County Council,03-Jun-21,51301582073,536.80,Redacted Personal Data,INDIVIDUAL,LD - Fenland Locality - Cost of Care,LD - Fenland  - Care,Day Care
Cambridgeshire County Council,03-Jun-21,51301582067,614.03,Redacted Personal Data,INDIVIDUAL,LD - Hunts Locality - Cost of Care,LD - Huntingdonshire - Care,Day Care
Cambridgeshire County Council,03-Jun-21,51301567547,627.70,CCS MEDIA LIMITED,TRADE SUPPLIER,ICT Service,ICT Service Sales,Materials for resale
Cambridgeshire County Council,03-Jun-21,51301582006,631.72,KEY2 FUTURES LTD,TRADE SUPPLIER,Unaccompanied Asylum Seeking Children,Unaccompanied Asylum Seeking Children >18 Leaving Care,Living Spport Grants - Financial Assistance 18+
Cambridgeshire County Council,03-Jun-21,51301581920,664.23,Redacted Personal Data,INDIVIDUAL,Children's Disability Direct Payments,CSC Direct Payments,Direct Payments
Cambridgeshire County Council,03-Jun-21,51301582082,682.15,SANCTUARY HOUSING ASSOCIATION,CARE ESTABLISHMENT,Mental Health Commissioning,Mental Health Commissioning,Supported Living
Cambridgeshire County Council,03-Jun-21,51301582000,744.00,FOSTER CARE ASSOCIATES LTD (FCA),CARE ESTABLISHMENT,LAC Placements,Placements - independent fostering,Agency Placements - Out of  County
Cambridgeshire County Council,03-Jun-21,51301581996,744.00,FOSTER CARE ASSOCIATES LTD (FCA),CARE ESTABLISHMENT,LAC Placements,Placements - independent fostering,Agency Placements - Out of  County
Cambridgeshire County Council,03-Jun-21,51301582082,795.84,SANCTUARY HOUSING ASSOCIATION,CARE ESTABLISHMENT,Mental Health Commissioning,Mental Health Commissioning,Supported Living
Cambridgeshire County Council,03-Jun-21,51301582082,795.84,SANCTUARY HOUSING ASSOCIATION,CARE ESTABLISHMENT,Mental Health Commissioning,Mental Health Commissioning,Supported Living
Cambridgeshire County Council,03-Jun-21,51301582082,795.84,SANCTUARY HOUSING ASSOCIATION,CARE ESTABLISHMENT,Mental Health Commissioning,Mental Health Commissioning,Supported Living
Cambridgeshire County Council,03-Jun-21,51301582082,795.84,SANCTUARY HOUSING ASSOCIATION,CARE ESTABLISHMENT,Mental Health Commissioning,Mental Health Commissioning,Supported Living
Cambridgeshire County Council,03-Jun-21,51301582082,795.84,SANCTUARY HOUSING ASSOCIATION,CARE ESTABLISHMENT,Mental Health Commissioning,Mental Health Commissioning,Supported Living
Cambridgeshire County Council,03-Jun-21,51301582082,795.84,SANCTUARY HOUSING ASSOCIATION,CARE ESTABLISHMENT,Mental Health Commissioning,Mental Health Commissioning,Supported Living
Cambridgeshire County Council,03-Jun-21,51301582082,795.84,SANCTUARY HOUSING ASSOCIATION,CARE ESTABLISHMENT,Mental Health Commissioning,Mental Health Commissioning,Supported Living
Cambridgeshire County Council,03-Jun-21,51301582082,795.84,SANCTUARY HOUSING ASSOCIATION,CARE ESTABLISHMENT,Mental Health Commissioning,Mental Health Commissioning,Supported Living
Cambridgeshire County Council,03-Jun-21,51301582082,795.84,SANCTUARY HOUSING ASSOCIATION,CARE ESTABLISHMENT,Mental Health Commissioning,Mental Health Commissioning,Supported Living
Cambridgeshire County Council,03-Jun-21,51301581995,852.00,FOSTER CARE ASSOCIATES LTD (FCA),CARE ESTABLISHMENT,LAC Placements,Placements - independent fostering,Agency Placements - Out of  County
Cambridgeshire County Council,03-Jun-21,51301570725,873.88,AVAILL HEALTHCARE,CARE ESTABLISHMENT,IHPS - South Accommodation Services,40 & 44 Russell Street,Agency Staff
Cambridgeshire County Council,03-Jun-21,51301582088,"1,044.00",Sensory Childcare,TRADE SUPPLIER,Children's Disability Direct Payments,CSC Direct Payments,Direct Payments
Cambridgeshire County Council,03-Jun-21,51301570721,"1,065.24",AVAILL HEALTHCARE,CARE ESTABLISHMENT,IHPS - South Accommodation Services,IHPS Jasmine House,Agency Staff
Cambridgeshire County Council,03-Jun-21,51301581924,"1,200.00",Redacted Personal Data,INDIVIDUAL,Children's Disability Direct Payments,CSC Direct Payments,Direct Payments
Cambridgeshire County Council,03-Jun-21,51301582108,"1,224.00",BY THE BRIDGE LTD,CARE ESTABLISHMENT,LAC Placements,Placements - independent fostering,Agency Placements - Out of  County
Cambridgeshire County Council,03-Jun-21,51301580494,"1,250.00",CAMBOURNE PARISH COUNCIL,OTHER PUBLIC BODIES,Lateral Flow Testing Grant,Lateral Flow Testing Grant,Casual hire of facilities
Cambridgeshire County Council,03-Jun-21,51301582014,"1,530.00",TRANSITION CARE PETERBOROUGH LTD,CARE ESTABLISHMENT,LAC Placements,Placements - supported accommodation,Agency Placements - In County
Cambridgeshire County Council,03-Jun-21,51301582012,"1,530.00",TRANSITION CARE PETERBOROUGH LTD,CARE ESTABLISHMENT,LAC Placements,Placements - supported accommodation,Agency Placements - In County
Cambridgeshire County Council,03-Jun-21,51301582018,"1,530.00",TRANSITION CARE PETERBOROUGH LTD,CARE ESTABLISHMENT,LAC Placements,Placements - supported accommodation,Agency Placements - In County
Cambridgeshire County Council,03-Jun-21,51301582016,"1,530.00",TRANSITION CARE PETERBOROUGH LTD,CARE ESTABLISHMENT,LAC Placements,Placements - supported accommodation,Agency Placements - In County
Cambridgeshire County Council,03-Jun-21,51301582010,"1,538.75",KEY2 FUTURES LTD,TRADE SUPPLIER,Unaccompanied Asylum Seeking Children,Unaccompanied Asylum Seeking Children <18,Asylum Seekers
Cambridgeshire County Council,03-Jun-21,51301582079,"1,542.86",Gable Healthcare Services,CARE ESTABLISHMENT,LD - Head of Service,Head of LDP,Supported Living
Cambridgeshire County Council,03-Jun-21,51301582098,"1,628.00",Redacted Personal Data,INDIVIDUAL,Children's Disability Direct Payments,CSC Direct Payments,Direct Payments
Cambridgeshire County Council,03-Jun-21,51301582055,"1,675.00",Redacted Personal Data,INDIVIDUAL,SEND High Needs Top Up,"SEND Specialist Services,High Needs Top Up,Other institutions",Independent School Placements
Cambridgeshire County Council,03-Jun-21,51301582058,"1,762.50",Redacted Personal Data,INDIVIDUAL,SEND High Needs Top Up,"SEND Specialist Services,High Needs Top Up,Other institutions",Independent School Placements
Cambridgeshire County Council,03-Jun-21,51301581934,"1,989.00",INTEGRATED SERVICES PROGRAMME (ISP),CARE ESTABLISHMENT,LAC Placements,Placements - independent fostering,Agency Placements - Out of  County
Cambridgeshire County Council,03-Jun-21,51301582008,"1,995.43",KEY2 FUTURES LTD,TRADE SUPPLIER,Unaccompanied Asylum Seeking Children,Unaccompanied Asylum Seeking Children >18 Leaving Care,Living Spport Grants - Financial Assistance 18+
Cambridgeshire County Council,03-Jun-21,51301582079,"2,057.14",Gable Healthcare Services,CARE ESTABLISHMENT,LD - Head of Service,Head of LDP,Supported Living
Cambridgeshire County Council,03-Jun-21,51301582063,"2,122.90",Redacted Personal Data,INDIVIDUAL,LD - Hunts Locality - Cost of Care,LD - Huntingdonshire - Care,Residential Care
Cambridgeshire County Council,03-Jun-21,51301582071,"2,531.15",Redacted Personal Data,FOSTER PARENT,LD - Fenland Locality - Cost of Care,LD - Fenland  - Care,Residential Care
Cambridgeshire County Council,03-Jun-21,51301582061,"2,531.15",Redacted Personal Data,INDIVIDUAL,Shared Lives,Shared Lives - Countywide,Residential Care
Cambridgeshire County Council,03-Jun-21,51301582065,"2,531.15",Redacted Personal Data,PARENT/GUARDIAN,LD - East Locality - Cost of Care,LD - East Cambs - Care,Residential Care
Cambridgeshire County Council,03-Jun-21,51301582064,"2,531.15",Redacted Personal Data,INDIVIDUAL,Autism and Adult Support - Cost of Care,Autism and Adult Support - Care,Residential Care
Cambridgeshire County Council,03-Jun-21,51301569916,"2,568.00",ROLAND FLETCHER,SOLETRADER,Highways Maintenance,Rights of Way and Access,Rights of Way - gates
Cambridgeshire County Council,03-Jun-21,51301581952,"2,658.12",NEXUS FOSTERING LTD,CARE ESTABLISHMENT,LAC Placements,Placements - independent fostering,Agency Placements - In County
Cambridgeshire County Council,03-Jun-21,51301544824,"2,887.20",JENX LTD,TRADE SUPPLIER,Short Break,Short Breaks,Equipment and Tools
Cambridgeshire County Council,03-Jun-21,51301582109,"2,904.00",G-MAP Services Ltd,CARE ESTABLISHMENT,LAC Placements,Placements - residential disability,Agency Placements - Out of  County
Cambridgeshire County Council,03-Jun-21,51301581954,"3,131.00",NEXUS FOSTERING LTD,CARE ESTABLISHMENT,LAC Placements,Placements - independent fostering,Agency Placements - In County
Cambridgeshire County Council,03-Jun-21,51301581958,"3,131.00",NEXUS FOSTERING LTD,CARE ESTABLISHMENT,LAC Placements,Placements - independent fostering,Agency Placements - Out of  County
Cambridgeshire County Council,03-Jun-21,51301581959,"3,131.00",NEXUS FOSTERING LTD,CARE ESTABLISHMENT,LAC Placements,Placements - independent fostering,Agency Placements - In County
Cambridgeshire County Council,03-Jun-21,51301581960,"3,131.00",NEXUS FOSTERING LTD,CARE ESTABLISHMENT,LAC Placements,Placements - independent fostering,Agency Placements - In County
Cambridgeshire County Council,03-Jun-21,51301581970,"3,131.00",NEXUS FOSTERING LTD,CARE ESTABLISHMENT,LAC Placements,Placements - independent fostering,Agency Placements - In County
Cambridgeshire County Council,03-Jun-21,51301582031,"3,317.00",LITTLE ACORNS FOSTERING LTD,CARE ESTABLISHMENT,LAC Placements,Placements - independent fostering,Agency Placements - In County
Cambridgeshire County Council,03-Jun-21,51301581927,"3,485.37",ORANGE GROVE FOSTER CARE,CARE ESTABLISHMENT,LAC Placements,Placements - independent fostering,Agency Placements - In County
Cambridgeshire County Council,03-Jun-21,51301582054,"3,520.71",LITTLE ACORNS FOSTERING LTD,CARE ESTABLISHMENT,LAC Placements,Placements - independent fostering,Agency Placements - Out of  County
Cambridgeshire County Council,03-Jun-21,51301582045,"3,520.71",LITTLE ACORNS FOSTERING LTD,CARE ESTABLISHMENT,LAC Placements,Placements - independent fostering,Agency Placements - Out of  County
Cambridgeshire County Council,03-Jun-21,51301582048,"3,520.71",LITTLE ACORNS FOSTERING LTD,CARE ESTABLISHMENT,LAC Placements,Placements - independent fostering,Agency Placements - Out of  County
Cambridgeshire County Council,03-Jun-21,51301582030,"3,520.71",LITTLE ACORNS FOSTERING LTD,CARE ESTABLISHMENT,LAC Placements,Placements - independent fostering,Agency Placements - Out of  County
Cambridgeshire County Council,03-Jun-21,51301582100,"3,538.65",FUTURES FOR CHILDREN LTD,CARE ESTABLISHMENT,LAC Placements,Placements - independent fostering,Agency Placements - Out of  County
Cambridgeshire County Council,03-Jun-21,51301582095,"3,573.99",AFA Fostering,CARE ESTABLISHMENT,LAC Placements,Placements - independent fostering,Agency Placements - Out of  County
Cambridgeshire County Council,03-Jun-21,51301581967,"3,578.29",NEXUS FOSTERING LTD,CARE ESTABLISHMENT,LAC Placements,Placements - independent fostering,Agency Placements - Out of  County
Cambridgeshire County Council,03-Jun-21,51301581955,"3,596.00",NEXUS FOSTERING LTD,CARE ESTABLISHMENT,LAC Placements,Placements - independent fostering,Agency Placements - In County
Cambridgeshire County Council,03-Jun-21,51301581956,"3,596.00",NEXUS FOSTERING LTD,CARE ESTABLISHMENT,LAC Placements,Placements - independent fostering,Agency Placements - Out of  County
Cambridgeshire County Council,03-Jun-21,51301581971,"3,596.00",NEXUS FOSTERING LTD,CARE ESTABLISHMENT,LAC Placements,Placements - independent fostering,Agency Placements - In County
Cambridgeshire County Council,03-Jun-21,51301581965,"3,596.00",NEXUS FOSTERING LTD,CARE ESTABLISHMENT,LAC Placements,Placements - independent fostering,Agency Placements - In County
Cambridgeshire County Council,03-Jun-21,51301582079,"3,600.00",Gable Healthcare Services,CARE ESTABLISHMENT,LD - Head of Service,Head of LDP,Supported Living
Cambridgeshire County Council,03-Jun-21,51301582079,"3,600.00",Gable Healthcare Services,CARE ESTABLISHMENT,LD - Head of Service,Head of LDP,Supported Living
Cambridgeshire County Council,03-Jun-21,51301582079,"3,600.00",Gable Healthcare Services,CARE ESTABLISHMENT,LD - Head of Service,Head of LDP,Supported Living
Cambridgeshire County Council,03-Jun-21,51301582079,"3,600.00",Gable Healthcare Services,CARE ESTABLISHMENT,LD - Head of Service,Head of LDP,Supported Living
Cambridgeshire County Council,03-Jun-21,51301582079,"3,600.00",Gable Healthcare Services,CARE ESTABLISHMENT,LD - Head of Service,Head of LDP,Supported Living
Cambridgeshire County Council,03-Jun-21,51301581976,"3,627.00",Affinity Fostering Services Ltd,CARE ESTABLISHMENT,LAC Placements,Placements - independent fostering,Agency Placements - Out of  County
Cambridgeshire County Council,03-Jun-21,51301581978,"3,627.00",Affinity Fostering Services Ltd,CARE ESTABLISHMENT,LAC Placements,Placements - independent fostering,Agency Placements - Out of  County
Cambridgeshire County Council,03-Jun-21,51301581980,"3,627.00",Affinity Fostering Services Ltd,CARE ESTABLISHMENT,LAC Placements,Placements - independent fostering,Agency Placements - Out of  County
Cambridgeshire County Council,03-Jun-21,51301582099,"3,694.58",FUTURES FOR CHILDREN LTD,CARE ESTABLISHMENT,LAC Placements,Placements - independent fostering,Agency Placements - Out of  County
Cambridgeshire County Council,03-Jun-21,51301581984,"3,742.14",Regional Fostering Services Ltd,CARE ESTABLISHMENT,LAC Placements,Placements - independent fostering,Agency Placements - Out of  County
Cambridgeshire County Council,03-Jun-21,51301581985,"3,742.14",Regional Fostering Services Ltd,CARE ESTABLISHMENT,LAC Placements,Placements - independent fostering,Agency Placements - Out of  County
Cambridgeshire County Council,03-Jun-21,51301582034,"3,795.29",LITTLE ACORNS FOSTERING LTD,CARE ESTABLISHMENT,LAC Placements,Placements - independent fostering,Agency Placements - Out of  County
Cambridgeshire County Council,03-Jun-21,51301582037,"3,795.29",LITTLE ACORNS FOSTERING LTD,CARE ESTABLISHMENT,LAC Placements,Placements - independent fostering,Agency Placements - Out of  County
Cambridgeshire County Council,03-Jun-21,51301582040,"3,795.29",LITTLE ACORNS FOSTERING LTD,CARE ESTABLISHMENT,LAC Placements,Placements - independent fostering,Agency Placements - Out of  County
Cambridgeshire County Council,03-Jun-21,51301582042,"3,795.29",LITTLE ACORNS FOSTERING LTD,CARE ESTABLISHMENT,LAC Placements,Placements - independent fostering,Agency Placements - In County
Cambridgeshire County Council,03-Jun-21,51301581999,"3,844.00",FOSTER CARE ASSOCIATES LTD (FCA),CARE ESTABLISHMENT,LAC Placements,Placements - independent fostering,Agency Placements - In County
Cambridgeshire County Council,03-Jun-21,51301581991,"3,844.00",FOSTER CARE ASSOCIATES LTD (FCA),CARE ESTABLISHMENT,LAC Placements,Placements - independent fostering,Agency Placements - In County
Cambridgeshire County Council,03-Jun-21,51301581992,"3,844.00",FOSTER CARE ASSOCIATES LTD (FCA),CARE ESTABLISHMENT,LAC Placements,Placements - independent fostering,Agency Placements - In County
Cambridgeshire County Council,03-Jun-21,51301581993,"3,844.31",FOSTER CARE ASSOCIATES LTD (FCA),CARE ESTABLISHMENT,LAC Placements,Placements - independent fostering,Agency Placements - Out of  County
Cambridgeshire County Council,03-Jun-21,51301582051,"3,941.43",LITTLE ACORNS FOSTERING LTD,CARE ESTABLISHMENT,LAC Placements,Placements - independent fostering,Agency Placements - Out of  County
Cambridgeshire County Council,03-Jun-21,51301581989,"3,985.71",Affinity Fostering Services Ltd,CARE ESTABLISHMENT,LAC Placements,Placements - independent fostering,Agency Placements - Out of  County
Cambridgeshire County Council,03-Jun-21,51301581931,"3,985.71",Affinity Fostering Services Ltd,CARE ESTABLISHMENT,LAC Placements,Placements - independent fostering,Agency Placements - Out of  County
Cambridgeshire County Council,03-Jun-21,51301581986,"3,985.71",Regional Fostering Services Ltd,CARE ESTABLISHMENT,LAC Placements,Placements - independent fostering,Agency Placements - Out of  County
Cambridgeshire County Council,03-Jun-21,51301581981,"3,985.71",Regional Fostering Services Ltd,CARE ESTABLISHMENT,LAC Placements,Placements - independent fostering,Agency Placements - Out of  County
Cambridgeshire County Council,03-Jun-21,51301581641,"4,136.99",TRADITION (UK) LTD,TRADE SUPPLIER,Debt Charges and Interest,Debt Charges General,Investment Manager Fees
Cambridgeshire County Council,03-Jun-21,51301581994,"4,402.00",FOSTER CARE ASSOCIATES LTD (FCA),CARE ESTABLISHMENT,LAC Placements,Placements - independent fostering,Agency Placements - Out of  County
Cambridgeshire County Council,03-Jun-21,51301582101,"4,426.80",BY THE BRIDGE LTD,CARE ESTABLISHMENT,LAC Placements,Placements - independent fostering,Agency Placements - Out of  County
Cambridgeshire County Council,03-Jun-21,51301582104,"4,743.00",BY THE BRIDGE LTD,CARE ESTABLISHMENT,LAC Placements,Placements - independent fostering,Agency Placements - Out of  County
Cambridgeshire County Council,03-Jun-21,51301582106,"4,743.00",BY THE BRIDGE LTD,CARE ESTABLISHMENT,LAC Placements,Placements - independent fostering,Agency Placements - Out of  County
Cambridgeshire County Council,03-Jun-21,51301581975,"4,960.00",Lighthouse Fostering,CARE ESTABLISHMENT,LAC Placements,Placements - independent fostering,Agency Placements - Out of  County
Cambridgeshire County Council,03-Jun-21,51301582107,"5,428.00",BY THE BRIDGE LTD,CARE ESTABLISHMENT,LAC Placements,Placements - independent fostering,Agency Placements - Out of  County
Cambridgeshire County Council,03-Jun-21,51301581939,"5,748.33",INTEGRATED SERVICES PROGRAMME (ISP),CARE ESTABLISHMENT,LAC Placements,Placements - independent fostering,Agency Placements - Out of  County
Cambridgeshire County Council,03-Jun-21,51301581947,"5,748.33",INTEGRATED SERVICES PROGRAMME (ISP),CARE ESTABLISHMENT,LAC Placements,Placements - independent fostering,Agency Placements - Out of  County
Cambridgeshire County Council,03-Jun-21,51301581950,"6,133.57",INTEGRATED SERVICES PROGRAMME (ISP),CARE ESTABLISHMENT,LAC Placements,Placements - independent fostering,Agency Placements - Out of  County
Cambridgeshire County Council,03-Jun-21,51301581941,"6,133.57",INTEGRATED SERVICES PROGRAMME (ISP),CARE ESTABLISHMENT,LAC Placements,Placements - independent fostering,Agency Placements - In County
Cambridgeshire County Council,03-Jun-21,51301581943,"6,133.57",INTEGRATED SERVICES PROGRAMME (ISP),CARE ESTABLISHMENT,LAC Placements,Placements - independent fostering,Agency Placements - Out of  County
Cambridgeshire County Council,03-Jun-21,51301581945,"6,133.57",INTEGRATED SERVICES PROGRAMME (ISP),CARE ESTABLISHMENT,LAC Placements,Placements - independent fostering,Agency Placements - Out of  County
Cambridgeshire County Council,03-Jun-21,51301581937,"6,133.57",INTEGRATED SERVICES PROGRAMME (ISP),CARE ESTABLISHMENT,LAC Placements,Placements - independent fostering,Agency Placements - Out of  County
Cambridgeshire County Council,03-Jun-21,51301581919,"6,133.57",INTEGRATED SERVICES PROGRAMME (ISP),CARE ESTABLISHMENT,LAC Placements,Placements - independent fostering,Agency Placements - Out of  County
Cambridgeshire County Council,03-Jun-21,51301581933,"6,133.57",INTEGRATED SERVICES PROGRAMME (ISP),CARE ESTABLISHMENT,LAC Placements,Placements - independent fostering,Agency Placements - Out of  County
Cambridgeshire County Council,03-Jun-21,51301581968,"6,246.50",NEXUS FOSTERING LTD,CARE ESTABLISHMENT,LAC Placements,Placements - independent fostering,Agency Placements - Out of  County
Cambridgeshire County Council,03-Jun-21,51301581963,"6,479.00",NEXUS FOSTERING LTD,CARE ESTABLISHMENT,LAC Placements,Placements - independent fostering,Agency Placements - Out of  County
Cambridgeshire County Council,03-Jun-21,51301581964,"6,479.00",NEXUS FOSTERING LTD,CARE ESTABLISHMENT,LAC Placements,Placements - independent fostering,Agency Placements - In County
Cambridgeshire County Council,03-Jun-21,51301582093,"6,600.00",CBRE Limited,COMPANY,Capital Receipts Expenses,Capital Receipts Expenses,Professional Fees and Hired Services
Cambridgeshire County Council,03-Jun-21,51301581973,"16,137.63",PRIORY GROUP (MARCH HOUSE),CARE ESTABLISHMENT,LAC Placements,Placements - residential homes,Agency Placements - Out of  County
Cambridgeshire County Council,03-Jun-21,51301581974,"16,137.63",PRIORY GROUP (MARCH HOUSE),CARE ESTABLISHMENT,LAC Placements,Placements - residential homes,Agency Placements - Out of  County
Cambridgeshire County Council,03-Jun-21,51301581972,"17,634.00",Keys PCE Ltd,CARE ESTABLISHMENT,LAC Placements,Placements - residential homes,Agency Placements - Out of  County
Cambridgeshire County Council,03-Jun-21,51301581929,"19,104.86",ARCHWAYS CARE LTD (BIRMINGHAM),CARE ESTABLISHMENT,LAC Placements,Placements - residential homes,Agency Placements - Out of  County
Cambridgeshire County Council,03-Jun-21,51301582028,"20,592.86",Total Care Matters Ltd,CARE ESTABLISHMENT,LAC Placements,Placements - residential homes,Agency Placements - Out of  County
Cambridgeshire County Council,03-Jun-21,51301581925,"28,682.74",Acorn Care & Education Ltd,EDUCATION,LAC Placements,Placements - residential homes,Agency Placements - Out of  County
Cambridgeshire County Council,03-Jun-21,51301581917,"44,818.00",SANCTUARY HOUSING ASSOCIATION,CARE ESTABLISHMENT,Central Commissioning - Adults,Covid-19 - Infection Control Grant: round 2,Grants
Cambridgeshire County Council,03-Jun-21,51301580508,"82,689.60",P WOODS CONSTRUCTION LTD,COMPANY,SEN Pupil Adaptations,SEN Pupil Adaptations,"New Construction, Conversion and Renovation"
Cambridgeshire County Council,04-Jun-21,51301582705,"-3,234.54",DIMENSIONS (UK) LTD,CARE ESTABLISHMENT,LD - South Locality - Cost of Care,LD - South Cambs - Special Needs,Supported Living
Cambridgeshire County Council,04-Jun-21,51301582434,"-3,079.62",FOSTERING PEOPLE,CARE ESTABLISHMENT,LAC Placements,Placements - independent fostering,Agency Placements - Out of  County
Cambridgeshire County Council,04-Jun-21,51301582848,"-2,826.43",KISIMUL SCHOOL,CARE ESTABLISHMENT,LD - Hunts Locality - Cost of Care,LD - Huntingdonshire - Care,Residential Care
Cambridgeshire County Council,04-Jun-21,51301582848,"-2,826.43",KISIMUL SCHOOL,CARE ESTABLISHMENT,LD - Hunts Locality - Cost of Care,LD - Huntingdonshire - Care,Residential Care
Cambridgeshire County Council,04-Jun-21,51301582848,"-2,826.43",KISIMUL SCHOOL,CARE ESTABLISHMENT,LD - Hunts Locality - Cost of Care,LD - Huntingdonshire - Care,Residential Care
Cambridgeshire County Council,04-Jun-21,51301582848,"-2,826.43",KISIMUL SCHOOL,CARE ESTABLISHMENT,LD - Hunts Locality - Cost of Care,LD - Huntingdonshire - Care,Residential Care
Cambridgeshire County Council,04-Jun-21,51301582848,"-2,826.43",KISIMUL SCHOOL,CARE ESTABLISHMENT,LD - Hunts Locality - Cost of Care,LD - Huntingdonshire - Care,Residential Care
Cambridgeshire County Council,04-Jun-21,51301582848,"-2,826.43",KISIMUL SCHOOL,CARE ESTABLISHMENT,LD - Hunts Locality - Cost of Care,LD - Huntingdonshire - Care,Residential Care
Cambridgeshire County Council,04-Jun-21,51301582848,"-2,826.43",KISIMUL SCHOOL,CARE ESTABLISHMENT,LD - Hunts Locality - Cost of Care,LD - Huntingdonshire - Care,Residential Care
Cambridgeshire County Council,04-Jun-21,51301582848,"-2,826.43",KISIMUL SCHOOL,CARE ESTABLISHMENT,LD - Hunts Locality - Cost of Care,LD - Huntingdonshire - Care,Residential Care
Cambridgeshire County Council,04-Jun-21,51301582848,"-2,826.43",KISIMUL SCHOOL,CARE ESTABLISHMENT,LD - Hunts Locality - Cost of Care,LD - Huntingdonshire - Care,Residential Care
Cambridgeshire County Council,04-Jun-21,51301582848,"-2,826.43",KISIMUL SCHOOL,CARE ESTABLISHMENT,LD - Hunts Locality - Cost of Care,LD - Huntingdonshire - Care,Residential Care
Cambridgeshire County Council,04-Jun-21,51301582848,"-2,826.43",KISIMUL SCHOOL,CARE ESTABLISHMENT,LD - Hunts Locality - Cost of Care,LD - Huntingdonshire - Care,Residential Care
Cambridgeshire County Council,04-Jun-21,51301582848,"-2,826.43",KISIMUL SCHOOL,CARE ESTABLISHMENT,LD - Hunts Locality - Cost of Care,LD - Huntingdonshire - Care,Residential Care
Cambridgeshire County Council,04-Jun-21,51301582848,"-2,826.43",KISIMUL SCHOOL,CARE ESTABLISHMENT,LD - Hunts Locality - Cost of Care,LD - Huntingdonshire - Care,Residential Care
Cambridgeshire County Council,04-Jun-21,51301582848,"-2,826.43",KISIMUL SCHOOL,CARE ESTABLISHMENT,LD - Hunts Locality - Cost of Care,LD - Huntingdonshire - Care,Residential Care
Cambridgeshire County Council,04-Jun-21,51301582848,"-2,826.43",KISIMUL SCHOOL,CARE ESTABLISHMENT,LD - Hunts Locality - Cost of Care,LD - Huntingdonshire - Care,Residential Care
Cambridgeshire County Council,04-Jun-21,51301582848,"-2,826.43",KISIMUL SCHOOL,CARE ESTABLISHMENT,LD - Hunts Locality - Cost of Care,LD - Huntingdonshire - Care,Residential Care
Cambridgeshire County Council,04-Jun-21,51301582848,"-2,826.43",KISIMUL SCHOOL,CARE ESTABLISHMENT,LD - Hunts Locality - Cost of Care,LD - Huntingdonshire - Care,Residential Care
Cambridgeshire County Council,04-Jun-21,51301582848,"-2,826.43",KISIMUL SCHOOL,CARE ESTABLISHMENT,LD - Hunts Locality - Cost of Care,LD - Huntingdonshire - Care,Residential Care
Cambridgeshire County Council,04-Jun-21,51301582848,"-2,826.43",KISIMUL SCHOOL,CARE ESTABLISHMENT,LD - Hunts Locality - Cost of Care,LD - Huntingdonshire - Care,Residential Care
Cambridgeshire County Council,04-Jun-21,51301582848,"-2,826.43",KISIMUL SCHOOL,CARE ESTABLISHMENT,LD - Hunts Locality - Cost of Care,LD - Huntingdonshire - Care,Residential Care
Cambridgeshire County Council,04-Jun-21,51301582848,"-2,826.43",KISIMUL SCHOOL,CARE ESTABLISHMENT,LD - Hunts Locality - Cost of Care,LD - Huntingdonshire - Care,Residential Care
Cambridgeshire County Council,04-Jun-21,51301582848,"-2,826.43",KISIMUL SCHOOL,CARE ESTABLISHMENT,LD - Hunts Locality - Cost of Care,LD - Huntingdonshire - Care,Residential Care
Cambridgeshire County Council,04-Jun-21,51301582848,"-2,826.43",KISIMUL SCHOOL,CARE ESTABLISHMENT,LD - Hunts Locality - Cost of Care,LD - Huntingdonshire - Care,Residential Care
Cambridgeshire County Council,04-Jun-21,51301582848,"-2,826.43",KISIMUL SCHOOL,CARE ESTABLISHMENT,LD - Hunts Locality - Cost of Care,LD - Huntingdonshire - Care,Residential Care
Cambridgeshire County Council,04-Jun-21,51301582848,"-2,826.43",KISIMUL SCHOOL,CARE ESTABLISHMENT,LD - Hunts Locality - Cost of Care,LD - Huntingdonshire - Care,Residential Care
Cambridgeshire County Council,04-Jun-21,51301582848,"-2,826.43",KISIMUL SCHOOL,CARE ESTABLISHMENT,LD - Hunts Locality - Cost of Care,LD - Huntingdonshire - Care,Residential Care
Cambridgeshire County Council,04-Jun-21,51301582848,"-2,826.43",KISIMUL SCHOOL,CARE ESTABLISHMENT,LD - Hunts Locality - Cost of Care,LD - Huntingdonshire - Care,Residential Care
Cambridgeshire County Council,04-Jun-21,51301582848,"-2,826.43",KISIMUL SCHOOL,CARE ESTABLISHMENT,LD - Hunts Locality - Cost of Care,LD - Huntingdonshire - Care,Residential Care
Cambridgeshire County Council,04-Jun-21,51301582848,"-2,826.43",KISIMUL SCHOOL,CARE ESTABLISHMENT,LD - Hunts Locality - Cost of Care,LD - Huntingdonshire - Care,Residential Care
Cambridgeshire County Council,04-Jun-21,51301582848,"-2,826.43",KISIMUL SCHOOL,CARE ESTABLISHMENT,LD - Hunts Locality - Cost of Care,LD - Huntingdonshire - Care,Residential Care
Cambridgeshire County Council,04-Jun-21,51301582848,"-2,826.43",KISIMUL SCHOOL,CARE ESTABLISHMENT,LD - Hunts Locality - Cost of Care,LD - Huntingdonshire - Care,Residential Care
Cambridgeshire County Council,04-Jun-21,51301582848,"-2,826.43",KISIMUL SCHOOL,CARE ESTABLISHMENT,LD - Hunts Locality - Cost of Care,LD - Huntingdonshire - Care,Residential Care
Cambridgeshire County Council,04-Jun-21,51301582848,"-2,826.43",KISIMUL SCHOOL,CARE ESTABLISHMENT,LD - Hunts Locality - Cost of Care,LD - Huntingdonshire - Care,Residential Care
Cambridgeshire County Council,04-Jun-21,51301582848,"-2,826.43",KISIMUL SCHOOL,CARE ESTABLISHMENT,LD - Hunts Locality - Cost of Care,LD - Huntingdonshire - Care,Residential Care
Cambridgeshire County Council,04-Jun-21,51301582848,"-2,826.43",KISIMUL SCHOOL,CARE ESTABLISHMENT,LD - Hunts Locality - Cost of Care,LD - Huntingdonshire - Care,Residential Care
Cambridgeshire County Council,04-Jun-21,51301582848,"-2,826.43",KISIMUL SCHOOL,CARE ESTABLISHMENT,LD - Hunts Locality - Cost of Care,LD - Huntingdonshire - Care,Residential Care
Cambridgeshire County Council,04-Jun-21,51301582848,"-2,826.43",KISIMUL SCHOOL,CARE ESTABLISHMENT,LD - Hunts Locality - Cost of Care,LD - Huntingdonshire - Care,Residential Care
Cambridgeshire County Council,04-Jun-21,51301582848,"-2,826.43",KISIMUL SCHOOL,CARE ESTABLISHMENT,LD - Hunts Locality - Cost of Care,LD - Huntingdonshire - Care,Residential Care
Cambridgeshire County Council,04-Jun-21,51301582848,"-2,826.43",KISIMUL SCHOOL,CARE ESTABLISHMENT,LD - Hunts Locality - Cost of Care,LD - Huntingdonshire - Care,Residential Care
Cambridgeshire County Council,04-Jun-21,51301582848,"-2,826.43",KISIMUL SCHOOL,CARE ESTABLISHMENT,LD - Hunts Locality - Cost of Care,LD - Huntingdonshire - Care,Residential Care
Cambridgeshire County Council,04-Jun-21,51301582848,"-2,826.43",KISIMUL SCHOOL,CARE ESTABLISHMENT,LD - Hunts Locality - Cost of Care,LD - Huntingdonshire - Care,Residential Care
Cambridgeshire County Council,04-Jun-21,51301582848,"-2,826.43",KISIMUL SCHOOL,CARE ESTABLISHMENT,LD - Hunts Locality - Cost of Care,LD - Huntingdonshire - Care,Residential Care
Cambridgeshire County Council,04-Jun-21,51301582848,"-2,826.43",KISIMUL SCHOOL,CARE ESTABLISHMENT,LD - Hunts Locality - Cost of Care,LD - Huntingdonshire - Care,Residential Care
Cambridgeshire County Council,04-Jun-21,51301582848,"-2,826.43",KISIMUL SCHOOL,CARE ESTABLISHMENT,LD - Hunts Locality - Cost of Care,LD - Huntingdonshire - Care,Residential Care
Cambridgeshire County Council,04-Jun-21,51301582848,"-2,826.43",KISIMUL SCHOOL,CARE ESTABLISHMENT,LD - Hunts Locality - Cost of Care,LD - Huntingdonshire - Care,Residential Care
Cambridgeshire County Council,04-Jun-21,51301582848,"-2,826.43",KISIMUL SCHOOL,CARE ESTABLISHMENT,LD - Hunts Locality - Cost of Care,LD - Huntingdonshire - Care,Residential Care
Cambridgeshire County Council,04-Jun-21,51301582848,"-2,826.43",KISIMUL SCHOOL,CARE ESTABLISHMENT,LD - Hunts Locality - Cost of Care,LD - Huntingdonshire - Care,Residential Care
Cambridgeshire County Council,04-Jun-21,51301582848,"-2,826.43",KISIMUL SCHOOL,CARE ESTABLISHMENT,LD - Hunts Locality - Cost of Care,LD - Huntingdonshire - Care,Residential Care
Cambridgeshire County Council,04-Jun-21,51301582848,"-2,826.43",KISIMUL SCHOOL,CARE ESTABLISHMENT,LD - Hunts Locality - Cost of Care,LD - Huntingdonshire - Care,Residential Care
Cambridgeshire County Council,04-Jun-21,51301582848,"-2,826.43",KISIMUL SCHOOL,CARE ESTABLISHMENT,LD - Hunts Locality - Cost of Care,LD - Huntingdonshire - Care,Residential Care
Cambridgeshire County Council,04-Jun-21,51301582848,"-2,826.43",KISIMUL SCHOOL,CARE ESTABLISHMENT,LD - Hunts Locality - Cost of Care,LD - Huntingdonshire - Care,Residential Care
Cambridgeshire County Council,04-Jun-21,51301582848,"-2,826.43",KISIMUL SCHOOL,CARE ESTABLISHMENT,LD - Hunts Locality - Cost of Care,LD - Huntingdonshire - Care,Residential Care
Cambridgeshire County Council,04-Jun-21,51301582839,"-2,821.84",KISIMUL SCHOOL,CARE ESTABLISHMENT,LD - East Locality - Cost of Care,LD - East Cambs - Care,Residential Care
Cambridgeshire County Council,04-Jun-21,51301582839,"-2,821.84",KISIMUL SCHOOL,CARE ESTABLISHMENT,LD - East Locality - Cost of Care,LD - East Cambs - Care,Residential Care
Cambridgeshire County Council,04-Jun-21,51301582839,"-2,821.84",KISIMUL SCHOOL,CARE ESTABLISHMENT,LD - East Locality - Cost of Care,LD - East Cambs - Care,Residential Care
Cambridgeshire County Council,04-Jun-21,51301582839,"-2,821.84",KISIMUL SCHOOL,CARE ESTABLISHMENT,LD - East Locality - Cost of Care,LD - East Cambs - Care,Residential Care
Cambridgeshire County Council,04-Jun-21,51301582839,"-2,821.84",KISIMUL SCHOOL,CARE ESTABLISHMENT,LD - East Locality - Cost of Care,LD - East Cambs - Care,Residential Care
Cambridgeshire County Council,04-Jun-21,51301582839,"-2,821.84",KISIMUL SCHOOL,CARE ESTABLISHMENT,LD - East Locality - Cost of Care,LD - East Cambs - Care,Residential Care
Cambridgeshire County Council,04-Jun-21,51301582839,"-2,821.84",KISIMUL SCHOOL,CARE ESTABLISHMENT,LD - East Locality - Cost of Care,LD - East Cambs - Care,Residential Care
Cambridgeshire County Council,04-Jun-21,51301582839,"-2,821.84",KISIMUL SCHOOL,CARE ESTABLISHMENT,LD - East Locality - Cost of Care,LD - East Cambs - Care,Residential Care
Cambridgeshire County Council,04-Jun-21,51301582839,"-2,821.84",KISIMUL SCHOOL,CARE ESTABLISHMENT,LD - East Locality - Cost of Care,LD - East Cambs - Care,Residential Care
Cambridgeshire County Council,04-Jun-21,51301582839,"-2,821.84",KISIMUL SCHOOL,CARE ESTABLISHMENT,LD - East Locality - Cost of Care,LD - East Cambs - Care,Residential Care
Cambridgeshire County Council,04-Jun-21,51301582839,"-2,821.84",KISIMUL SCHOOL,CARE ESTABLISHMENT,LD - East Locality - Cost of Care,LD - East Cambs - Care,Residential Care
Cambridgeshire County Council,04-Jun-21,51301582839,"-2,821.84",KISIMUL SCHOOL,CARE ESTABLISHMENT,LD - East Locality - Cost of Care,LD - East Cambs - Care,Residential Care
Cambridgeshire County Council,04-Jun-21,51301582839,"-2,821.84",KISIMUL SCHOOL,CARE ESTABLISHMENT,LD - East Locality - Cost of Care,LD - East Cambs - Care,Residential Care
Cambridgeshire County Council,04-Jun-21,51301582839,"-2,821.84",KISIMUL SCHOOL,CARE ESTABLISHMENT,LD - East Locality - Cost of Care,LD - East Cambs - Care,Residential Care
Cambridgeshire County Council,04-Jun-21,51301582839,"-2,821.84",KISIMUL SCHOOL,CARE ESTABLISHMENT,LD - East Locality - Cost of Care,LD - East Cambs - Care,Residential Care
Cambridgeshire County Council,04-Jun-21,51301582839,"-2,821.84",KISIMUL SCHOOL,CARE ESTABLISHMENT,LD - East Locality - Cost of Care,LD - East Cambs - Care,Residential Care
Cambridgeshire County Council,04-Jun-21,51301582839,"-2,821.84",KISIMUL SCHOOL,CARE ESTABLISHMENT,LD - East Locality - Cost of Care,LD - East Cambs - Care,Residential Care
Cambridgeshire County Council,04-Jun-21,51301582839,"-2,821.84",KISIMUL SCHOOL,CARE ESTABLISHMENT,LD - East Locality - Cost of Care,LD - East Cambs - Care,Residential Care
Cambridgeshire County Council,04-Jun-21,51301582839,"-2,821.84",KISIMUL SCHOOL,CARE ESTABLISHMENT,LD - East Locality - Cost of Care,LD - East Cambs - Care,Residential Care
Cambridgeshire County Council,04-Jun-21,51301582839,"-2,821.84",KISIMUL SCHOOL,CARE ESTABLISHMENT,LD - East Locality - Cost of Care,LD - East Cambs - Care,Residential Care
Cambridgeshire County Council,04-Jun-21,51301582839,"-2,821.84",KISIMUL SCHOOL,CARE ESTABLISHMENT,LD - East Locality - Cost of Care,LD - East Cambs - Care,Residential Care
Cambridgeshire County Council,04-Jun-21,51301582839,"-2,821.84",KISIMUL SCHOOL,CARE ESTABLISHMENT,LD - East Locality - Cost of Care,LD - East Cambs - Care,Residential Care
Cambridgeshire County Council,04-Jun-21,51301582839,"-2,821.84",KISIMUL SCHOOL,CARE ESTABLISHMENT,LD - East Locality - Cost of Care,LD - East Cambs - Care,Residential Care
Cambridgeshire County Council,04-Jun-21,51301582839,"-2,821.84",KISIMUL SCHOOL,CARE ESTABLISHMENT,LD - East Locality - Cost of Care,LD - East Cambs - Care,Residential Care
Cambridgeshire County Council,04-Jun-21,51301582839,"-2,821.84",KISIMUL SCHOOL,CARE ESTABLISHMENT,LD - East Locality - Cost of Care,LD - East Cambs - Care,Residential Care
Cambridgeshire County Council,04-Jun-21,51301582839,"-2,821.84",KISIMUL SCHOOL,CARE ESTABLISHMENT,LD - East Locality - Cost of Care,LD - East Cambs - Care,Residential Care
Cambridgeshire County Council,04-Jun-21,51301582839,"-2,821.84",KISIMUL SCHOOL,CARE ESTABLISHMENT,LD - East Locality - Cost of Care,LD - East Cambs - Care,Residential Care
Cambridgeshire County Council,04-Jun-21,51301582839,"-2,821.84",KISIMUL SCHOOL,CARE ESTABLISHMENT,LD - East Locality - Cost of Care,LD - East Cambs - Care,Residential Care
Cambridgeshire County Council,04-Jun-21,51301582839,"-2,821.84",KISIMUL SCHOOL,CARE ESTABLISHMENT,LD - East Locality - Cost of Care,LD - East Cambs - Care,Residential Care
Cambridgeshire County Council,04-Jun-21,51301582839,"-2,821.84",KISIMUL SCHOOL,CARE ESTABLISHMENT,LD - East Locality - Cost of Care,LD - East Cambs - Care,Residential Care
Cambridgeshire County Council,04-Jun-21,51301582839,"-2,821.84",KISIMUL SCHOOL,CARE ESTABLISHMENT,LD - East Locality - Cost of Care,LD - East Cambs - Care,Residential Care
Cambridgeshire County Council,04-Jun-21,51301582839,"-2,821.84",KISIMUL SCHOOL,CARE ESTABLISHMENT,LD - East Locality - Cost of Care,LD - East Cambs - Care,Residential Care
Cambridgeshire County Council,04-Jun-21,51301582839,"-2,821.84",KISIMUL SCHOOL,CARE ESTABLISHMENT,LD - East Locality - Cost of Care,LD - East Cambs - Care,Residential Care
Cambridgeshire County Council,04-Jun-21,51301582839,"-2,821.84",KISIMUL SCHOOL,CARE ESTABLISHMENT,LD - East Locality - Cost of Care,LD - East Cambs - Care,Residential Care
Cambridgeshire County Council,04-Jun-21,51301582839,"-2,821.84",KISIMUL SCHOOL,CARE ESTABLISHMENT,LD - East Locality - Cost of Care,LD - East Cambs - Care,Residential Care
Cambridgeshire County Council,04-Jun-21,51301582839,"-2,821.84",KISIMUL SCHOOL,CARE ESTABLISHMENT,LD - East Locality - Cost of Care,LD - East Cambs - Care,Residential Care
Cambridgeshire County Council,04-Jun-21,51301582839,"-2,821.84",KISIMUL SCHOOL,CARE ESTABLISHMENT,LD - East Locality - Cost of Care,LD - East Cambs - Care,Residential Care
Cambridgeshire County Council,04-Jun-21,51301582839,"-2,821.84",KISIMUL SCHOOL,CARE ESTABLISHMENT,LD - East Locality - Cost of Care,LD - East Cambs - Care,Residential Care
Cambridgeshire County Council,04-Jun-21,51301582839,"-2,821.84",KISIMUL SCHOOL,CARE ESTABLISHMENT,LD - East Locality - Cost of Care,LD - East Cambs - Care,Residential Care
Cambridgeshire County Council,04-Jun-21,51301582839,"-2,821.84",KISIMUL SCHOOL,CARE ESTABLISHMENT,LD - East Locality - Cost of Care,LD - East Cambs - Care,Residential Care
Cambridgeshire County Council,04-Jun-21,51301582839,"-2,821.84",KISIMUL SCHOOL,CARE ESTABLISHMENT,LD - East Locality - Cost of Care,LD - East Cambs - Care,Residential Care
Cambridgeshire County Council,04-Jun-21,51301582839,"-2,821.84",KISIMUL SCHOOL,CARE ESTABLISHMENT,LD - East Locality - Cost of Care,LD - East Cambs - Care,Residential Care
Cambridgeshire County Council,04-Jun-21,51301582839,"-2,821.84",KISIMUL SCHOOL,CARE ESTABLISHMENT,LD - East Locality - Cost of Care,LD - East Cambs - Care,Residential Care
Cambridgeshire County Council,04-Jun-21,51301582839,"-2,821.84",KISIMUL SCHOOL,CARE ESTABLISHMENT,LD - East Locality - Cost of Care,LD - East Cambs - Care,Residential Care
Cambridgeshire County Council,04-Jun-21,51301582839,"-2,821.84",KISIMUL SCHOOL,CARE ESTABLISHMENT,LD - East Locality - Cost of Care,LD - East Cambs - Care,Residential Care
Cambridgeshire County Council,04-Jun-21,51301582839,"-2,821.84",KISIMUL SCHOOL,CARE ESTABLISHMENT,LD - East Locality - Cost of Care,LD - East Cambs - Care,Residential Care
Cambridgeshire County Council,04-Jun-21,51301582839,"-2,821.84",KISIMUL SCHOOL,CARE ESTABLISHMENT,LD - East Locality - Cost of Care,LD - East Cambs - Care,Residential Care
Cambridgeshire County Council,04-Jun-21,51301582839,"-2,821.84",KISIMUL SCHOOL,CARE ESTABLISHMENT,LD - East Locality - Cost of Care,LD - East Cambs - Care,Residential Care
Cambridgeshire County Council,04-Jun-21,51301582839,"-2,821.84",KISIMUL SCHOOL,CARE ESTABLISHMENT,LD - East Locality - Cost of Care,LD - East Cambs - Care,Residential Care
Cambridgeshire County Council,04-Jun-21,51301582839,"-2,821.84",KISIMUL SCHOOL,CARE ESTABLISHMENT,LD - East Locality - Cost of Care,LD - East Cambs - Care,Residential Care
Cambridgeshire County Council,04-Jun-21,51301582839,"-2,821.84",KISIMUL SCHOOL,CARE ESTABLISHMENT,LD - East Locality - Cost of Care,LD - East Cambs - Care,Residential Care
Cambridgeshire County Council,04-Jun-21,51301582839,"-2,821.84",KISIMUL SCHOOL,CARE ESTABLISHMENT,LD - East Locality - Cost of Care,LD - East Cambs - Care,Residential Care
Cambridgeshire County Council,04-Jun-21,51301582840,"-2,655.39",KISIMUL SCHOOL,CARE ESTABLISHMENT,LD - East Locality - Cost of Care,LD - East Cambs - Care,Residential Care
Cambridgeshire County Council,04-Jun-21,51301582840,"-2,655.39",KISIMUL SCHOOL,CARE ESTABLISHMENT,LD - East Locality - Cost of Care,LD - East Cambs - Care,Residential Care
Cambridgeshire County Council,04-Jun-21,51301582840,"-2,655.39",KISIMUL SCHOOL,CARE ESTABLISHMENT,LD - East Locality - Cost of Care,LD - East Cambs - Care,Residential Care
Cambridgeshire County Council,04-Jun-21,51301582840,"-2,655.39",KISIMUL SCHOOL,CARE ESTABLISHMENT,LD - East Locality - Cost of Care,LD - East Cambs - Care,Residential Care
Cambridgeshire County Council,04-Jun-21,51301582840,"-2,655.39",KISIMUL SCHOOL,CARE ESTABLISHMENT,LD - East Locality - Cost of Care,LD - East Cambs - Care,Residential Care
Cambridgeshire County Council,04-Jun-21,51301582840,"-2,655.39",KISIMUL SCHOOL,CARE ESTABLISHMENT,LD - East Locality - Cost of Care,LD - East Cambs - Care,Residential Care
Cambridgeshire County Council,04-Jun-21,51301582840,"-2,655.39",KISIMUL SCHOOL,CARE ESTABLISHMENT,LD - East Locality - Cost of Care,LD - East Cambs - Care,Residential Care
Cambridgeshire County Council,04-Jun-21,51301582840,"-2,655.39",KISIMUL SCHOOL,CARE ESTABLISHMENT,LD - East Locality - Cost of Care,LD - East Cambs - Care,Residential Care
Cambridgeshire County Council,04-Jun-21,51301582840,"-2,655.39",KISIMUL SCHOOL,CARE ESTABLISHMENT,LD - East Locality - Cost of Care,LD - East Cambs - Care,Residential Care
Cambridgeshire County Council,04-Jun-21,51301582840,"-2,655.39",KISIMUL SCHOOL,CARE ESTABLISHMENT,LD - East Locality - Cost of Care,LD - East Cambs - Care,Residential Care
Cambridgeshire County Council,04-Jun-21,51301582840,"-2,655.39",KISIMUL SCHOOL,CARE ESTABLISHMENT,LD - East Locality - Cost of Care,LD - East Cambs - Care,Residential Care
Cambridgeshire County Council,04-Jun-21,51301582840,"-2,655.39",KISIMUL SCHOOL,CARE ESTABLISHMENT,LD - East Locality - Cost of Care,LD - East Cambs - Care,Residential Care
Cambridgeshire County Council,04-Jun-21,51301582840,"-2,655.39",KISIMUL SCHOOL,CARE ESTABLISHMENT,LD - East Locality - Cost of Care,LD - East Cambs - Care,Residential Care
Cambridgeshire County Council,04-Jun-21,51301582840,"-2,655.39",KISIMUL SCHOOL,CARE ESTABLISHMENT,LD - East Locality - Cost of Care,LD - East Cambs - Care,Residential Care
Cambridgeshire County Council,04-Jun-21,51301582840,"-2,655.39",KISIMUL SCHOOL,CARE ESTABLISHMENT,LD - East Locality - Cost of Care,LD - East Cambs - Care,Residential Care
Cambridgeshire County Council,04-Jun-21,51301582840,"-2,655.39",KISIMUL SCHOOL,CARE ESTABLISHMENT,LD - East Locality - Cost of Care,LD - East Cambs - Care,Residential Care
Cambridgeshire County Council,04-Jun-21,51301582840,"-2,655.39",KISIMUL SCHOOL,CARE ESTABLISHMENT,LD - East Locality - Cost of Care,LD - East Cambs - Care,Residential Care
Cambridgeshire County Council,04-Jun-21,51301582840,"-2,655.39",KISIMUL SCHOOL,CARE ESTABLISHMENT,LD - East Locality - Cost of Care,LD - East Cambs - Care,Residential Care
Cambridgeshire County Council,04-Jun-21,51301582840,"-2,655.39",KISIMUL SCHOOL,CARE ESTABLISHMENT,LD - East Locality - Cost of Care,LD - East Cambs - Care,Residential Care
Cambridgeshire County Council,04-Jun-21,51301582840,"-2,655.39",KISIMUL SCHOOL,CARE ESTABLISHMENT,LD - East Locality - Cost of Care,LD - East Cambs - Care,Residential Care
Cambridgeshire County Council,04-Jun-21,51301582840,"-2,655.39",KISIMUL SCHOOL,CARE ESTABLISHMENT,LD - East Locality - Cost of Care,LD - East Cambs - Care,Residential Care
Cambridgeshire County Council,04-Jun-21,51301582840,"-2,655.39",KISIMUL SCHOOL,CARE ESTABLISHMENT,LD - East Locality - Cost of Care,LD - East Cambs - Care,Residential Care
Cambridgeshire County Council,04-Jun-21,51301582840,"-2,655.39",KISIMUL SCHOOL,CARE ESTABLISHMENT,LD - East Locality - Cost of Care,LD - East Cambs - Care,Residential Care
Cambridgeshire County Council,04-Jun-21,51301582840,"-2,655.39",KISIMUL SCHOOL,CARE ESTABLISHMENT,LD - East Locality - Cost of Care,LD - East Cambs - Care,Residential Care
Cambridgeshire County Council,04-Jun-21,51301582840,"-2,655.39",KISIMUL SCHOOL,CARE ESTABLISHMENT,LD - East Locality - Cost of Care,LD - East Cambs - Care,Residential Care
Cambridgeshire County Council,04-Jun-21,51301582840,"-2,655.39",KISIMUL SCHOOL,CARE ESTABLISHMENT,LD - East Locality - Cost of Care,LD - East Cambs - Care,Residential Care
Cambridgeshire County Council,04-Jun-21,51301582840,"-2,655.39",KISIMUL SCHOOL,CARE ESTABLISHMENT,LD - East Locality - Cost of Care,LD - East Cambs - Care,Residential Care
Cambridgeshire County Council,04-Jun-21,51301582840,"-2,655.39",KISIMUL SCHOOL,CARE ESTABLISHMENT,LD - East Locality - Cost of Care,LD - East Cambs - Care,Residential Care
Cambridgeshire County Council,04-Jun-21,51301582840,"-2,655.39",KISIMUL SCHOOL,CARE ESTABLISHMENT,LD - East Locality - Cost of Care,LD - East Cambs - Care,Residential Care
Cambridgeshire County Council,04-Jun-21,51301582840,"-2,655.39",KISIMUL SCHOOL,CARE ESTABLISHMENT,LD - East Locality - Cost of Care,LD - East Cambs - Care,Residential Care
Cambridgeshire County Council,04-Jun-21,51301582840,"-2,655.39",KISIMUL SCHOOL,CARE ESTABLISHMENT,LD - East Locality - Cost of Care,LD - East Cambs - Care,Residential Care
Cambridgeshire County Council,04-Jun-21,51301582840,"-2,655.39",KISIMUL SCHOOL,CARE ESTABLISHMENT,LD - East Locality - Cost of Care,LD - East Cambs - Care,Residential Care
Cambridgeshire County Council,04-Jun-21,51301582840,"-2,655.39",KISIMUL SCHOOL,CARE ESTABLISHMENT,LD - East Locality - Cost of Care,LD - East Cambs - Care,Residential Care
Cambridgeshire County Council,04-Jun-21,51301582840,"-2,655.39",KISIMUL SCHOOL,CARE ESTABLISHMENT,LD - East Locality - Cost of Care,LD - East Cambs - Care,Residential Care
Cambridgeshire County Council,04-Jun-21,51301582840,"-2,655.39",KISIMUL SCHOOL,CARE ESTABLISHMENT,LD - East Locality - Cost of Care,LD - East Cambs - Care,Residential Care
Cambridgeshire County Council,04-Jun-21,51301582840,"-2,655.39",KISIMUL SCHOOL,CARE ESTABLISHMENT,LD - East Locality - Cost of Care,LD - East Cambs - Care,Residential Care
Cambridgeshire County Council,04-Jun-21,51301582840,"-2,655.39",KISIMUL SCHOOL,CARE ESTABLISHMENT,LD - East Locality - Cost of Care,LD - East Cambs - Care,Residential Care
Cambridgeshire County Council,04-Jun-21,51301582840,"-2,655.39",KISIMUL SCHOOL,CARE ESTABLISHMENT,LD - East Locality - Cost of Care,LD - East Cambs - Care,Residential Care
Cambridgeshire County Council,04-Jun-21,51301582840,"-2,655.39",KISIMUL SCHOOL,CARE ESTABLISHMENT,LD - East Locality - Cost of Care,LD - East Cambs - Care,Residential Care
Cambridgeshire County Council,04-Jun-21,51301582840,"-2,655.39",KISIMUL SCHOOL,CARE ESTABLISHMENT,LD - East Locality - Cost of Care,LD - East Cambs - Care,Residential Care
Cambridgeshire County Council,04-Jun-21,51301582840,"-2,655.39",KISIMUL SCHOOL,CARE ESTABLISHMENT,LD - East Locality - Cost of Care,LD - East Cambs - Care,Residential Care
Cambridgeshire County Council,04-Jun-21,51301582840,"-2,655.39",KISIMUL SCHOOL,CARE ESTABLISHMENT,LD - East Locality - Cost of Care,LD - East Cambs - Care,Residential Care
Cambridgeshire County Council,04-Jun-21,51301582840,"-2,655.39",KISIMUL SCHOOL,CARE ESTABLISHMENT,LD - East Locality - Cost of Care,LD - East Cambs - Care,Residential Care
Cambridgeshire County Council,04-Jun-21,51301582840,"-2,655.39",KISIMUL SCHOOL,CARE ESTABLISHMENT,LD - East Locality - Cost of Care,LD - East Cambs - Care,Residential Care
Cambridgeshire County Council,04-Jun-21,51301582840,"-2,655.39",KISIMUL SCHOOL,CARE ESTABLISHMENT,LD - East Locality - Cost of Care,LD - East Cambs - Care,Residential Care
Cambridgeshire County Council,04-Jun-21,51301582840,"-2,655.39",KISIMUL SCHOOL,CARE ESTABLISHMENT,LD - East Locality - Cost of Care,LD - East Cambs - Care,Residential Care
Cambridgeshire County Council,04-Jun-21,51301582840,"-2,655.39",KISIMUL SCHOOL,CARE ESTABLISHMENT,LD - East Locality - Cost of Care,LD - East Cambs - Care,Residential Care
Cambridgeshire County Council,04-Jun-21,51301582840,"-2,655.39",KISIMUL SCHOOL,CARE ESTABLISHMENT,LD - East Locality - Cost of Care,LD - East Cambs - Care,Residential Care
Cambridgeshire County Council,04-Jun-21,51301582840,"-2,655.39",KISIMUL SCHOOL,CARE ESTABLISHMENT,LD - East Locality - Cost of Care,LD - East Cambs - Care,Residential Care
Cambridgeshire County Council,04-Jun-21,51301582840,"-2,655.39",KISIMUL SCHOOL,CARE ESTABLISHMENT,LD - East Locality - Cost of Care,LD - East Cambs - Care,Residential Care
Cambridgeshire County Council,04-Jun-21,51301582840,"-2,655.39",KISIMUL SCHOOL,CARE ESTABLISHMENT,LD - East Locality - Cost of Care,LD - East Cambs - Care,Residential Care
Cambridgeshire County Council,04-Jun-21,51301582840,"-2,655.39",KISIMUL SCHOOL,CARE ESTABLISHMENT,LD - East Locality - Cost of Care,LD - East Cambs - Care,Residential Care
Cambridgeshire County Council,04-Jun-21,51301582714,"-2,408.64",KISIMUL SCHOOL,CARE ESTABLISHMENT,LD - South Locality - Cost of Care,LD - South Cambs - Care,Supported Living
Cambridgeshire County Council,04-Jun-21,51301582714,"-2,408.64",KISIMUL SCHOOL,CARE ESTABLISHMENT,LD - South Locality - Cost of Care,LD - South Cambs - Care,Supported Living
Cambridgeshire County Council,04-Jun-21,51301582714,"-2,408.64",KISIMUL SCHOOL,CARE ESTABLISHMENT,LD - South Locality - Cost of Care,LD - South Cambs - Care,Supported Living
Cambridgeshire County Council,04-Jun-21,51301582714,"-2,408.64",KISIMUL SCHOOL,CARE ESTABLISHMENT,LD - South Locality - Cost of Care,LD - South Cambs - Care,Supported Living
Cambridgeshire County Council,04-Jun-21,51301582714,"-2,408.64",KISIMUL SCHOOL,CARE ESTABLISHMENT,LD - South Locality - Cost of Care,LD - South Cambs - Care,Supported Living
Cambridgeshire County Council,04-Jun-21,51301582714,"-2,408.64",KISIMUL SCHOOL,CARE ESTABLISHMENT,LD - South Locality - Cost of Care,LD - South Cambs - Care,Supported Living
Cambridgeshire County Council,04-Jun-21,51301582714,"-2,408.64",KISIMUL SCHOOL,CARE ESTABLISHMENT,LD - South Locality - Cost of Care,LD - South Cambs - Care,Supported Living
Cambridgeshire County Council,04-Jun-21,51301582714,"-2,408.64",KISIMUL SCHOOL,CARE ESTABLISHMENT,LD - South Locality - Cost of Care,LD - South Cambs - Care,Supported Living
Cambridgeshire County Council,04-Jun-21,51301582714,"-2,408.64",KISIMUL SCHOOL,CARE ESTABLISHMENT,LD - South Locality - Cost of Care,LD - South Cambs - Care,Supported Living
Cambridgeshire County Council,04-Jun-21,51301582714,"-2,408.64",KISIMUL SCHOOL,CARE ESTABLISHMENT,LD - South Locality - Cost of Care,LD - South Cambs - Care,Supported Living
Cambridgeshire County Council,04-Jun-21,51301582714,"-2,408.64",KISIMUL SCHOOL,CARE ESTABLISHMENT,LD - South Locality - Cost of Care,LD - South Cambs - Care,Supported Living
Cambridgeshire County Council,04-Jun-21,51301582714,"-2,408.64",KISIMUL SCHOOL,CARE ESTABLISHMENT,LD - South Locality - Cost of Care,LD - South Cambs - Care,Supported Living
Cambridgeshire County Council,04-Jun-21,51301582714,"-2,408.64",KISIMUL SCHOOL,CARE ESTABLISHMENT,LD - South Locality - Cost of Care,LD - South Cambs - Care,Supported Living
Cambridgeshire County Council,04-Jun-21,51301582714,"-2,408.64",KISIMUL SCHOOL,CARE ESTABLISHMENT,LD - South Locality - Cost of Care,LD - South Cambs - Care,Supported Living
Cambridgeshire County Council,04-Jun-21,51301582714,"-2,408.64",KISIMUL SCHOOL,CARE ESTABLISHMENT,LD - South Locality - Cost of Care,LD - South Cambs - Care,Supported Living
Cambridgeshire County Council,04-Jun-21,51301582714,"-2,408.64",KISIMUL SCHOOL,CARE ESTABLISHMENT,LD - South Locality - Cost of Care,LD - South Cambs - Care,Supported Living
Cambridgeshire County Council,04-Jun-21,51301582714,"-2,408.64",KISIMUL SCHOOL,CARE ESTABLISHMENT,LD - South Locality - Cost of Care,LD - South Cambs - Care,Supported Living
Cambridgeshire County Council,04-Jun-21,51301582714,"-2,408.64",KISIMUL SCHOOL,CARE ESTABLISHMENT,LD - South Locality - Cost of Care,LD - South Cambs - Care,Supported Living
Cambridgeshire County Council,04-Jun-21,51301582714,"-2,408.64",KISIMUL SCHOOL,CARE ESTABLISHMENT,LD - South Locality - Cost of Care,LD - South Cambs - Care,Supported Living
Cambridgeshire County Council,04-Jun-21,51301582714,"-2,408.64",KISIMUL SCHOOL,CARE ESTABLISHMENT,LD - South Locality - Cost of Care,LD - South Cambs - Care,Supported Living
Cambridgeshire County Council,04-Jun-21,51301582714,"-2,408.64",KISIMUL SCHOOL,CARE ESTABLISHMENT,LD - South Locality - Cost of Care,LD - South Cambs - Care,Supported Living
Cambridgeshire County Council,04-Jun-21,51301582714,"-2,408.64",KISIMUL SCHOOL,CARE ESTABLISHMENT,LD - South Locality - Cost of Care,LD - South Cambs - Care,Supported Living
Cambridgeshire County Council,04-Jun-21,51301582714,"-2,408.64",KISIMUL SCHOOL,CARE ESTABLISHMENT,LD - South Locality - Cost of Care,LD - South Cambs - Care,Supported Living
Cambridgeshire County Council,04-Jun-21,51301582714,"-2,408.64",KISIMUL SCHOOL,CARE ESTABLISHMENT,LD - South Locality - Cost of Care,LD - South Cambs - Care,Supported Living
Cambridgeshire County Council,04-Jun-21,51301582714,"-2,408.64",KISIMUL SCHOOL,CARE ESTABLISHMENT,LD - South Locality - Cost of Care,LD - South Cambs - Care,Supported Living
Cambridgeshire County Council,04-Jun-21,51301582714,"-2,408.64",KISIMUL SCHOOL,CARE ESTABLISHMENT,LD - South Locality - Cost of Care,LD - South Cambs - Care,Supported Living
Cambridgeshire County Council,04-Jun-21,51301582714,"-2,408.64",KISIMUL SCHOOL,CARE ESTABLISHMENT,LD - South Locality - Cost of Care,LD - South Cambs - Care,Supported Living
Cambridgeshire County Council,04-Jun-21,51301582714,"-2,408.64",KISIMUL SCHOOL,CARE ESTABLISHMENT,LD - South Locality - Cost of Care,LD - South Cambs - Care,Supported Living
Cambridgeshire County Council,04-Jun-21,51301582714,"-2,408.64",KISIMUL SCHOOL,CARE ESTABLISHMENT,LD - South Locality - Cost of Care,LD - South Cambs - Care,Supported Living
Cambridgeshire County Council,04-Jun-21,51301582714,"-2,408.64",KISIMUL SCHOOL,CARE ESTABLISHMENT,LD - South Locality - Cost of Care,LD - South Cambs - Care,Supported Living
Cambridgeshire County Council,04-Jun-21,51301582714,"-2,408.64",KISIMUL SCHOOL,CARE ESTABLISHMENT,LD - South Locality - Cost of Care,LD - South Cambs - Care,Supported Living
Cambridgeshire County Council,04-Jun-21,51301582714,"-2,408.64",KISIMUL SCHOOL,CARE ESTABLISHMENT,LD - South Locality - Cost of Care,LD - South Cambs - Care,Supported Living
Cambridgeshire County Council,04-Jun-21,51301582714,"-2,408.64",KISIMUL SCHOOL,CARE ESTABLISHMENT,LD - South Locality - Cost of Care,LD - South Cambs - Care,Supported Living
Cambridgeshire County Council,04-Jun-21,51301582714,"-2,408.64",KISIMUL SCHOOL,CARE ESTABLISHMENT,LD - South Locality - Cost of Care,LD - South Cambs - Care,Supported Living
Cambridgeshire County Council,04-Jun-21,51301582714,"-2,408.64",KISIMUL SCHOOL,CARE ESTABLISHMENT,LD - South Locality - Cost of Care,LD - South Cambs - Care,Supported Living
Cambridgeshire County Council,04-Jun-21,51301582714,"-2,408.64",KISIMUL SCHOOL,CARE ESTABLISHMENT,LD - South Locality - Cost of Care,LD - South Cambs - Care,Supported Living
Cambridgeshire County Council,04-Jun-21,51301582714,"-2,408.64",KISIMUL SCHOOL,CARE ESTABLISHMENT,LD - South Locality - Cost of Care,LD - South Cambs - Care,Supported Living
Cambridgeshire County Council,04-Jun-21,51301582714,"-2,408.64",KISIMUL SCHOOL,CARE ESTABLISHMENT,LD - South Locality - Cost of Care,LD - South Cambs - Care,Supported Living
Cambridgeshire County Council,04-Jun-21,51301582714,"-2,408.64",KISIMUL SCHOOL,CARE ESTABLISHMENT,LD - South Locality - Cost of Care,LD - South Cambs - Care,Supported Living
Cambridgeshire County Council,04-Jun-21,51301582714,"-2,408.64",KISIMUL SCHOOL,CARE ESTABLISHMENT,LD - South Locality - Cost of Care,LD - South Cambs - Care,Supported Living
Cambridgeshire County Council,04-Jun-21,51301582714,"-2,408.64",KISIMUL SCHOOL,CARE ESTABLISHMENT,LD - South Locality - Cost of Care,LD - South Cambs - Care,Supported Living
Cambridgeshire County Council,04-Jun-21,51301582714,"-2,408.64",KISIMUL SCHOOL,CARE ESTABLISHMENT,LD - South Locality - Cost of Care,LD - South Cambs - Care,Supported Living
Cambridgeshire County Council,04-Jun-21,51301582714,"-2,408.64",KISIMUL SCHOOL,CARE ESTABLISHMENT,LD - South Locality - Cost of Care,LD - South Cambs - Care,Supported Living
Cambridgeshire County Council,04-Jun-21,51301582714,"-2,408.64",KISIMUL SCHOOL,CARE ESTABLISHMENT,LD - South Locality - Cost of Care,LD - South Cambs - Care,Supported Living
Cambridgeshire County Council,04-Jun-21,51301582714,"-2,408.64",KISIMUL SCHOOL,CARE ESTABLISHMENT,LD - South Locality - Cost of Care,LD - South Cambs - Care,Supported Living
Cambridgeshire County Council,04-Jun-21,51301582714,"-2,408.64",KISIMUL SCHOOL,CARE ESTABLISHMENT,LD - South Locality - Cost of Care,LD - South Cambs - Care,Supported Living
Cambridgeshire County Council,04-Jun-21,51301582844,"-2,134.16",KISIMUL SCHOOL,CARE ESTABLISHMENT,LD - Hunts Locality - Cost of Care,LD - Huntingdonshire - Care,Residential Care
Cambridgeshire County Council,04-Jun-21,51301582844,"-2,134.16",KISIMUL SCHOOL,CARE ESTABLISHMENT,LD - Hunts Locality - Cost of Care,LD - Huntingdonshire - Care,Residential Care
Cambridgeshire County Council,04-Jun-21,51301582844,"-2,134.16",KISIMUL SCHOOL,CARE ESTABLISHMENT,LD - Hunts Locality - Cost of Care,LD - Huntingdonshire - Care,Residential Care
Cambridgeshire County Council,04-Jun-21,51301582844,"-2,134.16",KISIMUL SCHOOL,CARE ESTABLISHMENT,LD - Hunts Locality - Cost of Care,LD - Huntingdonshire - Care,Residential Care
Cambridgeshire County Council,04-Jun-21,51301582844,"-2,134.16",KISIMUL SCHOOL,CARE ESTABLISHMENT,LD - Hunts Locality - Cost of Care,LD - Huntingdonshire - Care,Residential Care
Cambridgeshire County Council,04-Jun-21,51301582844,"-2,134.16",KISIMUL SCHOOL,CARE ESTABLISHMENT,LD - Hunts Locality - Cost of Care,LD - Huntingdonshire - Care,Residential Care
Cambridgeshire County Council,04-Jun-21,51301582844,"-2,134.16",KISIMUL SCHOOL,CARE ESTABLISHMENT,LD - Hunts Locality - Cost of Care,LD - Huntingdonshire - Care,Residential Care
Cambridgeshire County Council,04-Jun-21,51301582844,"-2,134.16",KISIMUL SCHOOL,CARE ESTABLISHMENT,LD - Hunts Locality - Cost of Care,LD - Huntingdonshire - Care,Residential Care
Cambridgeshire County Council,04-Jun-21,51301582844,"-2,134.16",KISIMUL SCHOOL,CARE ESTABLISHMENT,LD - Hunts Locality - Cost of Care,LD - Huntingdonshire - Care,Residential Care
Cambridgeshire County Council,04-Jun-21,51301582844,"-2,134.16",KISIMUL SCHOOL,CARE ESTABLISHMENT,LD - Hunts Locality - Cost of Care,LD - Huntingdonshire - Care,Residential Care
Cambridgeshire County Council,04-Jun-21,51301582844,"-2,134.16",KISIMUL SCHOOL,CARE ESTABLISHMENT,LD - Hunts Locality - Cost of Care,LD - Huntingdonshire - Care,Residential Care
Cambridgeshire County Council,04-Jun-21,51301582844,"-2,134.16",KISIMUL SCHOOL,CARE ESTABLISHMENT,LD - Hunts Locality - Cost of Care,LD - Huntingdonshire - Care,Residential Care
Cambridgeshire County Council,04-Jun-21,51301582844,"-2,134.16",KISIMUL SCHOOL,CARE ESTABLISHMENT,LD - Hunts Locality - Cost of Care,LD - Huntingdonshire - Care,Residential Care
Cambridgeshire County Council,04-Jun-21,51301582844,"-2,134.16",KISIMUL SCHOOL,CARE ESTABLISHMENT,LD - Hunts Locality - Cost of Care,LD - Huntingdonshire - Care,Residential Care
Cambridgeshire County Council,04-Jun-21,51301582844,"-2,134.16",KISIMUL SCHOOL,CARE ESTABLISHMENT,LD - Hunts Locality - Cost of Care,LD - Huntingdonshire - Care,Residential Care
Cambridgeshire County Council,04-Jun-21,51301582844,"-2,134.16",KISIMUL SCHOOL,CARE ESTABLISHMENT,LD - Hunts Locality - Cost of Care,LD - Huntingdonshire - Care,Residential Care
Cambridgeshire County Council,04-Jun-21,51301582844,"-2,134.16",KISIMUL SCHOOL,CARE ESTABLISHMENT,LD - Hunts Locality - Cost of Care,LD - Huntingdonshire - Care,Residential Care
Cambridgeshire County Council,04-Jun-21,51301582844,"-2,134.16",KISIMUL SCHOOL,CARE ESTABLISHMENT,LD - Hunts Locality - Cost of Care,LD - Huntingdonshire - Care,Residential Care
Cambridgeshire County Council,04-Jun-21,51301582844,"-2,134.16",KISIMUL SCHOOL,CARE ESTABLISHMENT,LD - Hunts Locality - Cost of Care,LD - Huntingdonshire - Care,Residential Care
Cambridgeshire County Council,04-Jun-21,51301582844,"-2,134.16",KISIMUL SCHOOL,CARE ESTABLISHMENT,LD - Hunts Locality - Cost of Care,LD - Huntingdonshire - Care,Residential Care
Cambridgeshire County Council,04-Jun-21,51301582844,"-2,134.16",KISIMUL SCHOOL,CARE ESTABLISHMENT,LD - Hunts Locality - Cost of Care,LD - Huntingdonshire - Care,Residential Care
Cambridgeshire County Council,04-Jun-21,51301582844,"-2,134.16",KISIMUL SCHOOL,CARE ESTABLISHMENT,LD - Hunts Locality - Cost of Care,LD - Huntingdonshire - Care,Residential Care
Cambridgeshire County Council,04-Jun-21,51301582844,"-2,134.16",KISIMUL SCHOOL,CARE ESTABLISHMENT,LD - Hunts Locality - Cost of Care,LD - Huntingdonshire - Care,Residential Care
Cambridgeshire County Council,04-Jun-21,51301582844,"-2,134.16",KISIMUL SCHOOL,CARE ESTABLISHMENT,LD - Hunts Locality - Cost of Care,LD - Huntingdonshire - Care,Residential Care
Cambridgeshire County Council,04-Jun-21,51301582844,"-2,134.16",KISIMUL SCHOOL,CARE ESTABLISHMENT,LD - Hunts Locality - Cost of Care,LD - Huntingdonshire - Care,Residential Care
Cambridgeshire County Council,04-Jun-21,51301582844,"-2,134.16",KISIMUL SCHOOL,CARE ESTABLISHMENT,LD - Hunts Locality - Cost of Care,LD - Huntingdonshire - Care,Residential Care
Cambridgeshire County Council,04-Jun-21,51301582844,"-2,134.16",KISIMUL SCHOOL,CARE ESTABLISHMENT,LD - Hunts Locality - Cost of Care,LD - Huntingdonshire - Care,Residential Care
Cambridgeshire County Council,04-Jun-21,51301582844,"-2,134.16",KISIMUL SCHOOL,CARE ESTABLISHMENT,LD - Hunts Locality - Cost of Care,LD - Huntingdonshire - Care,Residential Care
Cambridgeshire County Council,04-Jun-21,51301582844,"-2,134.16",KISIMUL SCHOOL,CARE ESTABLISHMENT,LD - Hunts Locality - Cost of Care,LD - Huntingdonshire - Care,Residential Care
Cambridgeshire County Council,04-Jun-21,51301582844,"-2,134.16",KISIMUL SCHOOL,CARE ESTABLISHMENT,LD - Hunts Locality - Cost of Care,LD - Huntingdonshire - Care,Residential Care
Cambridgeshire County Council,04-Jun-21,51301582844,"-2,134.16",KISIMUL SCHOOL,CARE ESTABLISHMENT,LD - Hunts Locality - Cost of Care,LD - Huntingdonshire - Care,Residential Care
Cambridgeshire County Council,04-Jun-21,51301582844,"-2,134.16",KISIMUL SCHOOL,CARE ESTABLISHMENT,LD - Hunts Locality - Cost of Care,LD - Huntingdonshire - Care,Residential Care
Cambridgeshire County Council,04-Jun-21,51301582844,"-2,134.16",KISIMUL SCHOOL,CARE ESTABLISHMENT,LD - Hunts Locality - Cost of Care,LD - Huntingdonshire - Care,Residential Care
Cambridgeshire County Council,04-Jun-21,51301582844,"-2,134.16",KISIMUL SCHOOL,CARE ESTABLISHMENT,LD - Hunts Locality - Cost of Care,LD - Huntingdonshire - Care,Residential Care
Cambridgeshire County Council,04-Jun-21,51301582844,"-2,134.16",KISIMUL SCHOOL,CARE ESTABLISHMENT,LD - Hunts Locality - Cost of Care,LD - Huntingdonshire - Care,Residential Care
Cambridgeshire County Council,04-Jun-21,51301582844,"-2,134.16",KISIMUL SCHOOL,CARE ESTABLISHMENT,LD - Hunts Locality - Cost of Care,LD - Huntingdonshire - Care,Residential Care
Cambridgeshire County Council,04-Jun-21,51301582844,"-2,134.16",KISIMUL SCHOOL,CARE ESTABLISHMENT,LD - Hunts Locality - Cost of Care,LD - Huntingdonshire - Care,Residential Care
Cambridgeshire County Council,04-Jun-21,51301582844,"-2,134.16",KISIMUL SCHOOL,CARE ESTABLISHMENT,LD - Hunts Locality - Cost of Care,LD - Huntingdonshire - Care,Residential Care
Cambridgeshire County Council,04-Jun-21,51301582844,"-2,134.16",KISIMUL SCHOOL,CARE ESTABLISHMENT,LD - Hunts Locality - Cost of Care,LD - Huntingdonshire - Care,Residential Care
Cambridgeshire County Council,04-Jun-21,51301582844,"-2,134.16",KISIMUL SCHOOL,CARE ESTABLISHMENT,LD - Hunts Locality - Cost of Care,LD - Huntingdonshire - Care,Residential Care
Cambridgeshire County Council,04-Jun-21,51301582844,"-2,134.16",KISIMUL SCHOOL,CARE ESTABLISHMENT,LD - Hunts Locality - Cost of Care,LD - Huntingdonshire - Care,Residential Care
Cambridgeshire County Council,04-Jun-21,51301582844,"-2,134.16",KISIMUL SCHOOL,CARE ESTABLISHMENT,LD - Hunts Locality - Cost of Care,LD - Huntingdonshire - Care,Residential Care
Cambridgeshire County Council,04-Jun-21,51301582844,"-2,134.16",KISIMUL SCHOOL,CARE ESTABLISHMENT,LD - Hunts Locality - Cost of Care,LD - Huntingdonshire - Care,Residential Care
Cambridgeshire County Council,04-Jun-21,51301582844,"-2,134.16",KISIMUL SCHOOL,CARE ESTABLISHMENT,LD - Hunts Locality - Cost of Care,LD - Huntingdonshire - Care,Residential Care
Cambridgeshire County Council,04-Jun-21,51301582844,"-2,134.16",KISIMUL SCHOOL,CARE ESTABLISHMENT,LD - Hunts Locality - Cost of Care,LD - Huntingdonshire - Care,Residential Care
Cambridgeshire County Council,04-Jun-21,51301582844,"-2,134.16",KISIMUL SCHOOL,CARE ESTABLISHMENT,LD - Hunts Locality - Cost of Care,LD - Huntingdonshire - Care,Residential Care
Cambridgeshire County Council,04-Jun-21,51301582844,"-2,134.16",KISIMUL SCHOOL,CARE ESTABLISHMENT,LD - Hunts Locality - Cost of Care,LD - Huntingdonshire - Care,Residential Care
Cambridgeshire County Council,04-Jun-21,51301582844,"-2,134.16",KISIMUL SCHOOL,CARE ESTABLISHMENT,LD - Hunts Locality - Cost of Care,LD - Huntingdonshire - Care,Residential Care
Cambridgeshire County Council,04-Jun-21,51301582844,"-2,134.16",KISIMUL SCHOOL,CARE ESTABLISHMENT,LD - Hunts Locality - Cost of Care,LD - Huntingdonshire - Care,Residential Care
Cambridgeshire County Council,04-Jun-21,51301582844,"-2,134.16",KISIMUL SCHOOL,CARE ESTABLISHMENT,LD - Hunts Locality - Cost of Care,LD - Huntingdonshire - Care,Residential Care
Cambridgeshire County Council,04-Jun-21,51301582844,"-2,134.16",KISIMUL SCHOOL,CARE ESTABLISHMENT,LD - Hunts Locality - Cost of Care,LD - Huntingdonshire - Care,Residential Care
Cambridgeshire County Council,04-Jun-21,51301582844,"-2,134.16",KISIMUL SCHOOL,CARE ESTABLISHMENT,LD - Hunts Locality - Cost of Care,LD - Huntingdonshire - Care,Residential Care
Cambridgeshire County Council,04-Jun-21,51301582712,"-2,056.24",TIGH NAVEEN (KISIMUL),CARE ESTABLISHMENT,LD - Hunts Locality - Cost of Care,LD - Huntingdonshire - Care,Supported Living
Cambridgeshire County Council,04-Jun-21,51301582712,"-2,056.24",TIGH NAVEEN (KISIMUL),CARE ESTABLISHMENT,LD - Hunts Locality - Cost of Care,LD - Huntingdonshire - Care,Supported Living
Cambridgeshire County Council,04-Jun-21,51301582712,"-2,056.24",TIGH NAVEEN (KISIMUL),CARE ESTABLISHMENT,LD - Hunts Locality - Cost of Care,LD - Huntingdonshire - Care,Supported Living
Cambridgeshire County Council,04-Jun-21,51301582712,"-2,056.24",TIGH NAVEEN (KISIMUL),CARE ESTABLISHMENT,LD - Hunts Locality - Cost of Care,LD - Huntingdonshire - Care,Supported Living
Cambridgeshire County Council,04-Jun-21,51301582712,"-2,056.24",TIGH NAVEEN (KISIMUL),CARE ESTABLISHMENT,LD - Hunts Locality - Cost of Care,LD - Huntingdonshire - Care,Supported Living
Cambridgeshire County Council,04-Jun-21,51301582712,"-2,056.24",TIGH NAVEEN (KISIMUL),CARE ESTABLISHMENT,LD - Hunts Locality - Cost of Care,LD - Huntingdonshire - Care,Supported Living
Cambridgeshire County Council,04-Jun-21,51301582712,"-2,056.24",TIGH NAVEEN (KISIMUL),CARE ESTABLISHMENT,LD - Hunts Locality - Cost of Care,LD - Huntingdonshire - Care,Supported Living
Cambridgeshire County Council,04-Jun-21,51301582712,"-2,056.24",TIGH NAVEEN (KISIMUL),CARE ESTABLISHMENT,LD - Hunts Locality - Cost of Care,LD - Huntingdonshire - Care,Supported Living
Cambridgeshire County Council,04-Jun-21,51301582712,"-2,056.24",TIGH NAVEEN (KISIMUL),CARE ESTABLISHMENT,LD - Hunts Locality - Cost of Care,LD - Huntingdonshire - Care,Supported Living
Cambridgeshire County Council,04-Jun-21,51301582712,"-2,056.24",TIGH NAVEEN (KISIMUL),CARE ESTABLISHMENT,LD - Hunts Locality - Cost of Care,LD - Huntingdonshire - Care,Supported Living
Cambridgeshire County Council,04-Jun-21,51301582712,"-2,056.24",TIGH NAVEEN (KISIMUL),CARE ESTABLISHMENT,LD - Hunts Locality - Cost of Care,LD - Huntingdonshire - Care,Supported Living
Cambridgeshire County Council,04-Jun-21,51301582712,"-2,056.24",TIGH NAVEEN (KISIMUL),CARE ESTABLISHMENT,LD - Hunts Locality - Cost of Care,LD - Huntingdonshire - Care,Supported Living
Cambridgeshire County Council,04-Jun-21,51301582712,"-2,056.24",TIGH NAVEEN (KISIMUL),CARE ESTABLISHMENT,LD - Hunts Locality - Cost of Care,LD - Huntingdonshire - Care,Supported Living
Cambridgeshire County Council,04-Jun-21,51301582712,"-2,056.24",TIGH NAVEEN (KISIMUL),CARE ESTABLISHMENT,LD - Hunts Locality - Cost of Care,LD - Huntingdonshire - Care,Supported Living
Cambridgeshire County Council,04-Jun-21,51301582712,"-2,056.24",TIGH NAVEEN (KISIMUL),CARE ESTABLISHMENT,LD - Hunts Locality - Cost of Care,LD - Huntingdonshire - Care,Supported Living
Cambridgeshire County Council,04-Jun-21,51301582712,"-2,056.24",TIGH NAVEEN (KISIMUL),CARE ESTABLISHMENT,LD - Hunts Locality - Cost of Care,LD - Huntingdonshire - Care,Supported Living
Cambridgeshire County Council,04-Jun-21,51301582712,"-2,056.24",TIGH NAVEEN (KISIMUL),CARE ESTABLISHMENT,LD - Hunts Locality - Cost of Care,LD - Huntingdonshire - Care,Supported Living
Cambridgeshire County Council,04-Jun-21,51301582712,"-2,056.24",TIGH NAVEEN (KISIMUL),CARE ESTABLISHMENT,LD - Hunts Locality - Cost of Care,LD - Huntingdonshire - Care,Supported Living
Cambridgeshire County Council,04-Jun-21,51301582712,"-2,056.24",TIGH NAVEEN (KISIMUL),CARE ESTABLISHMENT,LD - Hunts Locality - Cost of Care,LD - Huntingdonshire - Care,Supported Living
Cambridgeshire County Council,04-Jun-21,51301582712,"-2,056.24",TIGH NAVEEN (KISIMUL),CARE ESTABLISHMENT,LD - Hunts Locality - Cost of Care,LD - Huntingdonshire - Care,Supported Living
Cambridgeshire County Council,04-Jun-21,51301582712,"-2,056.24",TIGH NAVEEN (KISIMUL),CARE ESTABLISHMENT,LD - Hunts Locality - Cost of Care,LD - Huntingdonshire - Care,Supported Living
Cambridgeshire County Council,04-Jun-21,51301582712,"-2,056.24",TIGH NAVEEN (KISIMUL),CARE ESTABLISHMENT,LD - Hunts Locality - Cost of Care,LD - Huntingdonshire - Care,Supported Living
Cambridgeshire County Council,04-Jun-21,51301582712,"-2,056.24",TIGH NAVEEN (KISIMUL),CARE ESTABLISHMENT,LD - Hunts Locality - Cost of Care,LD - Huntingdonshire - Care,Supported Living
Cambridgeshire County Council,04-Jun-21,51301582712,"-2,056.24",TIGH NAVEEN (KISIMUL),CARE ESTABLISHMENT,LD - Hunts Locality - Cost of Care,LD - Huntingdonshire - Care,Supported Living
Cambridgeshire County Council,04-Jun-21,51301582712,"-2,056.24",TIGH NAVEEN (KISIMUL),CARE ESTABLISHMENT,LD - Hunts Locality - Cost of Care,LD - Huntingdonshire - Care,Supported Living
Cambridgeshire County Council,04-Jun-21,51301582712,"-2,056.24",TIGH NAVEEN (KISIMUL),CARE ESTABLISHMENT,LD - Hunts Locality - Cost of Care,LD - Huntingdonshire - Care,Supported Living
Cambridgeshire County Council,04-Jun-21,51301582712,"-2,056.24",TIGH NAVEEN (KISIMUL),CARE ESTABLISHMENT,LD - Hunts Locality - Cost of Care,LD - Huntingdonshire - Care,Supported Living
Cambridgeshire County Council,04-Jun-21,51301582712,"-2,056.24",TIGH NAVEEN (KISIMUL),CARE ESTABLISHMENT,LD - Hunts Locality - Cost of Care,LD - Huntingdonshire - Care,Supported Living
Cambridgeshire County Council,04-Jun-21,51301582712,"-2,056.24",TIGH NAVEEN (KISIMUL),CARE ESTABLISHMENT,LD - Hunts Locality - Cost of Care,LD - Huntingdonshire - Care,Supported Living
Cambridgeshire County Council,04-Jun-21,51301582712,"-2,056.24",TIGH NAVEEN (KISIMUL),CARE ESTABLISHMENT,LD - Hunts Locality - Cost of Care,LD - Huntingdonshire - Care,Supported Living
Cambridgeshire County Council,04-Jun-21,51301582712,"-2,056.24",TIGH NAVEEN (KISIMUL),CARE ESTABLISHMENT,LD - Hunts Locality - Cost of Care,LD - Huntingdonshire - Care,Supported Living
Cambridgeshire County Council,04-Jun-21,51301582712,"-2,056.24",TIGH NAVEEN (KISIMUL),CARE ESTABLISHMENT,LD - Hunts Locality - Cost of Care,LD - Huntingdonshire - Care,Supported Living
Cambridgeshire County Council,04-Jun-21,51301582712,"-2,056.24",TIGH NAVEEN (KISIMUL),CARE ESTABLISHMENT,LD - Hunts Locality - Cost of Care,LD - Huntingdonshire - Care,Supported Living
Cambridgeshire County Council,04-Jun-21,51301582712,"-2,056.24",TIGH NAVEEN (KISIMUL),CARE ESTABLISHMENT,LD - Hunts Locality - Cost of Care,LD - Huntingdonshire - Care,Supported Living
Cambridgeshire County Council,04-Jun-21,51301582712,"-2,056.24",TIGH NAVEEN (KISIMUL),CARE ESTABLISHMENT,LD - Hunts Locality - Cost of Care,LD - Huntingdonshire - Care,Supported Living
Cambridgeshire County Council,04-Jun-21,51301582712,"-2,056.24",TIGH NAVEEN (KISIMUL),CARE ESTABLISHMENT,LD - Hunts Locality - Cost of Care,LD - Huntingdonshire - Care,Supported Living
Cambridgeshire County Council,04-Jun-21,51301582712,"-2,056.24",TIGH NAVEEN (KISIMUL),CARE ESTABLISHMENT,LD - Hunts Locality - Cost of Care,LD - Huntingdonshire - Care,Supported Living
Cambridgeshire County Council,04-Jun-21,51301582712,"-2,056.24",TIGH NAVEEN (KISIMUL),CARE ESTABLISHMENT,LD - Hunts Locality - Cost of Care,LD - Huntingdonshire - Care,Supported Living
Cambridgeshire County Council,04-Jun-21,51301582712,"-2,056.24",TIGH NAVEEN (KISIMUL),CARE ESTABLISHMENT,LD - Hunts Locality - Cost of Care,LD - Huntingdonshire - Care,Supported Living
Cambridgeshire County Council,04-Jun-21,51301582712,"-2,056.24",TIGH NAVEEN (KISIMUL),CARE ESTABLISHMENT,LD - Hunts Locality - Cost of Care,LD - Huntingdonshire - Care,Supported Living
Cambridgeshire County Council,04-Jun-21,51301582712,"-2,056.24",TIGH NAVEEN (KISIMUL),CARE ESTABLISHMENT,LD - Hunts Locality - Cost of Care,LD - Huntingdonshire - Care,Supported Living
Cambridgeshire County Council,04-Jun-21,51301582712,"-2,056.24",TIGH NAVEEN (KISIMUL),CARE ESTABLISHMENT,LD - Hunts Locality - Cost of Care,LD - Huntingdonshire - Care,Supported Living
Cambridgeshire County Council,04-Jun-21,51301582712,"-2,056.24",TIGH NAVEEN (KISIMUL),CARE ESTABLISHMENT,LD - Hunts Locality - Cost of Care,LD - Huntingdonshire - Care,Supported Living
Cambridgeshire County Council,04-Jun-21,51301582712,"-2,056.24",TIGH NAVEEN (KISIMUL),CARE ESTABLISHMENT,LD - Hunts Locality - Cost of Care,LD - Huntingdonshire - Care,Supported Living
Cambridgeshire County Council,04-Jun-21,51301582712,"-2,056.24",TIGH NAVEEN (KISIMUL),CARE ESTABLISHMENT,LD - Hunts Locality - Cost of Care,LD - Huntingdonshire - Care,Supported Living
Cambridgeshire County Council,04-Jun-21,51301582712,"-2,056.24",TIGH NAVEEN (KISIMUL),CARE ESTABLISHMENT,LD - Hunts Locality - Cost of Care,LD - Huntingdonshire - Care,Supported Living
Cambridgeshire County Council,04-Jun-21,51301582749,"-2,046.90",AN DARACH HOUSE ( KISIMUL GROUP LTD),CARE ESTABLISHMENT,LD - South Locality - Cost of Care,LD - South Cambs - Care,Residential Care
Cambridgeshire County Council,04-Jun-21,51301582749,"-2,046.90",AN DARACH HOUSE ( KISIMUL GROUP LTD),CARE ESTABLISHMENT,LD - South Locality - Cost of Care,LD - South Cambs - Care,Residential Care
Cambridgeshire County Council,04-Jun-21,51301582749,"-2,046.90",AN DARACH HOUSE ( KISIMUL GROUP LTD),CARE ESTABLISHMENT,LD - South Locality - Cost of Care,LD - South Cambs - Care,Residential Care
Cambridgeshire County Council,04-Jun-21,51301582749,"-2,046.90",AN DARACH HOUSE ( KISIMUL GROUP LTD),CARE ESTABLISHMENT,LD - South Locality - Cost of Care,LD - South Cambs - Care,Residential Care
Cambridgeshire County Council,04-Jun-21,51301582749,"-2,046.90",AN DARACH HOUSE ( KISIMUL GROUP LTD),CARE ESTABLISHMENT,LD - South Locality - Cost of Care,LD - South Cambs - Care,Residential Care
Cambridgeshire County Council,04-Jun-21,51301582749,"-2,046.90",AN DARACH HOUSE ( KISIMUL GROUP LTD),CARE ESTABLISHMENT,LD - South Locality - Cost of Care,LD - South Cambs - Care,Residential Care
Cambridgeshire County Council,04-Jun-21,51301582749,"-2,046.90",AN DARACH HOUSE ( KISIMUL GROUP LTD),CARE ESTABLISHMENT,LD - South Locality - Cost of Care,LD - South Cambs - Care,Residential Care
Cambridgeshire County Council,04-Jun-21,51301582749,"-2,046.90",AN DARACH HOUSE ( KISIMUL GROUP LTD),CARE ESTABLISHMENT,LD - South Locality - Cost of Care,LD - South Cambs - Care,Residential Care
Cambridgeshire County Council,04-Jun-21,51301582749,"-2,046.90",AN DARACH HOUSE ( KISIMUL GROUP LTD),CARE ESTABLISHMENT,LD - South Locality - Cost of Care,LD - South Cambs - Care,Residential Care
Cambridgeshire County Council,04-Jun-21,51301582749,"-2,046.90",AN DARACH HOUSE ( KISIMUL GROUP LTD),CARE ESTABLISHMENT,LD - South Locality - Cost of Care,LD - South Cambs - Care,Residential Care
Cambridgeshire County Council,04-Jun-21,51301582749,"-2,046.90",AN DARACH HOUSE ( KISIMUL GROUP LTD),CARE ESTABLISHMENT,LD - South Locality - Cost of Care,LD - South Cambs - Care,Residential Care
Cambridgeshire County Council,04-Jun-21,51301582749,"-2,046.90",AN DARACH HOUSE ( KISIMUL GROUP LTD),CARE ESTABLISHMENT,LD - South Locality - Cost of Care,LD - South Cambs - Care,Residential Care
Cambridgeshire County Council,04-Jun-21,51301582749,"-2,046.90",AN DARACH HOUSE ( KISIMUL GROUP LTD),CARE ESTABLISHMENT,LD - South Locality - Cost of Care,LD - South Cambs - Care,Residential Care
Cambridgeshire County Council,04-Jun-21,51301582749,"-2,046.90",AN DARACH HOUSE ( KISIMUL GROUP LTD),CARE ESTABLISHMENT,LD - South Locality - Cost of Care,LD - South Cambs - Care,Residential Care
Cambridgeshire County Council,04-Jun-21,51301582749,"-2,046.90",AN DARACH HOUSE ( KISIMUL GROUP LTD),CARE ESTABLISHMENT,LD - South Locality - Cost of Care,LD - South Cambs - Care,Residential Care
Cambridgeshire County Council,04-Jun-21,51301582749,"-2,046.90",AN DARACH HOUSE ( KISIMUL GROUP LTD),CARE ESTABLISHMENT,LD - South Locality - Cost of Care,LD - South Cambs - Care,Residential Care
Cambridgeshire County Council,04-Jun-21,51301582749,"-2,046.90",AN DARACH HOUSE ( KISIMUL GROUP LTD),CARE ESTABLISHMENT,LD - South Locality - Cost of Care,LD - South Cambs - Care,Residential Care
Cambridgeshire County Council,04-Jun-21,51301582749,"-2,046.90",AN DARACH HOUSE ( KISIMUL GROUP LTD),CARE ESTABLISHMENT,LD - South Locality - Cost of Care,LD - South Cambs - Care,Residential Care
Cambridgeshire County Council,04-Jun-21,51301582749,"-2,046.90",AN DARACH HOUSE ( KISIMUL GROUP LTD),CARE ESTABLISHMENT,LD - South Locality - Cost of Care,LD - South Cambs - Care,Residential Care
Cambridgeshire County Council,04-Jun-21,51301582749,"-2,046.90",AN DARACH HOUSE ( KISIMUL GROUP LTD),CARE ESTABLISHMENT,LD - South Locality - Cost of Care,LD - South Cambs - Care,Residential Care
Cambridgeshire County Council,04-Jun-21,51301582749,"-2,046.90",AN DARACH HOUSE ( KISIMUL GROUP LTD),CARE ESTABLISHMENT,LD - South Locality - Cost of Care,LD - South Cambs - Care,Residential Care
Cambridgeshire County Council,04-Jun-21,51301582749,"-2,046.90",AN DARACH HOUSE ( KISIMUL GROUP LTD),CARE ESTABLISHMENT,LD - South Locality - Cost of Care,LD - South Cambs - Care,Residential Care
Cambridgeshire County Council,04-Jun-21,51301582749,"-2,046.90",AN DARACH HOUSE ( KISIMUL GROUP LTD),CARE ESTABLISHMENT,LD - South Locality - Cost of Care,LD - South Cambs - Care,Residential Care
Cambridgeshire County Council,04-Jun-21,51301582749,"-2,046.90",AN DARACH HOUSE ( KISIMUL GROUP LTD),CARE ESTABLISHMENT,LD - South Locality - Cost of Care,LD - South Cambs - Care,Residential Care
Cambridgeshire County Council,04-Jun-21,51301582749,"-2,046.90",AN DARACH HOUSE ( KISIMUL GROUP LTD),CARE ESTABLISHMENT,LD - South Locality - Cost of Care,LD - South Cambs - Care,Residential Care
Cambridgeshire County Council,04-Jun-21,51301582749,"-2,046.90",AN DARACH HOUSE ( KISIMUL GROUP LTD),CARE ESTABLISHMENT,LD - South Locality - Cost of Care,LD - South Cambs - Care,Residential Care
Cambridgeshire County Council,04-Jun-21,51301582749,"-2,046.90",AN DARACH HOUSE ( KISIMUL GROUP LTD),CARE ESTABLISHMENT,LD - South Locality - Cost of Care,LD - South Cambs - Care,Residential Care
Cambridgeshire County Council,04-Jun-21,51301582749,"-2,046.90",AN DARACH HOUSE ( KISIMUL GROUP LTD),CARE ESTABLISHMENT,LD - South Locality - Cost of Care,LD - South Cambs - Care,Residential Care
Cambridgeshire County Council,04-Jun-21,51301582749,"-2,046.90",AN DARACH HOUSE ( KISIMUL GROUP LTD),CARE ESTABLISHMENT,LD - South Locality - Cost of Care,LD - South Cambs - Care,Residential Care
Cambridgeshire County Council,04-Jun-21,51301582749,"-2,046.90",AN DARACH HOUSE ( KISIMUL GROUP LTD),CARE ESTABLISHMENT,LD - South Locality - Cost of Care,LD - South Cambs - Care,Residential Care
Cambridgeshire County Council,04-Jun-21,51301582749,"-2,046.90",AN DARACH HOUSE ( KISIMUL GROUP LTD),CARE ESTABLISHMENT,LD - South Locality - Cost of Care,LD - South Cambs - Care,Residential Care
Cambridgeshire County Council,04-Jun-21,51301582749,"-2,046.90",AN DARACH HOUSE ( KISIMUL GROUP LTD),CARE ESTABLISHMENT,LD - South Locality - Cost of Care,LD - South Cambs - Care,Residential Care
Cambridgeshire County Council,04-Jun-21,51301582749,"-2,046.90",AN DARACH HOUSE ( KISIMUL GROUP LTD),CARE ESTABLISHMENT,LD - South Locality - Cost of Care,LD - South Cambs - Care,Residential Care
Cambridgeshire County Council,04-Jun-21,51301582749,"-2,046.90",AN DARACH HOUSE ( KISIMUL GROUP LTD),CARE ESTABLISHMENT,LD - South Locality - Cost of Care,LD - South Cambs - Care,Residential Care
Cambridgeshire County Council,04-Jun-21,51301582749,"-2,046.90",AN DARACH HOUSE ( KISIMUL GROUP LTD),CARE ESTABLISHMENT,LD - South Locality - Cost of Care,LD - South Cambs - Care,Residential Care
Cambridgeshire County Council,04-Jun-21,51301582749,"-2,046.90",AN DARACH HOUSE ( KISIMUL GROUP LTD),CARE ESTABLISHMENT,LD - South Locality - Cost of Care,LD - South Cambs - Care,Residential Care
Cambridgeshire County Council,04-Jun-21,51301582749,"-2,046.90",AN DARACH HOUSE ( KISIMUL GROUP LTD),CARE ESTABLISHMENT,LD - South Locality - Cost of Care,LD - South Cambs - Care,Residential Care
Cambridgeshire County Council,04-Jun-21,51301582749,"-2,046.90",AN DARACH HOUSE ( KISIMUL GROUP LTD),CARE ESTABLISHMENT,LD - South Locality - Cost of Care,LD - South Cambs - Care,Residential Care
Cambridgeshire County Council,04-Jun-21,51301582749,"-2,046.90",AN DARACH HOUSE ( KISIMUL GROUP LTD),CARE ESTABLISHMENT,LD - South Locality - Cost of Care,LD - South Cambs - Care,Residential Care
Cambridgeshire County Council,04-Jun-21,51301582749,"-2,046.90",AN DARACH HOUSE ( KISIMUL GROUP LTD),CARE ESTABLISHMENT,LD - South Locality - Cost of Care,LD - South Cambs - Care,Residential Care
Cambridgeshire County Council,04-Jun-21,51301582749,"-2,046.90",AN DARACH HOUSE ( KISIMUL GROUP LTD),CARE ESTABLISHMENT,LD - South Locality - Cost of Care,LD - South Cambs - Care,Residential Care
Cambridgeshire County Council,04-Jun-21,51301582749,"-2,046.90",AN DARACH HOUSE ( KISIMUL GROUP LTD),CARE ESTABLISHMENT,LD - South Locality - Cost of Care,LD - South Cambs - Care,Residential Care
Cambridgeshire County Council,04-Jun-21,51301582749,"-2,046.90",AN DARACH HOUSE ( KISIMUL GROUP LTD),CARE ESTABLISHMENT,LD - South Locality - Cost of Care,LD - South Cambs - Care,Residential Care
Cambridgeshire County Council,04-Jun-21,51301582749,"-2,046.90",AN DARACH HOUSE ( KISIMUL GROUP LTD),CARE ESTABLISHMENT,LD - South Locality - Cost of Care,LD - South Cambs - Care,Residential Care
Cambridgeshire County Council,04-Jun-21,51301582749,"-2,046.90",AN DARACH HOUSE ( KISIMUL GROUP LTD),CARE ESTABLISHMENT,LD - South Locality - Cost of Care,LD - South Cambs - Care,Residential Care
Cambridgeshire County Council,04-Jun-21,51301582749,"-2,046.90",AN DARACH HOUSE ( KISIMUL GROUP LTD),CARE ESTABLISHMENT,LD - South Locality - Cost of Care,LD - South Cambs - Care,Residential Care
Cambridgeshire County Council,04-Jun-21,51301582749,"-2,046.90",AN DARACH HOUSE ( KISIMUL GROUP LTD),CARE ESTABLISHMENT,LD - South Locality - Cost of Care,LD - South Cambs - Care,Residential Care
Cambridgeshire County Council,04-Jun-21,51301582749,"-2,046.90",AN DARACH HOUSE ( KISIMUL GROUP LTD),CARE ESTABLISHMENT,LD - South Locality - Cost of Care,LD - South Cambs - Care,Residential Care
Cambridgeshire County Council,04-Jun-21,51301582749,"-2,046.90",AN DARACH HOUSE ( KISIMUL GROUP LTD),CARE ESTABLISHMENT,LD - South Locality - Cost of Care,LD - South Cambs - Care,Residential Care
Cambridgeshire County Council,04-Jun-21,51301582749,"-2,046.90",AN DARACH HOUSE ( KISIMUL GROUP LTD),CARE ESTABLISHMENT,LD - South Locality - Cost of Care,LD - South Cambs - Care,Residential Care
Cambridgeshire County Council,04-Jun-21,51301582843,"-2,024.76",KISIMUL SCHOOL,CARE ESTABLISHMENT,LD - Hunts Locality - Cost of Care,LD - Huntingdonshire - Care,Residential Care
Cambridgeshire County Council,04-Jun-21,51301582843,"-2,024.76",KISIMUL SCHOOL,CARE ESTABLISHMENT,LD - Hunts Locality - Cost of Care,LD - Huntingdonshire - Care,Residential Care
Cambridgeshire County Council,04-Jun-21,51301582843,"-2,024.76",KISIMUL SCHOOL,CARE ESTABLISHMENT,LD - Hunts Locality - Cost of Care,LD - Huntingdonshire - Care,Residential Care
Cambridgeshire County Council,04-Jun-21,51301582843,"-2,024.76",KISIMUL SCHOOL,CARE ESTABLISHMENT,LD - Hunts Locality - Cost of Care,LD - Huntingdonshire - Care,Residential Care
Cambridgeshire County Council,04-Jun-21,51301582843,"-2,024.76",KISIMUL SCHOOL,CARE ESTABLISHMENT,LD - Hunts Locality - Cost of Care,LD - Huntingdonshire - Care,Residential Care
Cambridgeshire County Council,04-Jun-21,51301582843,"-2,024.76",KISIMUL SCHOOL,CARE ESTABLISHMENT,LD - Hunts Locality - Cost of Care,LD - Huntingdonshire - Care,Residential Care
Cambridgeshire County Council,04-Jun-21,51301582843,"-2,024.76",KISIMUL SCHOOL,CARE ESTABLISHMENT,LD - Hunts Locality - Cost of Care,LD - Huntingdonshire - Care,Residential Care
Cambridgeshire County Council,04-Jun-21,51301582843,"-2,024.76",KISIMUL SCHOOL,CARE ESTABLISHMENT,LD - Hunts Locality - Cost of Care,LD - Huntingdonshire - Care,Residential Care
Cambridgeshire County Council,04-Jun-21,51301582843,"-2,024.76",KISIMUL SCHOOL,CARE ESTABLISHMENT,LD - Hunts Locality - Cost of Care,LD - Huntingdonshire - Care,Residential Care
Cambridgeshire County Council,04-Jun-21,51301582843,"-2,024.76",KISIMUL SCHOOL,CARE ESTABLISHMENT,LD - Hunts Locality - Cost of Care,LD - Huntingdonshire - Care,Residential Care
Cambridgeshire County Council,04-Jun-21,51301582843,"-2,024.76",KISIMUL SCHOOL,CARE ESTABLISHMENT,LD - Hunts Locality - Cost of Care,LD - Huntingdonshire - Care,Residential Care
Cambridgeshire County Council,04-Jun-21,51301582843,"-2,024.76",KISIMUL SCHOOL,CARE ESTABLISHMENT,LD - Hunts Locality - Cost of Care,LD - Huntingdonshire - Care,Residential Care
Cambridgeshire County Council,04-Jun-21,51301582843,"-2,024.76",KISIMUL SCHOOL,CARE ESTABLISHMENT,LD - Hunts Locality - Cost of Care,LD - Huntingdonshire - Care,Residential Care
Cambridgeshire County Council,04-Jun-21,51301582843,"-2,024.76",KISIMUL SCHOOL,CARE ESTABLISHMENT,LD - Hunts Locality - Cost of Care,LD - Huntingdonshire - Care,Residential Care
Cambridgeshire County Council,04-Jun-21,51301582843,"-2,024.76",KISIMUL SCHOOL,CARE ESTABLISHMENT,LD - Hunts Locality - Cost of Care,LD - Huntingdonshire - Care,Residential Care
Cambridgeshire County Council,04-Jun-21,51301582843,"-2,024.76",KISIMUL SCHOOL,CARE ESTABLISHMENT,LD - Hunts Locality - Cost of Care,LD - Huntingdonshire - Care,Residential Care
Cambridgeshire County Council,04-Jun-21,51301582843,"-2,024.76",KISIMUL SCHOOL,CARE ESTABLISHMENT,LD - Hunts Locality - Cost of Care,LD - Huntingdonshire - Care,Residential Care
Cambridgeshire County Council,04-Jun-21,51301582843,"-2,024.76",KISIMUL SCHOOL,CARE ESTABLISHMENT,LD - Hunts Locality - Cost of Care,LD - Huntingdonshire - Care,Residential Care
Cambridgeshire County Council,04-Jun-21,51301582843,"-2,024.76",KISIMUL SCHOOL,CARE ESTABLISHMENT,LD - Hunts Locality - Cost of Care,LD - Huntingdonshire - Care,Residential Care
Cambridgeshire County Council,04-Jun-21,51301582843,"-2,024.76",KISIMUL SCHOOL,CARE ESTABLISHMENT,LD - Hunts Locality - Cost of Care,LD - Huntingdonshire - Care,Residential Care
Cambridgeshire County Council,04-Jun-21,51301582843,"-2,024.76",KISIMUL SCHOOL,CARE ESTABLISHMENT,LD - Hunts Locality - Cost of Care,LD - Huntingdonshire - Care,Residential Care
Cambridgeshire County Council,04-Jun-21,51301582843,"-2,024.76",KISIMUL SCHOOL,CARE ESTABLISHMENT,LD - Hunts Locality - Cost of Care,LD - Huntingdonshire - Care,Residential Care
Cambridgeshire County Council,04-Jun-21,51301582843,"-2,024.76",KISIMUL SCHOOL,CARE ESTABLISHMENT,LD - Hunts Locality - Cost of Care,LD - Huntingdonshire - Care,Residential Care
Cambridgeshire County Council,04-Jun-21,51301582843,"-2,024.76",KISIMUL SCHOOL,CARE ESTABLISHMENT,LD - Hunts Locality - Cost of Care,LD - Huntingdonshire - Care,Residential Care
Cambridgeshire County Council,04-Jun-21,51301582843,"-2,024.76",KISIMUL SCHOOL,CARE ESTABLISHMENT,LD - Hunts Locality - Cost of Care,LD - Huntingdonshire - Care,Residential Care
Cambridgeshire County Council,04-Jun-21,51301582843,"-2,024.76",KISIMUL SCHOOL,CARE ESTABLISHMENT,LD - Hunts Locality - Cost of Care,LD - Huntingdonshire - Care,Residential Care
Cambridgeshire County Council,04-Jun-21,51301582843,"-2,024.76",KISIMUL SCHOOL,CARE ESTABLISHMENT,LD - Hunts Locality - Cost of Care,LD - Huntingdonshire - Care,Residential Care
Cambridgeshire County Council,04-Jun-21,51301582843,"-2,024.76",KISIMUL SCHOOL,CARE ESTABLISHMENT,LD - Hunts Locality - Cost of Care,LD - Huntingdonshire - Care,Residential Care
Cambridgeshire County Council,04-Jun-21,51301582843,"-2,024.76",KISIMUL SCHOOL,CARE ESTABLISHMENT,LD - Hunts Locality - Cost of Care,LD - Huntingdonshire - Care,Residential Care
Cambridgeshire County Council,04-Jun-21,51301582843,"-2,024.76",KISIMUL SCHOOL,CARE ESTABLISHMENT,LD - Hunts Locality - Cost of Care,LD - Huntingdonshire - Care,Residential Care
Cambridgeshire County Council,04-Jun-21,51301582843,"-2,024.76",KISIMUL SCHOOL,CARE ESTABLISHMENT,LD - Hunts Locality - Cost of Care,LD - Huntingdonshire - Care,Residential Care
Cambridgeshire County Council,04-Jun-21,51301582843,"-2,024.76",KISIMUL SCHOOL,CARE ESTABLISHMENT,LD - Hunts Locality - Cost of Care,LD - Huntingdonshire - Care,Residential Care
Cambridgeshire County Council,04-Jun-21,51301582843,"-2,024.76",KISIMUL SCHOOL,CARE ESTABLISHMENT,LD - Hunts Locality - Cost of Care,LD - Huntingdonshire - Care,Residential Care
Cambridgeshire County Council,04-Jun-21,51301582843,"-2,024.76",KISIMUL SCHOOL,CARE ESTABLISHMENT,LD - Hunts Locality - Cost of Care,LD - Huntingdonshire - Care,Residential Care
Cambridgeshire County Council,04-Jun-21,51301582843,"-2,024.76",KISIMUL SCHOOL,CARE ESTABLISHMENT,LD - Hunts Locality - Cost of Care,LD - Huntingdonshire - Care,Residential Care
Cambridgeshire County Council,04-Jun-21,51301582843,"-2,024.76",KISIMUL SCHOOL,CARE ESTABLISHMENT,LD - Hunts Locality - Cost of Care,LD - Huntingdonshire - Care,Residential Care
Cambridgeshire County Council,04-Jun-21,51301582843,"-2,024.76",KISIMUL SCHOOL,CARE ESTABLISHMENT,LD - Hunts Locality - Cost of Care,LD - Huntingdonshire - Care,Residential Care
Cambridgeshire County Council,04-Jun-21,51301582843,"-2,024.76",KISIMUL SCHOOL,CARE ESTABLISHMENT,LD - Hunts Locality - Cost of Care,LD - Huntingdonshire - Care,Residential Care
Cambridgeshire County Council,04-Jun-21,51301582843,"-2,024.76",KISIMUL SCHOOL,CARE ESTABLISHMENT,LD - Hunts Locality - Cost of Care,LD - Huntingdonshire - Care,Residential Care
Cambridgeshire County Council,04-Jun-21,51301582843,"-2,024.76",KISIMUL SCHOOL,CARE ESTABLISHMENT,LD - Hunts Locality - Cost of Care,LD - Huntingdonshire - Care,Residential Care
Cambridgeshire County Council,04-Jun-21,51301582843,"-2,024.76",KISIMUL SCHOOL,CARE ESTABLISHMENT,LD - Hunts Locality - Cost of Care,LD - Huntingdonshire - Care,Residential Care
Cambridgeshire County Council,04-Jun-21,51301582843,"-2,024.76",KISIMUL SCHOOL,CARE ESTABLISHMENT,LD - Hunts Locality - Cost of Care,LD - Huntingdonshire - Care,Residential Care
Cambridgeshire County Council,04-Jun-21,51301582843,"-2,024.76",KISIMUL SCHOOL,CARE ESTABLISHMENT,LD - Hunts Locality - Cost of Care,LD - Huntingdonshire - Care,Residential Care
Cambridgeshire County Council,04-Jun-21,51301582843,"-2,024.76",KISIMUL SCHOOL,CARE ESTABLISHMENT,LD - Hunts Locality - Cost of Care,LD - Huntingdonshire - Care,Residential Care
Cambridgeshire County Council,04-Jun-21,51301582843,"-2,024.76",KISIMUL SCHOOL,CARE ESTABLISHMENT,LD - Hunts Locality - Cost of Care,LD - Huntingdonshire - Care,Residential Care
Cambridgeshire County Council,04-Jun-21,51301582843,"-2,024.76",KISIMUL SCHOOL,CARE ESTABLISHMENT,LD - Hunts Locality - Cost of Care,LD - Huntingdonshire - Care,Residential Care
Cambridgeshire County Council,04-Jun-21,51301582843,"-2,024.76",KISIMUL SCHOOL,CARE ESTABLISHMENT,LD - Hunts Locality - Cost of Care,LD - Huntingdonshire - Care,Residential Care
Cambridgeshire County Council,04-Jun-21,51301582843,"-2,024.76",KISIMUL SCHOOL,CARE ESTABLISHMENT,LD - Hunts Locality - Cost of Care,LD - Huntingdonshire - Care,Residential Care
Cambridgeshire County Council,04-Jun-21,51301582843,"-2,024.76",KISIMUL SCHOOL,CARE ESTABLISHMENT,LD - Hunts Locality - Cost of Care,LD - Huntingdonshire - Care,Residential Care
Cambridgeshire County Council,04-Jun-21,51301582843,"-2,024.76",KISIMUL SCHOOL,CARE ESTABLISHMENT,LD - Hunts Locality - Cost of Care,LD - Huntingdonshire - Care,Residential Care
Cambridgeshire County Council,04-Jun-21,51301582843,"-2,024.76",KISIMUL SCHOOL,CARE ESTABLISHMENT,LD - Hunts Locality - Cost of Care,LD - Huntingdonshire - Care,Residential Care
Cambridgeshire County Council,04-Jun-21,51301582843,"-2,024.76",KISIMUL SCHOOL,CARE ESTABLISHMENT,LD - Hunts Locality - Cost of Care,LD - Huntingdonshire - Care,Residential Care
Cambridgeshire County Council,04-Jun-21,51301582842,"-1,769.68",KISIMUL SCHOOL,CARE ESTABLISHMENT,LD - Young Adults Team,LD - Young Adults - Care,Residential Care
Cambridgeshire County Council,04-Jun-21,51301582842,"-1,769.68",KISIMUL SCHOOL,CARE ESTABLISHMENT,LD - Young Adults Team,LD - Young Adults - Care,Residential Care
Cambridgeshire County Council,04-Jun-21,51301582842,"-1,769.68",KISIMUL SCHOOL,CARE ESTABLISHMENT,LD - Young Adults Team,LD - Young Adults - Care,Residential Care
Cambridgeshire County Council,04-Jun-21,51301582842,"-1,769.68",KISIMUL SCHOOL,CARE ESTABLISHMENT,LD - Young Adults Team,LD - Young Adults - Care,Residential Care
Cambridgeshire County Council,04-Jun-21,51301582842,"-1,769.68",KISIMUL SCHOOL,CARE ESTABLISHMENT,LD - Young Adults Team,LD - Young Adults - Care,Residential Care
Cambridgeshire County Council,04-Jun-21,51301582842,"-1,769.68",KISIMUL SCHOOL,CARE ESTABLISHMENT,LD - Young Adults Team,LD - Young Adults - Care,Residential Care
Cambridgeshire County Council,04-Jun-21,51301582842,"-1,769.68",KISIMUL SCHOOL,CARE ESTABLISHMENT,LD - Young Adults Team,LD - Young Adults - Care,Residential Care
Cambridgeshire County Council,04-Jun-21,51301582842,"-1,769.68",KISIMUL SCHOOL,CARE ESTABLISHMENT,LD - Young Adults Team,LD - Young Adults - Care,Residential Care
Cambridgeshire County Council,04-Jun-21,51301582842,"-1,769.68",KISIMUL SCHOOL,CARE ESTABLISHMENT,LD - Young Adults Team,LD - Young Adults - Care,Residential Care
Cambridgeshire County Council,04-Jun-21,51301582842,"-1,769.68",KISIMUL SCHOOL,CARE ESTABLISHMENT,LD - Young Adults Team,LD - Young Adults - Care,Residential Care
Cambridgeshire County Council,04-Jun-21,51301582842,"-1,769.68",KISIMUL SCHOOL,CARE ESTABLISHMENT,LD - Young Adults Team,LD - Young Adults - Care,Residential Care
Cambridgeshire County Council,04-Jun-21,51301582842,"-1,769.68",KISIMUL SCHOOL,CARE ESTABLISHMENT,LD - Young Adults Team,LD - Young Adults - Care,Residential Care
Cambridgeshire County Council,04-Jun-21,51301582842,"-1,769.68",KISIMUL SCHOOL,CARE ESTABLISHMENT,LD - Young Adults Team,LD - Young Adults - Care,Residential Care
Cambridgeshire County Council,04-Jun-21,51301582842,"-1,769.68",KISIMUL SCHOOL,CARE ESTABLISHMENT,LD - Young Adults Team,LD - Young Adults - Care,Residential Care
Cambridgeshire County Council,04-Jun-21,51301582842,"-1,769.68",KISIMUL SCHOOL,CARE ESTABLISHMENT,LD - Young Adults Team,LD - Young Adults - Care,Residential Care
Cambridgeshire County Council,04-Jun-21,51301582842,"-1,769.68",KISIMUL SCHOOL,CARE ESTABLISHMENT,LD - Young Adults Team,LD - Young Adults - Care,Residential Care
Cambridgeshire County Council,04-Jun-21,51301582842,"-1,769.68",KISIMUL SCHOOL,CARE ESTABLISHMENT,LD - Young Adults Team,LD - Young Adults - Care,Residential Care
Cambridgeshire County Council,04-Jun-21,51301582842,"-1,769.68",KISIMUL SCHOOL,CARE ESTABLISHMENT,LD - Young Adults Team,LD - Young Adults - Care,Residential Care
Cambridgeshire County Council,04-Jun-21,51301582842,"-1,769.68",KISIMUL SCHOOL,CARE ESTABLISHMENT,LD - Young Adults Team,LD - Young Adults - Care,Residential Care
Cambridgeshire County Council,04-Jun-21,51301582842,"-1,769.68",KISIMUL SCHOOL,CARE ESTABLISHMENT,LD - Young Adults Team,LD - Young Adults - Care,Residential Care
Cambridgeshire County Council,04-Jun-21,51301582842,"-1,769.68",KISIMUL SCHOOL,CARE ESTABLISHMENT,LD - Young Adults Team,LD - Young Adults - Care,Residential Care
Cambridgeshire County Council,04-Jun-21,51301582842,"-1,769.68",KISIMUL SCHOOL,CARE ESTABLISHMENT,LD - Young Adults Team,LD - Young Adults - Care,Residential Care
Cambridgeshire County Council,04-Jun-21,51301582842,"-1,769.68",KISIMUL SCHOOL,CARE ESTABLISHMENT,LD - Young Adults Team,LD - Young Adults - Care,Residential Care
Cambridgeshire County Council,04-Jun-21,51301582842,"-1,769.68",KISIMUL SCHOOL,CARE ESTABLISHMENT,LD - Young Adults Team,LD - Young Adults - Care,Residential Care
Cambridgeshire County Council,04-Jun-21,51301582842,"-1,769.68",KISIMUL SCHOOL,CARE ESTABLISHMENT,LD - Young Adults Team,LD - Young Adults - Care,Residential Care
Cambridgeshire County Council,04-Jun-21,51301582842,"-1,769.68",KISIMUL SCHOOL,CARE ESTABLISHMENT,LD - Young Adults Team,LD - Young Adults - Care,Residential Care
Cambridgeshire County Council,04-Jun-21,51301582842,"-1,769.68",KISIMUL SCHOOL,CARE ESTABLISHMENT,LD - Young Adults Team,LD - Young Adults - Care,Residential Care
Cambridgeshire County Council,04-Jun-21,51301582842,"-1,769.68",KISIMUL SCHOOL,CARE ESTABLISHMENT,LD - Young Adults Team,LD - Young Adults - Care,Residential Care
Cambridgeshire County Council,04-Jun-21,51301582842,"-1,769.68",KISIMUL SCHOOL,CARE ESTABLISHMENT,LD - Young Adults Team,LD - Young Adults - Care,Residential Care
Cambridgeshire County Council,04-Jun-21,51301582842,"-1,769.68",KISIMUL SCHOOL,CARE ESTABLISHMENT,LD - Young Adults Team,LD - Young Adults - Care,Residential Care
Cambridgeshire County Council,04-Jun-21,51301582842,"-1,769.68",KISIMUL SCHOOL,CARE ESTABLISHMENT,LD - Young Adults Team,LD - Young Adults - Care,Residential Care
Cambridgeshire County Council,04-Jun-21,51301582842,"-1,769.68",KISIMUL SCHOOL,CARE ESTABLISHMENT,LD - Young Adults Team,LD - Young Adults - Care,Residential Care
Cambridgeshire County Council,04-Jun-21,51301582842,"-1,769.68",KISIMUL SCHOOL,CARE ESTABLISHMENT,LD - Young Adults Team,LD - Young Adults - Care,Residential Care
Cambridgeshire County Council,04-Jun-21,51301582842,"-1,769.68",KISIMUL SCHOOL,CARE ESTABLISHMENT,LD - Young Adults Team,LD - Young Adults - Care,Residential Care
Cambridgeshire County Council,04-Jun-21,51301582842,"-1,769.68",KISIMUL SCHOOL,CARE ESTABLISHMENT,LD - Young Adults Team,LD - Young Adults - Care,Residential Care
Cambridgeshire County Council,04-Jun-21,51301582842,"-1,769.68",KISIMUL SCHOOL,CARE ESTABLISHMENT,LD - Young Adults Team,LD - Young Adults - Care,Residential Care
Cambridgeshire County Council,04-Jun-21,51301582842,"-1,769.68",KISIMUL SCHOOL,CARE ESTABLISHMENT,LD - Young Adults Team,LD - Young Adults - Care,Residential Care
Cambridgeshire County Council,04-Jun-21,51301582842,"-1,769.68",KISIMUL SCHOOL,CARE ESTABLISHMENT,LD - Young Adults Team,LD - Young Adults - Care,Residential Care
Cambridgeshire County Council,04-Jun-21,51301582842,"-1,769.68",KISIMUL SCHOOL,CARE ESTABLISHMENT,LD - Young Adults Team,LD - Young Adults - Care,Residential Care
Cambridgeshire County Council,04-Jun-21,51301582842,"-1,769.68",KISIMUL SCHOOL,CARE ESTABLISHMENT,LD - Young Adults Team,LD - Young Adults - Care,Residential Care
Cambridgeshire County Council,04-Jun-21,51301582842,"-1,769.68",KISIMUL SCHOOL,CARE ESTABLISHMENT,LD - Young Adults Team,LD - Young Adults - Care,Residential Care
Cambridgeshire County Council,04-Jun-21,51301582842,"-1,769.68",KISIMUL SCHOOL,CARE ESTABLISHMENT,LD - Young Adults Team,LD - Young Adults - Care,Residential Care
Cambridgeshire County Council,04-Jun-21,51301582842,"-1,769.68",KISIMUL SCHOOL,CARE ESTABLISHMENT,LD - Young Adults Team,LD - Young Adults - Care,Residential Care
Cambridgeshire County Council,04-Jun-21,51301582842,"-1,769.68",KISIMUL SCHOOL,CARE ESTABLISHMENT,LD - Young Adults Team,LD - Young Adults - Care,Residential Care
Cambridgeshire County Council,04-Jun-21,51301582842,"-1,769.68",KISIMUL SCHOOL,CARE ESTABLISHMENT,LD - Young Adults Team,LD - Young Adults - Care,Residential Care
Cambridgeshire County Council,04-Jun-21,51301582842,"-1,769.68",KISIMUL SCHOOL,CARE ESTABLISHMENT,LD - Young Adults Team,LD - Young Adults - Care,Residential Care
